{"text_format":"3","workbook":"xlsx","n_sheets":11,"sheets":["ShortReport","CompleteReport","CONDITIONS","GEOMETRY","CALCOLI STS (slab to slab)","CLT EDGE DISTANCE","CONCRETE","CLT","SCREWS","traduzioni","Foglio1"],"not_rendered":{"charts":9,"images":56,"macros":1,"defined_names":13,"comments":1},"read":"whole","date_system":"1900"}

{"sheet":"ShortReport","index":0,"n_rows":133,"n_cols":1,"rows_kept":133,"merged":[[131,0,131,19],[132,0,132,19]]}
{"$rows_empty":127}
[{"$f":"traduzioni!A180","v":"NOTAS"}]
[{"$f":"traduzioni!A181","v":"Antes de la construcción, todos los cálculos deben ser comprobados y aprobados por el proyectista responsable."}]
[{"$f":"traduzioni!A182","v":"Los valores de resistencia mecánica y la geometría se refieren a la certificación del producto."}]
[{"$f":"traduzioni!A183","v":"La comprobación de la resistencia del sistema lado anclaje al hormigón deberá realizarse por separado siguiendo las indicaciones de ETA-22/0806 - Annex E1."}]
[{"$f":"traduzioni!A184","v":"Todos los cálculos deben ser comprobados y aprobados por el proyectista responsable antes de su ejecución. El proyectista tiene la obligación de comprobar en cada uso que los datos sean conformes con las normativas vigentes y con el proyecto. La responsabilidad final de elegir el producto apropiado para una aplicación específica recae en el proyectista."}]
[{"$f":"traduzioni!A185","v":"Los resultados obtenidos en esta ficha son de carácter indicativo y deben considerarse como un servicio técnico-comercial en el ámbito de la actividad de ventas de Rotho Blaas srl. El número y el espesor de las puntas deben ser determinados por el proyectista responsable, que tiene la obligación de comprobar la exactitud de los resultados obtenidos mediante el procesamiento de los datos introducidos. Rotho Blaas srl no garantiza la conformidad con la normativa vigente ni la proyección de los cálculos realizados mediante esta hoja de cálculo. En concreto, tras modificar las disposiciones pertinentes, como, por ejemplo, normas, aprobaciones, etc., el programa puede dejar de ser válido, parcial o completamente. Rotho Blaas srl no ofrece ninguna garantía y en ningún caso podrá ser considerado responsable por daños o consecuencias, directas o indirectas (garantía por defectos, garantía por mal funcionamiento, responsabilidad del producto o legal, etc.). El Usuario declara que utilizará la hoja de cálculo como profesional con la obligación y la responsabilidad de comprobar que la hoja de cálculo responda a sus necesidades específicas."}]

{"sheet":"CompleteReport","index":1,"n_rows":371,"n_cols":1,"rows_kept":371,"merged":[[369,0,369,19],[370,0,370,19]]}
{"$rows_empty":365}
[{"$f":"traduzioni!A180","v":"NOTAS"}]
[{"$f":"traduzioni!A181","v":"Antes de la construcción, todos los cálculos deben ser comprobados y aprobados por el proyectista responsable."}]
[{"$f":"traduzioni!A182","v":"Los valores de resistencia mecánica y la geometría se refieren a la certificación del producto."}]
[{"$f":"traduzioni!A183","v":"La comprobación de la resistencia del sistema lado anclaje al hormigón deberá realizarse por separado siguiendo las indicaciones de ETA-22/0806 - Annex E1."}]
[{"$f":"traduzioni!A184","v":"Todos los cálculos deben ser comprobados y aprobados por el proyectista responsable antes de su ejecución. El proyectista tiene la obligación de comprobar en cada uso que los datos sean conformes con las normativas vigentes y con el proyecto. La responsabilidad final de elegir el producto apropiado para una aplicación específica recae en el proyectista."}]
[{"$f":"traduzioni!A185","v":"Los resultados obtenidos en esta ficha son de carácter indicativo y deben considerarse como un servicio técnico-comercial en el ámbito de la actividad de ventas de Rotho Blaas srl. El número y el espesor de las puntas deben ser determinados por el proyectista responsable, que tiene la obligación de comprobar la exactitud de los resultados obtenidos mediante el procesamiento de los datos introducidos. Rotho Blaas srl no garantiza la conformidad con la normativa vigente ni la proyección de los cálculos realizados mediante esta hoja de cálculo. En concreto, tras modificar las disposiciones pertinentes, como, por ejemplo, normas, aprobaciones, etc., el programa puede dejar de ser válido, parcial o completamente. Rotho Blaas srl no ofrece ninguna garantía y en ningún caso podrá ser considerado responsable por daños o consecuencias, directas o indirectas (garantía por defectos, garantía por mal funcionamiento, responsabilidad del producto o legal, etc.). El Usuario declara que utilizará la hoja de cálculo como profesional con la obligación y la responsabilidad de comprobar que la hoja de cálculo responda a sus necesidades específicas."}]

{"sheet":"CONDITIONS","index":2,"n_rows":61,"n_cols":5,"rows_kept":61,"merged":[[1,3,3,3],[2,4,3,4],[6,2,8,4],[13,2,13,4],[17,2,17,4],[21,2,21,4],[25,2,25,4],[29,2,29,4],[33,2,33,4],[37,2,37,4],[41,2,41,4],[45,2,45,4],[49,2,49,4],[53,2,53,4],[57,2,57,4],[58,2,58,4],[60,0,62,5]]}
[]
[{"$nulls":3},"tc_fusion_calculator\nv.1.10",{"$f":"traduzioni!A216","v":"Idioma"}]
[{"$nulls":4},"ES"]
[]
[]
[{"$nulls":3},"TC-FUSION CALCULATOR"]
[null,null,{"$f":"traduzioni!A190","v":"CONDICIONES GENERALES DEL CONTRATO DE LICENCIA DE USO PARA LA HOJA DE CÁLCULO “TC_FUSION_CALCULATOR”"}]
[]
[]
[]
[]
[null,{"$f":"traduzioni!A191","v":"1. OBJETO"}]
[]
[null,null,{"$f":"traduzioni!A192","v":"Con estas Condiciones Generales (o “Contrato”), ROTHO BLAAS SRL, con domicilio en I-39040 Cortaccia (BZ), Via dell'Adige 2/1 (en lo sucesivo, “RB”), otorga al usuario el derecho no exclusivo y revocable para usar, a título gratuito, la hoja de cálculo “--” (en lo sucesivo, “CALC”) en las condiciones indicadas a continuación y mientras esté vigente el Contrato.\n\nPor lo tanto, este contrato tiene por objeto regular la relación entre el usuario y RB con respecto al uso de dicha hoja de cálculo. En el momento en que el usuario descarga y usa CALC, acepta este Contrato y las condiciones indicadas.\n\nCALC permite al usuario realizar cálculos estáticos exclusivamente para los productos y los materiales indicados en cada una de sus secciones. Este Contrato prohíbe expresamente el uso de CALC para realizar cálculos para productos que no estén indicados.\n\nEn cualquier caso, RB no proporciona ninguna garantía sobre la conformidad legal ni con el proyecto de cálculos y solo pretende proporcionar una herramienta de cálculo indicativo, como servicio técnico-comercial en el ámbito de la actividad de ventas."}]
[]
[null,{"$f":"traduzioni!A193","v":"2. REFERENCIAS TÉCNICAS"}]
[]
[null,null,{"$f":"traduzioni!A194","v":"RB ha efectuado las comprobaciones según el método de los estados límite de acuerdo con la norma EN 1995-1-1 Eurocódigo 5 - Proyecto de estructuras de madera y con la norma EN 1992-1-1 Eurocódigo 2 - Proyecto de estructuras de hormigón. Para los valores de resistencia mecánica y para la geometría de los clavos se han tomado como referencia las indicaciones de ETA-22/0806."}]
[]
[null,{"$f":"traduzioni!A195","v":"3. DERECHOS Y OBLIGACIONES DE RB"}]
[]
[null,null,{"$f":"traduzioni!A196","v":"RB:\n\na) pone el CALC a disposición del usuario gratuitamente, tal como está;\n\nb) no proporciona al usuario asistencia técnica de ningún tipo para el uso de CALC;\n\nc) no garantiza la conformidad de CALC con la normativa vigente ni con el proyecto de cálculos realizados con este. En concreto, tras modificar las disposiciones pertinentes, como, por ejemplo, normas, homologaciones, etc., la hoja de cálculo puede dejar de ser válida, parcial o completamente.\n\nd) aunque se reserva el derecho de actualizar, revisar y desarrollar CALC, no asume ninguna obligación, ante el usuario, de comprobar, corregir, completar o actualizar la hoja de cálculo ni de poner a su disposición las actualizaciones realizadas."}]
[]
[null,{"$f":"traduzioni!A197","v":"4. DERECHOS Y OBLIGACIONES DEL USUARIO"}]
[]
[null,null,{"$f":"traduzioni!A198","v":"El Usuario declara que utilizará la hoja de cálculo como profesional, quedando excluido cualquier uso como consumidor, y que respetará siempre las siguientes obligaciones y prohibiciones:\n\na) la obligación y la responsabilidad de comprobar que CALC satisfaga sus necesidades específicas y sea compatible con su hardware, software y sistemas;\n\nb) la obligación de comprobar, cada vez que lo use, la conformidad de los cálculos realizados mediante CALC con la normativa vigente y con el proyecto;\n\nc) la obligación de comprobar la conformidad legal de los cálculos realizados mediante el software;\n\nd) la obligación de usar la versión más actualizada de CALC puesta a disposición por la persona de contacto RB y de comprobar, cada vez que lo use, si hay actualizaciones;\n\ne) la prohibición de usar XLS para productos no indicados en cada sección de cálculo;\n\nf) la obligación de utilizar un software antivirus actualizado y que sea conforme con el estándar industrial actual;\n\ng) la obligación de no ceder la licencia de uso de CALC a terceros ni, por otros medios, transferir, dar en garantía o arrendamiento, alquilar o compartir con otros o conceder en sublicencia los derechos de uso de la hoja de cálculo;\n\nh) la prohibición de hacer copias de XLS o hacer que terceros lo hagan por él.\n\nEl usuario se compromete a solicitar a la persona de contacto de RB la última versión de CALC. "}]
[]
[null,{"$f":"traduzioni!A199","v":"5. DERECHOS DE AUTOR"}]
[]
[null,null,{"$f":"traduzioni!A200","v":"Los derechos de autor sobre las fórmulas de la hoja de cálculo y todos los derechos de propiedad intelectual e industrial que se aplican a aquellas (a título meramente de ejemplo y no exhaustivo: marcas, patentes, secretos comerciales, saber hacer, información confidencial) son y seguirán siendo propiedad exclusiva de RB.\n\nEste acuerdo no otorga al usuario ninguno de los derechos indicados anteriormente."}]
[]
[null,{"$f":"traduzioni!A201","v":"6. DURACIÓN, RESCISIÓN Y TERMINACIÓN "}]
[]
[null,null,{"$f":"traduzioni!A202","v":"Las presentes condiciones generales y, en consecuencia, la licencia de uso de la hoja de cálculo, son válidas desde el momento de su descarga hasta que termine su uso.\n\nEl usuario puede rescindir en cualquier momento este contrato eliminando CALC y cualquier copia de sus sistemas.\n\nRB puede rescindir este Contrato y desactivar el servicio en caso de infracción de una cualquiera de las disposiciones que regulan la licencia de uso. En caso de que RB comunique la terminación, el usuario deberá eliminar la hoja de cálculo y cualquier copia de sus sistemas."}]
[]
[null,{"$f":"traduzioni!A203","v":"7. RESPONSABILIDAD"}]
[]
[null,null,{"$f":"traduzioni!A204","v":"El usuario es el único responsable del uso de CALC, incluidos, entre otros, todos los cálculos, los listados y los datos exportados realizados con él; también es el único responsable de los errores de introducción, de la protección de los archivos de datos y del mantenimiento y, en general, de cualquier uso que haga de la hoja de cálculo.\n\nRB no ofrece ninguna garantía y en ningún caso podrá ser considerada responsable por daños, pérdidas y costes u otras consecuencias, bajo ningún concepto (garantía por vicios, garantía por mal funcionamiento, responsabilidad del producto o legal, etc.), ocasionados por:\n\n•   uso de CALC, cálculos realizados, conformidad con la normativa vigente, con el proyecto u otras exigencias del Usuario;\n\n•   compatibilidad del hardware y software, virus, mal funcionamiento, defectos, errores o lagunas;\n\n•   falta de actualización de la hoja de cálculo o interrupción de la disponibilidad de la hoja de cálculo o terminación del contrato por cualquier motivo;\n\n•   infracción de derechos de propiedad intelectual de terceros.\n\nEl usuario confirma que ha comprendido y acepta las exclusiones de responsabilidad y las limitaciones de responsabilidad y reclamación de este Contrato. \n\nEl usuario también confirma que la hoja de cálculo está disponible gratuitamente, que las exclusiones y limitaciones son elementos fundamentales de este Contrato y que RB no pone su hoja de cálculo a disposición del usuario si las exclusiones o limitaciones se eliminan o modifican a favor del usuario en cuestión."}]
[]
[null,{"$f":"traduzioni!A205","v":"8. REEMBOLSO"}]
[]
[null,null,{"$f":"traduzioni!A206","v":"El usuario acepta eximir de toda responsabilidad e indemnizar a RB, sus sociedades afiliadas y sus funcionarios, directores, empleados, sucesores, y encargados (cada uno individualmente, \"Beneficiario\", colectivamente, \"Beneficiarios\") por los costes sufragados en relación con las reclamaciones presentadas por terceros por daños o pérdidas ocasionados por el uso de la hoja de cálculo por parte del usuario (incluidos, entre otros, honorarios y gastos de gestión sufragados por RB)."}]
[]
[null,{"$f":"traduzioni!A207","v":"9. DISPOSICIONES VARIAS"}]
[]
[null,null,{"$f":"traduzioni!A208","v":"Estas condiciones generales constituyen el acuerdo completo entre RB y el usuario por lo que respecta al asunto en cuestión y sustituyen todos los acuerdos anteriores, tanto orales como escritos, así como cualquier acuerdo entre RB y el usuario."}]
[]
[null,{"$f":"traduzioni!A209","v":"10. IDIOMA"}]
[]
[null,null,{"$f":"traduzioni!A210","v":"En caso de diferencias entre las versiones de estas condiciones en los distintos idiomas, el texto italiano es vinculante y prevalece con respecto a las traducciones."}]
[]
[null,{"$f":"traduzioni!A211","v":"11. DERECHO APLICABLE Y TRIBUNAL COMPETENTE"}]
[]
[null,null,{"$f":"traduzioni!A212","v":"Este acuerdo y cualquier relación entre las partes se rigen exclusivamente por el derecho italiano.\nCualquier controversia que surja entre las partes en relación con este acuerdo, que estas no sean capaces de resolver amigablemente, será competencia exclusiva de los tribunales de Bolzano."}]
[]
[null,{"$f":"traduzioni!A213","v":"12. PRIVACIDAD"}]
[]
[null,null,{"$f":"traduzioni!A214","v":"Véase la política de privacidad disponible en el enlace:"}]
[null,null,"https://www.rothoblaas.com/privacy-policy"]
[]
[{"$f":"traduzioni!A215","v":"ACEPTADA"}]

{"sheet":"GEOMETRY","index":3,"n_rows":95,"n_cols":46,"rows_kept":95,"merged":[[1,4,5,9],[7,3,10,3],[8,7,8,10],[9,7,9,10],[10,7,10,10],[12,3,14,3],[18,3,27,3],[29,3,33,3],[31,7,31,9],[33,8,33,10],[35,3,48,3],[50,3,58,3],[53,10,55,10],[60,3,63,3],[65,3,75,3],[70,10,72,10],[74,37,74,40],[74,42,74,45],[77,3,83,3],[85,3,90,3],[92,3,94,3],[92,10,94,10]]}
[]
[{"$nulls":4},{"$f":"traduzioni!A4","v":"CÁLCULO TC FUSION"}]
[]
[]
[]
[{"$nulls":10},"tc_fusion_calculator v. 1.10"]
[]
[{"$nulls":3},{"$f":"traduzioni!A5","v":"Información general "},null,null,{"$f":"traduzioni!A6","v":"Fecha"},{"$f":"TODAY()","v":"2024-09-12"},null,{"$f":"traduzioni!A216","v":"Idioma"},"ES"]
[{"$nulls":6},{"$f":"traduzioni!A7","v":"Proyecto"}]
[{"$nulls":6},{"$f":"traduzioni!A8","v":"Proyectista"}]
[{"$nulls":6},{"$f":"traduzioni!A9","v":"Conexión n.º"}]
[]
[{"$nulls":3},{"$f":"traduzioni!A10","v":"Normativa"},null,null,"TC-FUSION","ETA-22/0806 (2023/05)"]
[{"$nulls":6},{"$f":"traduzioni!A224","v":"Madera"},"EC 1995-1-1:2014"]
[{"$nulls":6},{"$f":"traduzioni!A225","v":"Hormigón"},"EC 1992-1-1:2015"]
[{"$nulls":6},"Numero efficace assiale (non necessario)","N","(eff.nr ax)"]
[{"$nulls":6},"Numero efficace a taglio (non necessario)","N","(eff.nr sh)"]
[]
[{"$f":"IF(K8=\"IT\",\"IT\",IF(K8=\"EN\",\"EN\"))","v":false},null,null,{"$f":"traduzioni!A13","v":"Solicitaciones"},null,null,{"$f":"traduzioni!A14","v":"Duración de la carga "},"Corta/Instantánea"]
[{"$nulls":4},"kmod",null,{"$f":"traduzioni!A226","v":"Coeficiente"},{"$f":"CLT!N12","v":{"v":1,"d":"1.0"}},null,"[-]"]
[{"$nulls":4},"b",null,{"$f":"traduzioni!A15","v":"Longitud de la unión"},1000,null,"[mm]"]
[]
[{"$nulls":4},"nyd",null,{"$f":"traduzioni!A16","v":"Acción axial paralela a la conexión"},0,null,"[kN]/[m]",{"$f":"IF(H23>0,traduzioni!A22,traduzioni!A23)","v":"- compresión"}]
[{"$nulls":4},"vxd",null,{"$f":"traduzioni!A17","v":"Corte perpendicular a la conexión, dirección-x"},0,null,"[kN]/[m]"]
[{"$nulls":4},"vzd",null,{"$f":"traduzioni!A18","v":"Corte perpendicular a la conexión, dirección-z"},0,null,"[kN]/[m]"]
[{"$nulls":4},"mxd",null,{"$f":"traduzioni!A19","v":"Momento flector paralelo a la conexión"},11.9,null,"[kNm]/[m]",{"$f":"IF(H26>0,traduzioni!A24,traduzioni!A25)","v":"+ fibras inferiores en tracción"}]
[{"$nulls":6},{"$f":"traduzioni!A20","v":"Fibras inferiores en tracción"},{"$f":"IF(H26>0,\"POS\",\"NEG\")","v":"POS"}]
[{"$nulls":4},"mxyd",null,{"$f":"traduzioni!A21","v":"Momento perpendicular a la conexión, plano-xz"},0,null,"[kNm]/[m]",{"$f":"traduzioni!A186","v":"(flexión de vigas de hormigón)"}]
[]
[{"$nulls":3},{"$f":"traduzioni!A32","v":"Composición del panel"},null,null,{"$f":"traduzioni!A33","v":"Clase"},"GL24h"]
[{"$nulls":6},{"$f":"traduzioni!A34","v":"Número de capas"},"L_7"]
[{"$nulls":6},{"$f":"traduzioni!A35","v":"Tipo"},"260mm - 7s - 40 40 30 40 30 40 40"]
[{"$nulls":6},{"$f":"traduzioni!A36","v":"Espesor"},{"$f":"VLOOKUP(H32,CLT!F24:H76,3,FALSE)","v":260},null,"[mm]"]
[{"$nulls":6},{"$f":"traduzioni!A37","v":"Orientación "},"L",{"$f":"IF($H$34=\"L\",traduzioni!A38,IF(H34=\"T\",traduzioni!A39))","v":"L-Fibras capas externas perpendiculares a la línea de unión"}]
[]
[{"$nulls":3},{"$f":"traduzioni!A40","v":"Tornillos"},null,null,{"$f":"traduzioni!A41","v":"Tipo de tornillo"},"VGS_11"]
[{"$nulls":7},"VGS_11_450"]
[{"$nulls":4},"d",null,{"$f":"traduzioni!A42","v":"Diámetro"},{"$f":"VLOOKUP(H36,SCREWS!E11:F14,2,FALSE)","v":11},null,"[mm]"]
[{"$nulls":4},"l",null,{"$f":"traduzioni!A43","v":"Longitud "},{"$f":"VLOOKUP(H37,SCREWS!X28:AJ98,3,FALSE)","v":450},null,"[mm]"]
[{"$nulls":4},"esup",null,{"$f":"traduzioni!A44","v":"Separación superior"},200,null,"[mm]",{"$f":"IF(H40<=300,IF(H40>10*H38,\"emin<esup<emax\",\"out of min/max spacing!\"))","v":"emin<esup<emax"}]
[{"$nulls":4},"einf",null,{"$f":"traduzioni!A45","v":"Separación inferior"},200,null,"[mm]",{"$f":"IF(H41<=300,IF(H41>10*H38,\"emin<einf<emax\",\"out of min/max spacing!\"))","v":"emin<einf<emax"}]
[{"$nulls":6},{"$f":"traduzioni!A46","v":"Tabla (Y/N)"},"N",20,"[mm]"]
[{"$nulls":4},"nsup",null,{"$f":"traduzioni!A47","v":"Número de tornillos superiores/metro"},{"$f":"H21/H40","v":{"v":5,"d":"5.0"}},null,"[-]/[m]"]
[{"$nulls":4},"ninf",null,{"$f":"traduzioni!A48","v":"Número de tornillos inferiores/metro"},{"$f":"H21/H41","v":{"v":5,"d":"5.0"}},null,"[-]/[m]"]
[{"$nulls":4},"lanc,cls",null,{"$f":"traduzioni!A49","v":"Longitud del anclaje mínima (hormigón)"},{"$f":"MAX(9*H38,100)","v":100},null,"[mm]"]
[{"$nulls":4},"l0,min",null,{"$f":"traduzioni!A50","v":"Longitud de superposición mínima (hormigón)"},{"$f":"MAX(14*H38,150)","v":154},null,"[mm]"]
[{"$nulls":4},"leff,min",null,{"$f":"traduzioni!A51","v":"Longitud de penetración mínima (timber)"},{"$f":"2.3*(SCREWS!D40*1000/(SCREWS!D41*SCREWS!E23))^0.5","v":{"v":60.502178096441845,"d":"61"}},null,"[mm]",{"$f":"IF(H74>(H47),\"leff>leff,min\",\"leff<leff,min\")","v":"leff>leff,min"},"(14) E8"]
[{"$nulls":4},"a4t",null,{"$f":"traduzioni!A52","v":"Distancia borde a4t"},45,null,"[mm]"]
[{"$nulls":4},"a4t min",null,{"$f":"traduzioni!A53","v":"Distancia mínima borde a4t"},{"$f":"6*H38","v":66},null,"[mm]",{"$f":"IF(H48<H49,\"a4<a4min\",\"a4>a4min\")","v":"a4<a4min"},"(4) E1"]
[]
[{"$nulls":3},{"$f":"traduzioni!A54","v":"Hormigón"},null,null,{"$f":"traduzioni!A55","v":"Clase de hormigón"},"C25/30",null,null,{"$f":"IF(H51=\"C20/25\",\"NOT COVERED BY ETA\",\"OK\")","v":"OK"}]
[{"$nulls":4},"dst",null,{"$f":"traduzioni!A56","v":"Diámetro estribos"},6,null,"[mm]"]
[{"$nulls":4},"dl",null,{"$f":"traduzioni!A57","v":"Diámetro barras longitudinales"},8,null,"[mm]"]
[{"$nulls":4},"agg",null,{"$f":"traduzioni!A58","v":"Diámetro áridos (*)"},10,null,"[mm]",{"$f":"traduzioni!A221","v":"(*) Para diámetros de los áridos superiores a 15 mm, evaluar las condiciones de vertido del hormigón"}]
[{"$nulls":6},{"$f":"traduzioni!A59","v":"Clase de exposición ambiental"},{"$f":"CONCRETE!G9","v":"XC1"}]
[{"$nulls":4},"cst",null,{"$f":"traduzioni!A60","v":"Recubrimiento mínimo estribos"},{"$f":"CONCRETE!H17","v":20},null,"[mm]"]
[{"$nulls":4},"cl",null,{"$f":"traduzioni!A61","v":"Recubrimiento mínimo barras longitudinales"},{"$f":"CONCRETE!H18","v":20},null,"[mm]"]
[{"$nulls":4},"c",null,{"$f":"traduzioni!A62","v":"Distancia eje barras longitudinales"},{"$f":"CONCRETE!H20","v":24},null,"[mm]"]
[{"$nulls":4},"lc,min",null,{"$f":"traduzioni!A63","v":"Anchura mínima dala"},{"$f":"H58+H58+H46","v":202},null,"[mm]"]
[]
[{"$nulls":3},{"$f":"traduzioni!A64","v":"Resistencias"},"fc0,d",null,{"$f":"traduzioni!A65","v":"Resistencia a la compresión madera (diseño)"},{"$f":"CLT!N18","v":{"v":19.200000000000003,"d":"19.2"}},null,"[MPa]"]
[{"$nulls":4},"fc,cls,d",null,{"$f":"traduzioni!A66","v":"Resistencia a la compresión hormigón (diseño)"},{"$f":"CONCRETE!H30","v":{"v":14.166666666666666,"d":"14.2"}},null,"[MPa]"]
[{"$nulls":4},"fc,d",null,{"$f":"traduzioni!A67","v":"min(T,CA)"},{"$f":"MIN(H61,H62)","v":{"v":14.166666666666666,"d":"14.2"}},null,"[MPa]"]
[{"$nulls":4},"fb",null,{"$f":"traduzioni!A68","v":"Tensión de adhesión"},{"$f":"VLOOKUP(H36,SCREWS!E11:H14,4,FALSE)","v":12.5},null,"[MPa]"]
[]
[{"$nulls":3},{"$f":"traduzioni!A69","v":"Geometría efectiva"},null,null,{"$f":"traduzioni!A70","v":"Distancia eje barras longitudinales"},{"$f":"H58+IF(H42=\"N\",(0),IF(H42=\"Y\",(I42)))","v":24},null,"[mm]"]
[{"$nulls":4},"lc",null,{"$f":"traduzioni!A71","v":"Longitud efectiva dala"},200,null,"[mm]"]
[{"$nulls":6},{"$f":"traduzioni!A72","v":"Longitud de superposición"},{"$f":"H67-2*CONCRETE!M14","v":160},null,"[mm]"]
[{"$nulls":6},{"$f":"traduzioni!A73","v":"Longitud de anclaje"},{"$f":"H68+CONCRETE!M14","v":180}]
[{"$nulls":6},{"$f":"traduzioni!A74","v":"Distancia desde el borde real tornillos"},{"$f":"MAX(H48,(H66+H53/2+H38/2))","v":45},null,"[mm]"]
[{"$nulls":6},{"$f":"traduzioni!A75","v":"Comprobación coherencia posición tornillos/barras"},{"$f":"IF(H70>=I71,\"YES >\",\"NO, INCREASE a4 to\")","v":"YES >"},{"$f":"IF(H42=\"N\",(H66+H53/2+H38/2+'CLT EDGE DISTANCE'!D15),IF(H42=\"Y\",(H66+H53/2+H38/2+'CLT EDGE DISTANCE'!D15)))","v":35.5},"[mm]",{"$f":"traduzioni!A81","v":"(*) Se supone que el tornillo penetra en la dala hasta la barra de armadura opuesta"}]
[{"$nulls":4},"hd",null,{"$f":"traduzioni!A76","v":"Distancia tornillos borde superior"},{"$f":"H33-H70","v":215},null,"[mm]"]
[{"$nulls":4},"lbc",null,{"$f":"traduzioni!A77","v":"Longitud rosca tornillo HORM (*)"},{"$f":"H67-CONCRETE!M14","v":180},null,"[mm]"]
[{"$nulls":4},"leff",null,{"$f":"traduzioni!A78","v":"Longitud rosca tornillo Madera"},{"$f":"H39-H73","v":270},null,"[mm]",{"$f":"IF(H74<(20*H38),\"l<lmin\",\"l>lmin\")","v":"l>lmin"},{"$nulls":27},"verifica strati per xsls",null,{"$f":"0.25*H33","v":65},"[mm]"]
[{"$nulls":4},"leff-10mm",null,{"$f":"traduzioni!A79","v":"Longitud eficaz rosca tornillo Madera"},{"$f":"H74-10","v":260},null,"[mm]",{"$nulls":27},"L",{"$nulls":4},"T"]
[{"$nulls":4},"y",null,{"$f":"traduzioni!A80","v":"Distancia entre tornillos superiores/inferiores"},{"$f":"H72-H48","v":170},null,"[mm]",{"$nulls":23},"t1",{"$f":"--MID(H32,14,2)","v":40},{"$f":"H34","v":"L"},null,{"$f":"IF(AJ76=\"L\",AI76,0)","v":40},{"$f":"AI76","v":40},{"$f":"IF(AM76<$AO$74,AM76,\"non compreso int\")","v":40},{"$f":"AN76*IF(AL76=0,0,1)","v":40},null,{"$f":"IF(AJ76=\"C\",AI76,0)","v":0},{"$f":"AM76","v":40},{"$f":"IF(AR76<$AO$74,AR76,\"non compreso int\")","v":40},{"$f":"AS76*IF(AQ76=0,0,1)","v":0}]
[{"$nulls":33},"t2",{"$f":"--MID(H32,14+3,2)","v":40},{"$f":"IF(AJ76=\"L\",\"T\")","v":"T"},null,0,{"$f":"AI77","v":40},{"$f":"IF(AM77+AN76<$AO$74,AM77,AO74-AN76)","v":25},{"$f":"AN77*IF(AL77=0,0,1)","v":0},null,{"$f":"IF(AJ77=\"C\",AI77,0)","v":0},{"$f":"AM77","v":40},{"$f":"IF(AR77+AS76<$AO$74,AR77,\"non compreso int\")","v":"non compreso int"},{"$f":"AS77*IF(AQ77=0,0,1)","v":{"$error":"#VALUE!"}}]
[{"$nulls":3},{"$f":"traduzioni!A82","v":"Comprobación"},"Fax,d",null,{"$f":"traduzioni!A83","v":"Acción máxima en un solo tornillo"},{"$f":"'CALCOLI STS (slab to slab)'!H83","v":{"v":11.172217602872172,"d":"11.2"}},null,"[kN]",{"$nulls":23},"t3",{"$f":"--MID(H32,14+3+3,2)","v":30},{"$f":"AJ76","v":"L"},null,30,{"$f":"AI78","v":30},{"$f":"IF(AM78+AN76+AN77<$AO$74,AM78,AO74-AN76-AN77)","v":0},{"$f":"AN78*IF(AL78=0,0,1)","v":0},null,0,30,{"$f":"IF(AR78+AS76+AS77<$AO$74,AR78,AO74-AS76-AS77)","v":{"$error":"#VALUE!"}},{"$f":"AS78*IF(AQ78=0,0,1)","v":{"$error":"#VALUE!"}}]
[{"$nulls":4},"R,ax,d",null,{"$f":"traduzioni!A84","v":"Resistencia axial un solo tornillo lado madera/acero"},{"$f":"'CALCOLI STS (slab to slab)'!H93","v":{"v":15.619848046965735,"d":"15.6"}},null,"[kN]",{"$nulls":23},"t4",{"$f":"--MID(H32,14+3+3+3,2)","v":40},{"$f":"IF(AJ76=\"L\",\"T\")","v":"T"},null,0,40,{"$f":"IF(AM79+AN76+AN77+AN78<$AO$74,AM79,AO74-AN76-AN77-AN78)","v":0},{"$f":"AN79*IF(AL79=0,0,1)","v":0},null,0,40,{"$f":"IF(AR79+AS76+AS77+AS78<$AO$74,AR79,AO74-AS76-AS77-AS78)","v":{"$error":"#VALUE!"}},{"$f":"AS79*IF(AQ79=0,0,1)","v":{"$error":"#VALUE!"}}]
[{"$nulls":4},"h",null,{"$f":"traduzioni!A85","v":"Coeficiente de trabajo esfuerzo axial "},{"$f":"'CALCOLI STS (slab to slab)'!H95","v":{"v":71.52577649462123,"d":"72"}},null,"[%]",{"$f":"IF(H80<100,\"OK\",\"NO\")","v":"OK"},{"$nulls":22},"t5",{"$f":"--MID(H32,14+3+3+3+3,2)","v":30},{"$f":"AJ76","v":"L"},null,30,30,null,0,null,0,30,null,{"$f":"AS80*IF(AQ80=0,0,1)","v":0}]
[{"$nulls":4},"Flat,d",null,{"$f":"traduzioni!A86","v":"Máxima acción de corte"},{"$f":"'CALCOLI STS (slab to slab)'!H91","v":{"v":0,"d":"0.0"}},null,"[kN]",{"$nulls":23},"t6",{"$f":"--MID(H32,14+3+3+3+3+3,2)","v":40},{"$f":"IF(AJ76=\"L\",\"T\")","v":"T"},null,0,40,null,0,null,0,40,null,{"$f":"AS81*IF(AQ81=0,0,1)","v":0}]
[{"$nulls":4},"R,v,d",null,{"$f":"traduzioni!A87","v":"Resistencia al corte de un solo tornillo "},{"$f":"'CALCOLI STS (slab to slab)'!H94","v":{"v":4.209713784863423,"d":"4.2"}},null,"[kN]",{"$nulls":23},"t7",{"$f":"--MID(H32,14+3+3+3+3+3+3,2)","v":40},{"$f":"AJ76","v":"L"},null,40,40,null,0,null,0,40,null,0]
[{"$nulls":4},"h",null,{"$f":"traduzioni!A88","v":"Coeficiente de trabajo esfuerzo corte "},{"$f":"'CALCOLI STS (slab to slab)'!H96","v":0},null,"[%]",{"$f":"IF(H83<100,\"OK\",\"NO\")","v":"OK"},{"$nulls":22},"t8",{"$f":"--MID(H32,14+3+3+3+3+3+3+3,2)","v":{"$error":"#VALUE!"}},{"$f":"IF(AJ76=\"L\",\"T\")","v":"T"},null,0,{"$error":"#VALUE!"},null,0,null,0,{"$error":"#VALUE!"},null,0]
[{"$nulls":4},"h",null,{"$f":"traduzioni!A89","v":"Coeficiente de trabajo combinación corte tracción "},{"$f":"'CALCOLI STS (slab to slab)'!H97","v":{"v":51.15936703158511,"d":"51"}},null,"[%]",{"$f":"IF(H84<100,\"OK\",\"NO\")","v":"OK"},{"$nulls":22},"t9",{"$f":"--MID(H32,14+3+3+3+3+3+3+3+3,2)","v":{"$error":"#VALUE!"}},{"$f":"AJ76","v":"L"},null,{"$error":"#VALUE!"},{"$error":"#VALUE!"},null,{"$error":"#VALUE!"},null,0,{"$error":"#VALUE!"},null,0]
[{"$nulls":33},"t10",{"$f":"--MID(H32,14+3+3+3+3+3+3+3+3+3,2)","v":{"$error":"#VALUE!"}},{"$f":"IF(AJ76=\"L\",\"T\")","v":"T"},null,0,{"$error":"#VALUE!"},null,0,null,0,{"$error":"#VALUE!"},null,0]
[{"$nulls":3},{"$f":"traduzioni!A90","v":"Comprobación anclaje lado hormigón"},null,null,{"$f":"traduzioni!A91","v":"Longitud efectiva"},{"$f":"'CALCOLI STS (slab to slab)'!H101","v":180},null,"[mm]",{"$nulls":23},"t11",{"$f":"--MID(H32,14+3+3+3+3+3+3+3+3+3+3,2)","v":{"$error":"#VALUE!"}},{"$f":"AJ76","v":"L"},null,{"$error":"#VALUE!"},{"$error":"#VALUE!"},null,{"$f":"AN86*IF(AL86=0,0,1)","v":{"$error":"#VALUE!"}},null,0,{"$error":"#VALUE!"},null,{"$f":"AS86*IF(AQ86=0,0,1)","v":0}]
[{"$nulls":4},"lbd,min ",null,{"$f":"traduzioni!A92","v":"Longitud mínimo anclaje"},{"$f":"'CALCOLI STS (slab to slab)'!H102","v":100},null,"[mm]",{"$nulls":28},"a(x<t1)",{"$f":"AN76/2","v":20},"[mm]",null,null,"a(x<t1)",{"$f":"AS76+AS77/2","v":{"$error":"#VALUE!"}},"[mm]"]
[{"$nulls":4},"h",null,{"$f":"traduzioni!A93","v":"Coeficiente de trabajo "},{"$f":"'CALCOLI STS (slab to slab)'!H103","v":{"v":55.55555555555556,"d":"56"}},null,"[%]",{"$f":"IF(H88<100,\"OK\",\"NO\")","v":"OK"},{"$nulls":27},"a(x>t1)",{"$f":"0.5*((AO78^2)+(2*(AO78)*(AO78+AO76))+(AO76^2))/(AO76+AO78)","v":20},"[mm]",null,null,"a(x>t1)",{"$f":"+AS76+(0.5*((AT79^2)+(2*(AT79)*(AT79+AT77))+(AT77^2))/(AT77+AT79))","v":{"$error":"#VALUE!"}},"[mm]"]
[{"$nulls":6},{"$f":"traduzioni!A94","v":"Longitud efectiva"},{"$f":"'CALCOLI STS (slab to slab)'!H107","v":160},null,"[mm]",{"$nulls":29},{"$f":"MIN(AN87,AN88)","v":20},"[mm]",{"$nulls":3},{"$f":"MIN(AS87,AS88)","v":{"$error":"#VALUE!"}},"[mm]"]
[{"$nulls":4}," l0,min",null,{"$f":"traduzioni!A95","v":"Longitud mínima solapamiento"},{"$f":"'CALCOLI STS (slab to slab)'!H106","v":154},null,"[mm]"]
[{"$nulls":4}," h",null,{"$f":"traduzioni!A96","v":"Coeficiente de trabajo"},{"$f":"'CALCOLI STS (slab to slab)'!H108","v":{"v":96.25,"d":"96"}},null,"[%]",{"$f":"IF(H91<100,\"OK\",\"NO\")","v":"OK"}]
[]
[{"$nulls":3},{"$f":"traduzioni!A97","v":"Rigideces"},"kser",null,{"$f":"traduzioni!A98","v":"Rigidez al corte"},{"$f":"'CALCOLI STS (slab to slab)'!H110","v":{"v":19283.483171659776,"d":"19283"}},null,{"$f":"'CALCOLI STS (slab to slab)'!J110","v":"[N/mm/m]"},{"$f":"traduzioni!A222","v":"(*) Duplicar la rigidez en caso de conexión no simétrica con un solo plano de conexión"}]
[{"$nulls":4},"kax",null,{"$f":"traduzioni!A99","v":"Rigidez axial"},{"$f":"'CALCOLI STS (slab to slab)'!H122","v":302500},null,{"$f":"'CALCOLI STS (slab to slab)'!J122","v":"[N/mm/m]"}]
[{"$nulls":4},"Kj",null,{"$f":"traduzioni!A100","v":"Rigidez rotacional (*)"},{"$f":"'CALCOLI STS (slab to slab)'!H129","v":{"v":5203.75567101014,"d":"5204"}},null,{"$f":"'CALCOLI STS (slab to slab)'!J129","v":"[kNmm/Rad/m]"}]

{"sheet":"CALCOLI STS (slab to slab)","index":4,"n_rows":129,"n_cols":36,"rows_kept":129,"merged":[[1,3,13,3],[15,3,19,3],[17,7,17,10],[21,3,32,3],[35,3,43,3],[45,3,49,3],[51,3,58,3],[62,4,66,9],[68,27,68,30],[72,3,79,3],[81,3,90,3],[81,10,83,10],[92,3,96,3],[98,3,107,3],[109,3,128,3],[126,10,128,10]]}
[]
[{"$nulls":3},"Sollecitazione",null,null,"Durata carico",{"$f":"GEOMETRY!H19","v":"Corta/Instantánea"},{"$nulls":3},{"$f":"GEOMETRY!H14","v":"EC 1995-1-1:2014"}]
[]
[{"$nulls":4},"b",null,"Lunghezza giunto",{"$f":"GEOMETRY!H21","v":1000},null,"[mm]"]
[]
[{"$nulls":4},"Ny",null,"Azione assiale (perpendicolare al giunto)",{"$f":"GEOMETRY!H23","v":0},null,"[kN]/[m]"]
[{"$nulls":4},"Vx",null,"Taglio in piano",{"$f":"GEOMETRY!H24","v":0},null,"[kN]/[m]"]
[{"$nulls":4},"Vz",null,"Taglio fuoripiano",{"$f":"GEOMETRY!H25","v":0},null,"[kN]/[m]"]
[{"$nulls":4},"Mx",null,"Momento flettente (parallelo al giunto)",{"$f":"GEOMETRY!H26","v":11.9},null,"[kNm]/[m]"]
[{"$nulls":6},{"$f":"IF(H10=\"POS\",\"Fibre inferiori tese\", IF(H10=\"NEG\",\"Fibre superiori tese\",\"NO\"))","v":"Fibre inferiori tese"},{"$f":"GEOMETRY!H27","v":"POS"}]
[]
[]
[]
[{"$nulls":4},"Mxy ",null,"Torsione",{"$f":"GEOMETRY!H28","v":0},null,"[kNm]/[m]"]
[]
[{"$nulls":3},"Composizione pannello",null,null,"Classe",{"$f":"GEOMETRY!H30","v":"GL24h"}]
[{"$nulls":6},"Nr strati",{"$f":"GEOMETRY!H31","v":"L_7"}]
[{"$nulls":6},"Tipo",{"$f":"GEOMETRY!H32","v":"260mm - 7s - 40 40 30 40 30 40 40"}]
[{"$nulls":6},"Spessore",{"$f":"GEOMETRY!H33","v":260},null,"[mm]"]
[{"$nulls":6},"Orientamento ",{"$f":"GEOMETRY!H34","v":"L"}]
[]
[{"$nulls":3},"Viti",null,null,"Tipo di vite",{"$f":"GEOMETRY!H36","v":"VGS_11"},null,"[mm]"]
[{"$nulls":7},{"$f":"GEOMETRY!H37","v":"VGS_11_450"},null,"[mm]"]
[{"$nulls":4},"d",null,"diametro",{"$f":"GEOMETRY!H38","v":11},null,"[mm]"]
[{"$nulls":4},"l",null,"lunghezza ",{"$f":"GEOMETRY!H39","v":450}]
[{"$nulls":4},"lanc,cls",null,"lunghezza ancoraggio minima ",{"$f":"GEOMETRY!H45","v":100},null,"[mm]"]
[{"$nulls":4},"l0,min",null,"lunghezza di sovrapposizione minima",{"$f":"GEOMETRY!H46","v":154},null,"[mm]"]
[{"$nulls":4},"a4t",null,"Distanza minima bordo a4t",{"$f":"GEOMETRY!H48","v":45},null,"[mm]"]
[{"$nulls":4},"a4t min",null,"Distanza minima bordo a4t",{"$f":"GEOMETRY!H49","v":66},null,"[mm]",{"$f":"IF(H29<(5*H24),\"a4<a4min\",\"a4>a4min\")","v":"a4>a4min"},"(4.0 E1)"]
[{"$nulls":4},"esupeff",null,"Spaziatura esup",{"$f":"IF(GEOMETRY!H16=\"N\",GEOMETRY!H40,IF(GEOMETRY!H16=\"S\",(1000/MAX(GEOMETRY!H43*0.9,GEOMETRY!H43^0.9))))","v":200},null,"[mm]"]
[{"$nulls":4},"einfeff",null,"Spaziatura einf",{"$f":"IF(GEOMETRY!H16=\"N\",GEOMETRY!H41,IF(GEOMETRY!H16=\"S\",(1000/MAX(GEOMETRY!H44*0.9,GEOMETRY!H44^0.9))))","v":200},null,"[mm]"]
[{"$nulls":4},"nsup",null,"numero di viti superiori/metro",{"$f":"GEOMETRY!H43","v":5},null,"[-]/[m]"]
[{"$nulls":4},"ninf",null,"numero di viti inferiori/metro",{"$f":"GEOMETRY!H44","v":5},null,"[-]/[m]",{"$nulls":6},"Meccanismo di rottura viti"]
[{"$nulls":18},"Caratt","Progetto","Sperimentale"]
[{"$nulls":16},"ASSIALE","Acciaio trazione netta",{"$f":"T35*SCREWS!AE14","v":38},{"$f":"SCREWS!I31","v":{"v":30.4,"d":"30"}},{"$f":"S35","v":38}]
[{"$nulls":3},"Calcestruzzo",null,null,"Classe calcestuzzo",{"$f":"GEOMETRY!H51","v":"C25/30"},{"$nulls":9},"Legno estrazione filetto",{"$f":"T36*SCREWS!AE17/SCREWS!AE18","v":{"v":27.564437729939534,"d":"28"}},{"$f":"SCREWS!I32","v":{"v":15.619848046965735,"d":"16"}},{"$f":"S36*SCREWS!AZ18","v":{"v":41.346656594909305,"d":"41"}}]
[{"$nulls":4},"dst",null,"Diametro staffe",{"$f":"GEOMETRY!H52","v":6},null,"[mm]",{"$nulls":7},"Calcestruzzo estrazione",{"$f":"T37*SCREWS!AE17/SCREWS!AE19","v":{"v":69.11503837897544,"d":"69"}},{"$f":"SCREWS!D32","v":{"v":46.0766922526503,"d":"46"}},{"$f":"S37","v":{"v":69.11503837897544,"d":"69"}}]
[{"$nulls":4},"dl",null,"Diametro ferri long",{"$f":"GEOMETRY!H53","v":8},null,"[mm]"]
[{"$nulls":4},"agg",null,"Diam aggregato",{"$f":"GEOMETRY!H54","v":10},null,"[mm]",{"$nulls":6},"TAGLIO ","Tranciamento acciao viti",{"$f":"T39*SCREWS!AE14","v":{"v":17.10597199879642,"d":"17"}},{"$f":"SCREWS!I43","v":{"v":13.684777599037137,"d":"14"}},{"$f":"S39","v":{"v":17.10597199879642,"d":"17"}}]
[{"$nulls":6},"Classe strutturale",{"$f":"GEOMETRY!H55","v":"XC1"},{"$nulls":9},"Rottura lato legno (Johansen)",{"$f":"T40*SCREWS!AE9/SCREWS!AE10","v":{"v":5.683113609565622,"d":"6"}},{"$f":"SCREWS!D48*H28/H29","v":{"v":4.209713784863423,"d":"4.2"}},{"$f":"S40*SCREWS!AZ18","v":{"v":8.524670414348432,"d":"9"}}]
[{"$nulls":4},"cst",null,"Copriferro minimo staff",{"$f":"GEOMETRY!H56","v":20},null,"[mm]",{"$nulls":7},"Failure mode according to EN1995",null,{"$f":"SCREWS!$F$48","v":"e"},{"$nulls":3},{"$f":"IF(T41=\"e\",\"OK Annex E8\",\"NO\")","v":"OK Annex E8"}]
[{"$nulls":4},"cl",null,"Copriferro minimo long",{"$f":"GEOMETRY!H57","v":20},null,"[mm]",{"$nulls":7},"leff min (for ductile mode)",null,{"$f":"2.3*(SCREWS!$D$40*10^3/(SCREWS!$D$41*SCREWS!$E$23))^0.5","v":{"v":60.502178096441845,"d":"61"}},{"$f":"IF(T42<V42,\"<\",\">\")","v":"<"},{"$f":"H59","v":260},"[mm]",{"$f":"IF(T42<V42,\"OK Annex E8\",\"NO\")","v":"OK Annex E8"}]
[{"$nulls":4},"c",null,"Distanza asse ferri longitudinali",{"$f":"GEOMETRY!H58","v":24},null,"[mm]"]
[{"$nulls":4},"lc",null,"larghezza cordolo lc,min",{"$f":"GEOMETRY!H59","v":202},null,"[mm]",{"$nulls":6},"assumiamo che la testa della vite sia in corrispondenza del filo esterno della staffa"]
[]
[{"$nulls":3},"Resistenze","fc0,d",null,"Resistenza a compressione legno (design)",{"$f":"GEOMETRY!H61","v":19.200000000000003},null,"[MPa]"]
[{"$nulls":4},"fc,cls,d",null,"Resistenza a compressione CLS (design)",{"$f":"GEOMETRY!H62","v":{"v":14.166666666666666,"d":"14.2"}},null,"[MPa]"]
[{"$nulls":4},"fc,d",null,"min(T,CA)",{"$f":"GEOMETRY!H63","v":{"v":14.166666666666666,"d":"14.2"}},null,"[MPa]"]
[{"$nulls":4},"fb",null,"Tensione di aderenza",{"$f":"GEOMETRY!H64","v":12.5},null,"[MPa]"]
[]
[]
[{"$nulls":3},"Geometria effettiva",null,null,"Distanza asse ferri longitudinali",{"$f":"GEOMETRY!H66","v":24},null,"[mm]"]
[{"$nulls":6},"Larghezza effettiva cordolo lc",{"$f":"GEOMETRY!H67","v":200},null,"[mm]"]
[{"$nulls":6},"Lunghezza di sovrapposizione",{"$f":"GEOMETRY!H68","v":160},null,"[mm]"]
[{"$nulls":6},"Distanza dal bordo reale viti",{"$f":"GEOMETRY!H70","v":45},null,"[mm]"]
[{"$nulls":4},"hd",null,"Distanza viti lembo superiore",{"$f":"GEOMETRY!H72","v":215},null,"[mm]"]
[{"$nulls":4},"lbc",null,"Lunghezza filetto vite CA",{"$f":"GEOMETRY!H73","v":180},null,"[mm]"]
[{"$nulls":4},"leff",null,"Lunghezza filetto vite Legno",{"$f":"GEOMETRY!H74","v":270},null,"[mm]"]
[{"$nulls":4},"leff-10mm",null,"Lunghezza efficace filetto vite Legno",{"$f":"GEOMETRY!H75","v":260},null,"[mm]"]
[{"$nulls":4},"y",null,"Distanza viti superiori/inferiori",{"$f":"GEOMETRY!H76","v":170},null,"[mm]"]
[]
[]
[{"$nulls":4},{"$f":"CONCATENATE(GEOMETRY!E2,\" - \",traduzioni!A82)","v":"CÁLCULO TC FUSION - Comprobación"}]
[]
[]
[]
[{"$nulls":10},"tc_fusion_calculator v. 1.10"]
[{"$nulls":28},"verifica strati per xsls",null,{"$f":"0.25*H19","v":65},"[mm]"]
[{"$nulls":23},{"$f":"IF(--MID(GEOMETRY!H31,3,1)=1,--MID(GEOMETRY!H31,3,2),--MID(GEOMETRY!H31,3,1))","v":7},{"$nulls":3},{"$f":"H20","v":"L"},{"$nulls":3},"area","dist"]
[{"$nulls":21},1,{"$f":"IF(V70>$X$69,0,1)","v":1},{"$f":"IF(W70=1,\"t1\",\"\")","v":"t1"},{"$f":"W70*IF(X70=\"\",0,IF(--MID(GEOMETRY!$H$31,3,1)=1,--MID(GEOMETRY!$H$32,15,2),--MID(GEOMETRY!$H$32,14,2)))","v":40},{"$f":"H20","v":"L"},null,{"$f":"IF(Z70=\"L\",Y70,0)","v":40},{"$f":"Y70","v":40},{"$f":"IF(AC70<$AE$68,AC70,\"non compreso int\")","v":40},{"$f":"AD70*IF(AB70=0,0,1)","v":40},{"$f":"AE70","v":40},{"$f":"Y70/2","v":20},{"$f":"AF70*AG70","v":800}]
[{"$nulls":21},2,1,{"$f":"IF(W71=1,\"t2\",\"\")","v":"t2"},{"$f":"W71*IF(X71=\"\",0,IF(--MID(GEOMETRY!$H$31,3,1)=1,--MID(GEOMETRY!$H$32,15+3,2),--MID(GEOMETRY!$H$32,14+3,2)))","v":40},{"$f":"IF(Z70=\"L\",\"T\",\"L\")","v":"T"},null,{"$f":"IF(Z71=\"L\",Y71,0)","v":0},{"$f":"Y71","v":40},{"$f":"IF(AC71+AD70<$AE$68,AC71,AE68-AD70)","v":25},{"$f":"AD71*IF(AB71=0,0,1)","v":0},{"$f":"AE71","v":0},{"$f":"Y71+AF71/2","v":40},{"$f":"AF71*AG71","v":0}]
[{"$nulls":21},3,1,{"$f":"IF(W72=1,\"t3\",\"\")","v":"t3"},{"$f":"W72*IF(X72=\"\",0,IF(--MID(GEOMETRY!$H$31,3,1)=1,--MID(GEOMETRY!$H$32,15+6,2),--MID(GEOMETRY!$H$32,14+6,2)))","v":30},"L",null,{"$f":"IF(Z72=\"L\",Y72,0)","v":30},{"$f":"Y72","v":30},{"$f":"IF(AC72+AD70+AD71<$AE$68,AC72,AE68-AD70-AD71)","v":0},{"$f":"AD72*IF(AB72=0,0,1)","v":0},{"$f":"AE72","v":0},{"$f":"Y71+AF72/2","v":40},{"$f":"AF72*AG72","v":0}]
[{"$nulls":3},{"$f":"traduzioni!A101","v":"Cálculo eje neutro - Flexión"},"mxd",null,{"$f":"traduzioni!A102","v":"Momento de flexión respecto a los tornillos "},{"$f":"H9+H6*((H19/2-H55)/1000)","v":11.9},null,"[kNm]",{"$nulls":11},4,1,{"$f":"IF(W73=1,\"t4\",\"\")","v":"t4"},{"$f":"W73*IF(X73=\"\",0,IF(--MID(GEOMETRY!$H$31,3,1)=1,--MID(GEOMETRY!$H$32,15+9,2),--MID(GEOMETRY!$H$32,14+9,2)))","v":40},"T",null,0,40,{"$f":"IF(AC73+AD70+AD71+AD72<$AE$68,AC73,AE68-AD70-AD71-AD72)","v":0},{"$f":"AD73*IF(AB73=0,0,1)","v":0},0,{"$f":"Y72+AF73/2","v":30},0]
[{"$nulls":4},"x",null,{"$f":"traduzioni!A103","v":"Eje neutro "},{"$f":"IF(GEOMETRY!H34=\"L\",IF(U84<Y70,U84,IF(U84>Y70,U85,IF(U85>(Y70+Y71+Y72),\"NOT POSSIBLE\"))),IF(GEOMETRY!H34=\"T\",IF(Z84<Y70,Z84,IF(Z84>Y70,Z85,IF(Z85>(Y70+Y71+Y72),\"NOT POSSIBLE\"))),0))","v":{"v":3.9431356245431175,"d":"3.9"}},null,"[mm]",null,"(5) E4 or (6) E5",{"$nulls":6},"Analitica",null,null,5,1,{"$f":"IF(W74=1,\"t5\",\"\")","v":"t5"},{"$f":"W74*IF(X74=\"\",0,IF(--MID(GEOMETRY!$H$31,3,1)=1,--MID(GEOMETRY!$H$32,15+12,2),--MID(GEOMETRY!$H$32,14+12,2)))","v":30},"L",{"$f":"--MID(GEOMETRY!$H$32,11+12,2)","v":40},30,30,null,0,0,40,0]
[{"$nulls":7},{"$f":"IF(H74<Y70,\"x<t1\",IF(H74>Y70,\"x>t1\",0))","v":"x<t1"},{"$nulls":10},{"$f":"H56*(1-(1-((2*H73*1000+H6*1000*(2*H56-H19))/(H48*1*H56^2)))^0.5)","v":{"v":3.943135624543124,"d":"3.94"}},null,null,6,1,{"$f":"IF(W75=1,\"t6\",\"\")","v":"t6"},{"$f":"W75*IF(X75=\"\",0,IF(--MID(GEOMETRY!$H$31,3,1)=1,--MID(GEOMETRY!$H$32,15+15,2),--MID(GEOMETRY!$H$32,14+15,2)))","v":40},"T",{"$f":"--MID(GEOMETRY!$H$32,11+12,2)","v":40},0,{"$f":"Y75","v":40},null,0,0,30,0]
[{"$nulls":4},"x1",null,{"$f":"traduzioni!A104","v":"Parte comprimida primera lámina "},{"$f":"IF(H20=\"L\",IF(H75=\"x<t1\",H74,IF(H75=\"x>t1\",Y70)),IF(H20=\"T\",I76,))","v":{"v":3.9431356245431175,"d":"3.9"}},{"v":0,"d":"0.0"},"[mm]",{"$nulls":11},7,1,{"$f":"IF(W76=1,\"t7\",\"\")","v":"t7"},{"$f":"W76*IF(X76=\"\",0,IF(--MID(GEOMETRY!$H$31,3,1)=1,--MID(GEOMETRY!$H$32,15+18,2),--MID(GEOMETRY!$H$32,14+18,2)))","v":40},"L",null,40,40,null,0,0,40,0]
[{"$nulls":4},"t2",null,{"$f":"traduzioni!A105","v":"Parte comprimida segunda lámina "},{"$f":"IF(H20=\"L\",IF(H75=\"x<t1\",0,Y71),IF(H20=\"T\",I77,))","v":{"v":0,"d":"0.0"}},{"$f":"IF(Z84>Y71,\"non implementato\",Z84)","v":{"v":4.867698540224296,"d":"4.9"}},"[mm]",{"$nulls":11},8,0,{"$f":"IF(W77=1,\"t8\",\"\")","v":""},{"$f":"W77*IF(X77=\"\",0,IF(--MID(GEOMETRY!$H$31,3,1)=1,--MID(GEOMETRY!$H$32,15+21,2),--MID(GEOMETRY!$H$32,14+21,2)))","v":0},"T",null,0,0,null,0,0,40,0]
[{"$nulls":4},"x3",null,{"$f":"traduzioni!A106","v":"Parte comprimida tercera lámina "},{"$f":"IF(H20=\"L\",IF(H75=\"x<t1\",0,((H56-Y70-Y71)-((H56-Y70-Y71)^2+2*Y70*(H56-Y70/2)-(2*H73*1000*1000/H4/H48))^0.5)),IF(H20=\"T\",I78,))","v":{"v":0,"d":"0.0"}},{"v":0,"d":"0.0"},"[mm]",{"$nulls":11},9,0,{"$f":"IF(W78=1,\"t9\",\"\")","v":""},{"$f":"W78*IF(X78=\"\",0,IF(--MID(GEOMETRY!$H$31,3,1)=1,--MID(GEOMETRY!$H$32,15+24,2),--MID(GEOMETRY!$H$32,14+24,2)))","v":0},"L",null,0,0,null,0,0,0,0]
[{"$nulls":4},"a",null,{"$f":"traduzioni!A107","v":"Posición resultante "},{"$f":"IF(H20=\"L\",IF(U84<Y70,(H76/2),(0.5*(H78^2+2*H78*(H77+H76)+H76^2)/(H76+H78))),IF(H20=\"T\",I79,))","v":{"v":1.9715678122715588,"d":"2"}},{"$f":"IF(Z84<Y71,(Y70+Z84/2),\"non implementato\")","v":{"v":42.43384927011215,"d":"42"}},"[mm]",null,"E5/E6",{"$nulls":9},10,0,{"$f":"IF(W79=1,\"t10\",\"\")","v":""},{"$f":"W79*IF(X79=\"\",0,IF(--MID(GEOMETRY!$H$31,3,1)=1,--MID(GEOMETRY!$H$32,15+27,2),--MID(GEOMETRY!$H$32,14+27,2)))","v":0},"T",null,0,0,null,0,0,0,0]
[{"$nulls":4},"z",null,{"$f":"traduzioni!A108","v":"Brazo de palanca"},{"$f":"IF(H20=\"L\",H56-H79,IF(H20=\"T\",H56-I79,\"NO\"))","v":{"v":213.02843218772844,"d":"213"}},null,"[mm]",null,"E5/E6",{"$nulls":9},11,0,{"$f":"IF(W80=1,\"t11\",\"\")","v":""},{"$f":"W80*IF(X80=\"\",0,IF(--MID(GEOMETRY!$H$31,3,1)=1,--MID(GEOMETRY!$H$32,15+30,2),--MID(GEOMETRY!$H$32,14+30,2)))","v":0},"L",null,0,0,null,{"$f":"AD80*IF(AB80=0,0,1)","v":0},0,0,0]
[{"$nulls":28},"somma",null,{"$f":"SUM(AE70:AE80)","v":40},{"$f":"SUM(AF70:AF80)","v":40},{"$f":"SUM(AG70:AG80)","v":280},{"$f":"SUM(AH70:AH80)","v":800}]
[{"$nulls":3},{"$f":"traduzioni!A109","v":"Cálculo esfuerzos"},null,null,{"$f":"traduzioni!A110","v":"Acción máxima en todos los tornillos"},{"$f":"(H9/(H80/1000)+H6)","v":{"v":55.86108801436085,"d":"56"}},null,"[kN]",{"$f":"traduzioni!A119","v":"(*) Se considera que la tracción es absorbida únicamente por los tornillos en la línea inferior"},{"$f":"IF(H10=\"POS\",traduzioni!A120, IF(H10=\"NEG\",traduzioni!A121,\"NO\"))","v":"Fibras inferiores en tracción"},{"$nulls":5},{"$f":"IF(GEOMETRY!H34=\"L\",1,IF(GEOMETRY!H34=\"T\",IF(Z84<Y70,2,0)))","v":1},null,{"$f":"IF(U84<Y70,\"Set I annex E4\",IF(U84>Y70,\"Set II annexE5\",IF(U85>(Y70+Y71+Y72),\"NOT POSSIBLE\")))","v":"Set I annex E4"}]
[{"$nulls":4},"Fax,d",null,{"$f":"traduzioni!A111","v":"Acción máxima en un solo tornillo (*)"},{"$f":"(H9/(H80/1000)+H6)*((IF(H10=\"POS\",H31, IF(H10=\"NEG\",H30,\"NO\")))/1000)","v":{"v":11.172217602872172,"d":"11"}},null,"[kN]",null,"(7) E6",{"$nulls":5},{"$f":"IF(GEOMETRY!H34=\"L\",1,IF(GEOMETRY!H34=\"T\",IF(Z84<Y70,2,0)))","v":1}]
[{"$nulls":19},"I set",{"$f":"H56-(((H48*(H56)^2)-(2*H73*1000))/H48)^0.5","v":{"v":3.9431356245431175,"d":"3.9"}},"mm",null,null,"I set",{"$f":"(H56-Y70)-(((H48*(H56-Y70)^2)-(2*H73*1000))/H48)^0.5","v":4.867698540224296}]
[{"$nulls":4},"Flat,sup,x",null,{"$f":"traduzioni!A112","v":"Acción máxima tornillos dentro del plano en un solo tornillo superior"},{"$f":"(((ABS(H14)/(H60*10^-3))+(H32/(H32+H33))*ABS(H7))*H30)/1000","v":{"v":0,"d":"0.0"}},null,"[kN]",null,"(8) E7",{"$nulls":7},"II set",{"$f":"((Y70+Y71+((H56-Y70-Y71)-((H56-Y70-Y71)^2+2*Y70*(H56-Y70/2)-(2*H73*1000*1000/1000/H48))^0.5)))","v":{"v":35.709732556393334,"d":"35.7097"}},"mm",null,null,"II set",{"$f":"((Y70+Y71+((H56-Y70-Y71)-((H56-Y70-Y71)^2+2*Y70*(H56-Y70/2)-(2*H73*1000*1000/1000/H48))^0.5)))","v":35.709732556393334},null,null,"a(x<t1)",{"$f":"AD70/2","v":20},"[mm]","min zona comp",{"$f":"IF(AB69=\"T\",AF71,AF70/2)","v":20},"mm",{"$f":"MIN(AG85,AG86)","v":20},"mm"]
[{"$nulls":4},"Flat,inf,x",null,{"$f":"traduzioni!A113","v":"Acción máxima tornillos dentro del plano en un solo tornillo inferior"},{"$f":"(((ABS(H14)/(H60*10^-3))+(H33/(H32+H33))*ABS(H7))*H31)/1000","v":{"v":0,"d":"0.0"}},null,"[kN]",null,"(9) E7",{"$nulls":16},"a(x>t1)",{"$f":"AH81/AF81","v":20},"[mm]",null,{"$f":"AF81","v":40},"mm"]
[{"$nulls":4},"Flat,sup,z",null,{"$f":"traduzioni!A114","v":"Acción máxima tornillos fuera del plano en un solo tornillo superior"},{"$f":"((H32/(H32+H33))*H8)*(H30/1000)","v":{"v":0,"d":"0.0"}},null,"[kN]",null,"(10) E7",{"$nulls":17},{"$f":"IF(AB69=\"T\",AD86,IF(AI85=AG85,AD85,IF(AI85=AG86,AD86)))","v":20},"[mm]"]
[{"$nulls":4},"Flat,inf,z",null,{"$f":"traduzioni!A115","v":"Acción máxima tornillos fuera del plano en un solo tornillo inferior"},{"$f":"((H33/(H32+H33))*H8)*(H31/1000)","v":{"v":0,"d":"0.0"}},null,"[kN]",null,"(11) E7"]
[{"$nulls":4},"Flat,sup",null,{"$f":"traduzioni!A116","v":"Acción combinada en un solo tornillo superior"},{"$f":"(H85^2+H87^2)^0.5","v":{"v":0,"d":"0.0"}},null,"[kN]",null,"(12) E7",{"$nulls":8},"FROM EQUILIBRIUM L PAN:",{"$nulls":3},"FROM EQUILIBRIUM L PAN:"]
[{"$nulls":4},"Flat,inf",null,{"$f":"traduzioni!A117","v":"Acción combinada en un solo tornillo inferior"},{"$f":"(H86^2+H88^2)^0.5","v":{"v":0,"d":"0.0"}},null,"[kN]",null,"(13) E7",{"$nulls":8},"x",{"$f":"V92+V93+V94","v":{"v":35.709732556393334,"d":"35.7"}},"[mm]",null,"x",{"$f":"V92+V93+V94","v":{"v":35.709732556393334,"d":"35.7"}},"[mm]"]
[{"$nulls":6},{"$f":"traduzioni!A118","v":"Máxima acción de corte"},{"$f":"MAX(H90,H89)","v":{"v":0,"d":"0.0"}},null,"[kN]"]
[{"$nulls":20},"x1",{"$f":"Y70","v":40},"[mm]",null,"x1",{"$f":"Y70","v":40},"[mm]"]
[{"$nulls":3},{"$f":"traduzioni!A122","v":"Comprobación"},"R,ax,d",null,{"$f":"traduzioni!A123","v":"Resistencia axial un solo tornillo lado madera/acero"},{"$f":"SCREWS!I34","v":{"v":15.619848046965735,"d":"15.6"}},null,"[kN]",{"$nulls":10},"x2",{"$f":"Y71","v":40},"[mm]",null,"x2",{"$f":"Y71","v":40},"[mm]"]
[{"$nulls":4},"R,v,d",null,{"$f":"traduzioni!A124","v":"Resistencia al corte de un solo tornillo "},{"$f":"SCREWS!D48*(H28/H29)","v":{"v":4.209713784863423,"d":"4.2"}},null,"[kN]",{"$nulls":10},"x3",{"$f":"(H56-Y70-Y71)-((H56-Y70-Y71)^2+2*Y70*(H56-Y70/2)-(2*H73*1000*1000/1000/H48))^0.5","v":{"v":-44.290267443606666,"d":"-44.3"}},"[mm]",null,"x3",{"$f":"Y73","v":{"v":40,"d":"40.0"}},"[mm]"]
[{"$nulls":4},"h",null,{"$f":"traduzioni!A125","v":"Coeficiente de trabajo esfuerzo axial "},{"$f":"(H83/H93)*100","v":{"v":71.52577649462123,"d":"72"}},null,"[%]",{"$f":"IF(H95<100,\"OK\",\"NO\")","v":"OK"},"(1) E1",{"$nulls":12},"x4",{"$f":"(H56-Y71-Y72)-((++(H56-Y71-Y72)^2+2*Y71*(H56-Y71/2)-(2*H73*1000*1000/1000/H48))^0.5)","v":{"v":-41.93581786270923,"d":"-41.9"}},"[mm]"]
[{"$nulls":4},"h",null,{"$f":"traduzioni!A126","v":"Coeficiente de trabajo esfuerzo corte "},{"$f":"(H91/H94)*100","v":{"v":0,"d":"0.0"}},null,"[%]",{"$f":"IF(H96<100,\"OK\",\"NO\")","v":"OK"},"(2) E1"]
[{"$nulls":4},"h",null,{"$f":"traduzioni!A127","v":"Coeficiente de trabajo combinación corte tracción "},{"$f":"((H95/100)^2+(H96/100)^2)*100","v":{"v":51.15936703158511,"d":"51"}},null,"[%]",{"$f":"IF(H97<100,\"OK\",\"NO\")","v":"OK"},"(3) E1"]
[]
[{"$nulls":3},{"$f":"traduzioni!A128","v":"Comprobación anclaje lado hormigón"}," lb,rqd",null,{"$f":"traduzioni!A129","v":"Longitud anclaje requerida"},{"$f":"H83*1000/(H24*PI()*(H49/CONCRETE!H26))","v":{"v":38.795207057354006,"d":"39"}},null,"[mm]",null,"(1) D1"]
[{"$nulls":4}," lbd",null,{"$f":"traduzioni!A130","v":"Longitud mínima anclaje"},{"$f":"H99*(H83/H93)","v":{"v":27.748573090468547,"d":"28"}},null,"[mm]",null,"C1"]
[{"$nulls":6},{"$f":"traduzioni!A131","v":"Longitud efectiva"},{"$f":"H57","v":180},null,"[mm]"]
[{"$nulls":4},"lbd,min ",null,{"$f":"traduzioni!A132","v":"Longitud anclaje"},{"$f":"MAX(9*H24,100)","v":100},null,"[mm]"]
[{"$nulls":4},"h",null,{"$f":"traduzioni!A133","v":"Coeficiente de trabajo "},{"$f":"(H102/H101)*100","v":{"v":55.55555555555556,"d":"56"}},null,"[%]",{"$f":"IF(H103<100,\"OK\",\"NO\")","v":"OK"},"(4/5) E1"]
[]
[{"$nulls":4},"l0",null,{"$f":"traduzioni!A134","v":"Longitud solapamiento "},{"$f":"1.5*H100","v":{"v":41.622859635702824,"d":"41.6"}},null,"[mm]"]
[{"$nulls":4}," l0,min",null,{"$f":"traduzioni!A135","v":"Longitud mínima solapamiento"},{"$f":"MAX(14*H24,150)","v":154},null,"[mm]",null,"C1"]
[{"$nulls":6},{"$f":"traduzioni!A136","v":"Longitud efectiva"},{"$f":"H54","v":160},null,"[mm]"]
[{"$nulls":4}," h",null,{"$f":"traduzioni!A137","v":"Coeficiente de trabajo"},{"$f":"(H106/H107)*100","v":{"v":96.25,"d":"96"}},null,"[%]",{"$f":"IF(H108<100,\"OK\",\"NO\")","v":"OK"},"(4/5) E1"]
[]
[{"$nulls":3},{"$f":"traduzioni!A138","v":"Rigidez corte/flexión"},"kser",null,{"$f":"traduzioni!A139","v":"Rigidez al corte"},{"$f":"((H32+H33)*SCREWS!D53)/2","v":{"v":19283.483171659776,"d":"19283"}},null,"[N/mm/m]",null,"(15) E9"]
[]
[{"$nulls":6},{"$f":"traduzioni!A140","v":"primera capa"},{"$f":"IF(H20=\"L\",Y70,IF(H20=\"T\",Y71))","v":40},null,"[mm]"]
[{"$nulls":6},{"$f":"traduzioni!A141","v":"25 % espesor"},{"$f":"IF(AND(GEOMETRY!H34=\"T\",H19=160),0.25*(H19-Y70),IF(GEOMETRY!H34=\"T\",0.25*H19-Y70,0.25*H19))","v":65},null,"[mm]",{"$nulls":9},"spessore di tutti gli strati longitudinali entro il 25% della sezione trasversale esterna"]
[{"$nulls":6},{"$f":"traduzioni!A142","v":"a_t(25%)"},{"$f":"AD87","v":20}]
[]
[{"$nulls":4},"xsls",null,{"$f":"traduzioni!A143","v":"Cálculo longitud comprimida por rigidez"},{"$f":"MIN(H112,H113)","v":40},null,"[mm]"]
[{"$nulls":4},"zsls",null,{"$f":"traduzioni!A144","v":"Brazo de palanca"},{"$f":"IF(GEOMETRY!H34=\"T\",H56-Y70-H116/2,H56-H116/2)","v":195},null,"[mm]"]
[{"$nulls":4},"mref",null,{"$f":"traduzioni!A145","v":"Momento de referencia"},1000,null,"[kNm/m]"]
[{"$nulls":4},"fref",null,{"$f":"traduzioni!A146","v":"Fuerza en los tornillos de referencia"},{"$f":"H118/(H117/1000)","v":{"v":5128.205128205128,"d":"5128"}},null,"[N/mm]",null,"(16) E10"]
[{"$nulls":4},"bref",null,{"$f":"traduzioni!A147","v":"Anchura de referencia"},1000,null,"[mm]"]
[{"$nulls":4},"kc",null,{"$f":"traduzioni!A148","v":"Rigidez a compresión "},{"$f":"CLT!N15*H120/4","v":2875000},null,"[N/mm]",null,"(18) E10"]
[{"$nulls":4},"kax",null,{"$f":"traduzioni!A149","v":"Rigidez axial"},{"$f":"(25*SCREWS!E23*MIN(20*SCREWS!E23,SCREWS!I30))*(H32+H33)/2","v":302500},null,"[N/mm/m]",null,"(20) E10"]
[{"$nulls":4},"nref",null,{"$f":"traduzioni!A150","v":"Tornillos en zona de tensión"},{"$f":"IF(H10=\"POS\",H33,IF(H10=\"NEG\",H32))","v":5},null,"[-]/[m]"]
[]
[{"$nulls":4},"uc,ref",null,{"$f":"traduzioni!A151","v":"Deformación de la zona comprimida"},{"$f":"H119/H121","v":{"v":1.7837235228539575E-3,"d":"0.002"}},null,"[mm]",null,"(17) E10"]
[{"$nulls":4},"ut,ref",null,{"$f":"traduzioni!A152","v":"Deformación de las fijaciones"},{"$f":"(H119)/((H122*2/(H32+H33))*H123)","v":{"v":0.016952744225471498,"d":"0.017"}},null,"[mm]",null,"(19) E10"]
[{"$nulls":10},{"$f":"traduzioni!A222","v":"(*) Duplicar la rigidez en caso de conexión no simétrica con un solo plano de conexión"}]
[{"$nulls":4},"jref",null,{"$f":"traduzioni!A153","v":"Ángulo de rotación unitario"},{"$f":"ATAN((ABS(H126)+ABS(H125))/(H117))","v":{"v":9.608444969572163E-5,"d":"0.00010"}},null,"[Rad]",null,"(21) E10"]
[{"$nulls":4},"Kj",null,{"$f":"traduzioni!A154","v":"Rigidez rotacional (*)"},{"$f":"H118/(2*H128*1000)","v":{"v":5203.75567101014,"d":"5204"}},null,"[kNmm/Rad/m]",null,"(22) E10"]

{"sheet":"CLT EDGE DISTANCE","index":5,"n_rows":18,"n_cols":5,"rows_kept":18,"merged":[[3,1,4,1],[3,2,4,2],[8,2,9,4]]}
[]
[]
[]
[null,null,{"$f":"traduzioni!A155","v":"celdas editables"}]
[]
[]
[]
[]
[null,null,{"$f":"traduzioni!A156","v":"Distancia de la línea de tornillos bajos desde el borde CLT"}]
[]
[]
[null,null,{"$f":"CONCATENATE(traduzioni!A157,\" t\")","v":"Tabla t"},{"$f":"IF(GEOMETRY!H42=\"N\",0,GEOMETRY!I42)","v":0},"[mm]"]
[null,null,{"$f":"CONCATENATE(traduzioni!A158,\" c\")","v":"Posición barra longitudinal c"},{"$f":"CONCRETE!H20","v":24},"[mm]"]
[null,null,{"$f":"traduzioni!A159","v":"Barra longitudinal (1/2 diám.)"},{"$f":"0.5*'CALCOLI STS (slab to slab)'!H38","v":4},"[mm]"]
[null,null,{"$f":"traduzioni!A160","v":"Tolerancia en curvatura estribos"},2,"[mm]"]
[null,null,{"$f":"traduzioni!A161","v":"Tornillo (1/2 diám.)"},{"$f":"0.5*'CALCOLI STS (slab to slab)'!H24","v":5.5},"[mm]"]
[]
[{"$nulls":3},{"$f":"SUM(D12:D16)","v":35.5},"[mm]"]

{"sheet":"CONCRETE","index":6,"n_rows":35,"n_cols":22,"rows_kept":35,"merged":[[3,1,4,1],[3,2,4,3],[8,16,8,21]]}
[]
[]
[]
[null,null,{"$f":"traduzioni!A162","v":"celdas editables"}]
[]
[]
[]
[]
[null,null,{"$f":"traduzioni!A164","v":"Clase de exposición ambiental"},{"$nulls":3},"XC1",{"$nulls":9},{"$f":"CONCATENATE(traduzioni!A223,\" [mm]\")","v":"Recubrimiento mínimo requerido [mm]"}]
[null,null,{"$f":"traduzioni!A165","v":"Clase estructural"},{"$nulls":3},"S3",{"$nulls":9},"Cl","X0","XC1","XC2","XC3","XC4"]
[{"$nulls":16},"S1",10,10,10,10,15]
[{"$nulls":3},"d",null,"cmin,b","cmin,dur",null,null,"Cmin","D,cdev",null,"c,nom",{"$nulls":3},"S2",10,10,15,15,20]
[{"$nulls":3},"[mm]",null,"[mm]","[mm]","[mm]",null,"[mm]","[mm]",null,"[mm]",{"$nulls":3},"S3",10,10,20,20,25]
[null,null,"d st",{"$f":"'CALCOLI STS (slab to slab)'!H37","v":6},null,{"$f":"D14+IF('CALCOLI STS (slab to slab)'!H39>32,5,0)","v":6},{"$f":"HLOOKUP(G9,R10:V16,MID(G10,2,1)+1,FALSE)","v":10},10,null,{"$f":"MAX(F14,G14,H14)","v":10},10,null,{"$f":"J14+K14","v":20},{"$nulls":3},"S4",10,15,25,25,30]
[null,null,"d_L",{"$f":"'CALCOLI STS (slab to slab)'!H38","v":8},null,{"$f":"D15+IF('CALCOLI STS (slab to slab)'!H39>32,5,0)","v":8},{"$f":"HLOOKUP(G9,R10:V16,MID(G10,2,1)+1,FALSE)","v":10},10,null,{"$f":"MAX(F15,G15,H15)","v":10},10,null,{"$f":"J15+K15","v":20},{"$nulls":3},"S5",15,20,30,30,35]
[{"$nulls":16},"S6",20,25,35,35,40]
[null,null,"cst",{"$f":"traduzioni!A166","v":"Recubrimiento mínimo para estribos"},{"$nulls":3},{"$f":"M14","v":20},"[mm]"]
[null,null,"cl",{"$f":"traduzioni!A167","v":"Recubrimiento mínimo para barras longitudinales"},{"$nulls":3},{"$f":"M15","v":20},"[mm]"]
[]
[null,null,"c",{"$f":"traduzioni!A167","v":"Recubrimiento mínimo para barras longitudinales"},{"$nulls":3},{"$f":"MAX((H17+(D15/2)),(H18+(D15/2)))","v":24},"[mm]"]
[]
[]
[]
[{"$nulls":3},"Rck","fck",null,{"$f":"'CALCOLI STS (slab to slab)'!H36","v":"C25/30"}]
[{"$nulls":3},"[MPa]","[MPa]"]
[null,null,"C20/25",25,20,null,"ym",{"$f":"IF('CALCOLI STS (slab to slab)'!L2=\"NTC 2018 (ITA)\",1.5,1.5)","v":1.5},"[-]"]
[null,null,"C25/30",30,25,null,"acc",0.85,"[-]"]
[null,null,"C28/35",35,28,null,"act",1,"[-]"]
[null,null,"C30/37",37,28]
[null,null,"C32/40",40,32,null,"fcd",{"$f":"VLOOKUP(G24,C26:E35,3,FALSE)*H27/H26","v":{"v":14.166666666666666,"d":"14.2"}},"[MPa]"]
[null,null,"C35/45",45,35]
[null,null,"C40/50",50,40]
[null,null,"C45/55",55,45]
[null,null,"C50/60",60,50]
[null,null,"user material"]

{"sheet":"CLT","index":7,"n_rows":76,"n_cols":24,"rows_kept":76,"merged":[[3,4,4,4]]}
[]
[]
[]
[]
[{"$nulls":5},{"$f":"traduzioni!A169","v":"celdas editables"}]
[]
[]
[]
[{"$nulls":6},"fc0k","fc90k","ro","E0m","E90m",null,{"$f":"'CALCOLI STS (slab to slab)'!H16","v":"GL24h"},{"$nulls":9},{"$f":"traduzioni!A26","v":"Permanente"},0.6]
[{"$nulls":6},"[Mpa]","[Mpa]","[kg/mc]","[Mpa]","[Mpa]",{"$nulls":11},{"$f":"traduzioni!A27","v":"Larga"},0.7]
[{"$nulls":5},"C24",21,2.5,380,{"$f":"11000","v":11000},370,null,"ym",{"$f":"IF(GEOMETRY!H14=\"NTC 2018 (ITA)\",1.35,1.25)","v":1.25},"[-]",{"$nulls":7},{"$f":"traduzioni!A28","v":"Media"},0.8]
[{"$nulls":5},"GL24h",24,2.5,380,11500,300,null,"kmod",{"$f":"VLOOKUP('CALCOLI STS (slab to slab)'!H2,W9:X14,2,FALSE)","v":1},"[-]",{"$nulls":7},{"$f":"traduzioni!A29","v":"Corta"},0.9]
[{"$nulls":5},"user material",{"$nulls":4}," ",{"$nulls":11},{"$f":"traduzioni!A30","v":"Instantánea"},1.1]
[{"$nulls":12},"ro",{"$f":"VLOOKUP($M$9,$F$11:$K$13,4,FALSE)","v":380},"[kg/mc]",{"$nulls":7},{"$f":"traduzioni!A31","v":"Corta/Instantánea"},1]
[{"$nulls":12},"E0m",{"$f":"VLOOKUP($M$9,$F$11:$K$13,5,FALSE)","v":11500},"[Mpa]"]
[{"$nulls":12},"E90m",{"$f":"VLOOKUP($M$9,$F$11:$K$13,6,FALSE)","v":300},"[Mpa]"]
[]
[{"$nulls":12},"fc0d",{"$f":"VLOOKUP($M$9,$F$11:$K$13,2,FALSE)*(N12/N11)","v":19.200000000000003},"[Mpa]"]
[]
[]
[]
["strati",{"$f":"E25","v":5},{"$f":"_xlfn.CONCAT(\"L\",\"_\",B22,)","v":"L_5"},null,null,{"$f":"traduzioni!A170","v":"Paneles"}]
[null,{"$f":"E42","v":7},{"$f":"_xlfn.CONCAT(\"L\",\"_\",B23,)","v":"L_7"},{"$nulls":3},"ns","t","t1","t2","t3","t4","t5","t6","t7","t8","t9","t10","t11"]
[null,{"$f":"E63","v":9},{"$f":"_xlfn.CONCAT(\"L\",\"_\",B24,)","v":"L_9"},{"$nulls":3},"[-]","[mm]","[mm]","[mm]","[mm]","[mm]","[mm]","[mm]","[mm]","[mm]","[mm]","[mm]","[mm]"]
[null,{"$f":"E74","v":11},{"$f":"_xlfn.CONCAT(\"L\",\"_\",B25,)","v":"L_11"},null,5,{"$f":"_xlfn.CONCAT(H25,\"mm - \",G25,\" - \",I25,\" \",J25,\" \",K25,\" \",L25,\" \",M25)","v":"160mm - 5s - 40 20 40 20 40"},"5s",{"$f":"SUM(I25:M25)","v":160},40,20,40,20,40]
[{"$nulls":5},{"$f":"_xlfn.CONCAT(H26,\"mm - \",G26,\" - \",I26,\" \",J26,\" \",K26,\" \",L26,\" \",M26)","v":"160mm - 5s - 30 30 40 30 30"},"5s",{"$f":"SUM(I26:M26)","v":160},30,30,40,30,30]
[{"$nulls":5},"170mm - 5s - 40 30 30 30 40","5s",{"$f":"SUM(I27:M27)","v":170},40,30,30,30,40]
[{"$nulls":5},{"$f":"_xlfn.CONCAT(H28,\"mm - \",G28,\" - \",I28,\" \",J28,\" \",K28,\" \",L28,\" \",M28)","v":"170mm - 5s - 30 40 30 40 30"},"5s",{"$f":"SUM(I28:M28)","v":170},30,40,30,40,30]
[{"$nulls":5},"180mm - 5s - 40 30 40 30 40","5s",{"$f":"SUM(I29:M29)","v":180},40,30,40,30,40]
[{"$nulls":5},"190mm - 5s - 40 40 30 40 40","5s",{"$f":"SUM(I30:M30)","v":190},40,40,30,40,40]
[{"$nulls":5},{"$f":"_xlfn.CONCAT(H31,\"mm - \",G31,\" - \",I31,\" \",J31,\" \",K31,\" \",L31,\" \",M31)","v":"200mm - 5s - 60 20 40 20 60"},"5s",200,60,20,40,20,60]
[{"$nulls":5},"200mm - 5s - 40 40 40 40 40","5s",200,40,40,40,40,40]
[{"$nulls":5},{"$f":"_xlfn.CONCAT(H33,\"mm - \",G33,\" - \",I33,\" \",J33,\" \",K33,\" \",L33,\" \",M33)","v":"220mm - 5s - 60 30 40 30 60"},"5s",{"$f":"SUM(I33:M33)","v":220},60,30,40,30,60]
[{"$nulls":5},{"$f":"_xlfn.CONCAT(H34,\"mm - \",G34,\" - \",I34,\" \",J34,\" \",K34,\" \",L34,\" \",M34)","v":"260mm - 5s - 80 30 40 30 80"},"5s",{"$f":"SUM(I34:M34)","v":260},80,30,40,30,80]
[{"$nulls":5},{"$f":"_xlfn.CONCAT(H35,\"mm - \",G35,\" - \",I35,\" \",J35,\" \",K35,\" \",L35,\" \",M35,\" - user\")","v":"0mm - 5s -      - user"},"5s",0]
[]
[]
[]
[]
[{"$nulls":6},"ns","t","t1","t2","t3","t4","t5","t6","t7","t8","t9","t10","t11"]
[{"$nulls":6},"[-]","[mm]","[mm]","[mm]","[mm]","[mm]","[mm]","[mm]","[mm]","[mm]","[mm]","[mm]","[mm]"]
[{"$nulls":4},7,{"$f":"_xlfn.CONCAT(H42,\"mm - \",G42,\" - \",I42,\" \",J42,\" \",K42,\" \",L42,\" \",M42,\" \",N42,\" \",O42)","v":"180mm - 7s - 30 20 30 20 30 20 30"},"7s",{"$f":"SUM(I42:O42)","v":180},30,20,30,20,30,20,30]
[{"$nulls":5},{"$f":"_xlfn.CONCAT(H43,\"mm - \",G43,\" - \",I43,\" \",J43,\" \",K43,\" \",L43,\" \",M43,\" \",N43,\" \",O43)","v":"180mm - 7s - 20 40 20 20 20 40 20"},"7s",{"$f":"SUM(I43:O43)","v":180},20,40,20,20,20,40,20]
[{"$nulls":5},"200mm - 7s - 20 40 20 40 20 40 20","7s",{"$f":"SUM(I44:O44)","v":200},20,40,20,40,20,40,20]
[{"$nulls":5},"200mm - 7s - 30 30 30 20 30 30 30","7s",200,30,30,30,20,30,30,30]
[{"$nulls":5},"210mm - 7s - 30 30 30 30 30 30 30","7s",210,30,30,30,30,30,30,30]
[{"$nulls":5},"220mm - 7s - 40 40 20 20 20 40 40","7s",220,40,40,20,20,20,40,40]
[{"$nulls":5},{"$f":"_xlfn.CONCAT(H48,\"mm - \",G48,\" - \",I48,\" \",J48,\" \",K48,\" \",L48,\" \",M48,\" \",N48,\" \",O48)","v":"220mm - 7s - 30 40 30 20 30 40 30"},"7s",{"$f":"SUM(I48:O48)","v":220},30,40,30,20,30,40,30]
[{"$nulls":5},{"$f":"_xlfn.CONCAT(H49,\"mm - \",G49,\" - \",I49,\" \",J49,\" \",K49,\" \",L49,\" \",M49,\" \",N49,\" \",O49)","v":"220mm - 7s - 40 20 40 20 40 20 40"},"7s",{"$f":"SUM(I49:O49)","v":220},40,20,40,20,40,20,40]
[{"$nulls":5},"240mm - 7s - 30 40 30 40 30 40 30","7s",240,30,40,30,40,30,40,30]
[{"$nulls":5},{"$f":"_xlfn.CONCAT(H51,\"mm - \",G51,\" - \",I51,\" \",J51,\" \",K51,\" \",L51,\" \",M51,\" \",N51,\" \",O51)","v":"240mm - 7s - 40 40 20 40 20 40 40"},"7s",{"$f":"SUM(I51:O51)","v":240},40,40,20,40,20,40,40]
[{"$nulls":5},"240mm - 7s - 40 20 40 40 40 20 40","7s",240,40,20,40,40,40,20,40]
[{"$nulls":5},{"$f":"_xlfn.CONCAT(H53,\"mm - \",G53,\" - \",I53,\" \",J53,\" \",K53,\" \",L53,\" \",M53,\" \",N53,\" \",O53)","v":"252mm - 7s - 33 40 33 40 33 40 33"},"7s",{"$f":"SUM(I53:O53)","v":252},33,40,33,40,33,40,33]
[{"$nulls":5},{"$f":"_xlfn.CONCAT(H54,\"mm - \",G54,\" - \",I54,\" \",J54,\" \",K54,\" \",L54,\" \",M54,\" \",N54,\" \",O54)","v":"260mm - 7s - 40 40 30 40 30 40 40"},"7s",{"$f":"SUM(I54:O54)","v":260},40,40,30,40,30,40,40]
[{"$nulls":5},"280mm - 7s - 40 40 40 40 40 40 40","7s",{"$f":"SUM(I55:O55)","v":280},40,40,40,40,40,40,40]
[{"$nulls":5},{"$f":"_xlfn.CONCAT(H56,\"mm - \",G56,\" - \",I56,\" \",J56,\" \",K56,\" \",L56,\" \",M56,\" \",N56,\" \",O56,\" - user\")","v":"0mm - 7s -        - user"},"7s",{"$f":"SUM(I56:O56)","v":0}]
[]
[]
[]
[]
[{"$nulls":6},"ns","t","t1","t2","t3","t4","t5","t6","t7","t8","t9","t10","t11"]
[{"$nulls":6},"[-]","[mm]","[mm]","[mm]","[mm]","[mm]","[mm]","[mm]","[mm]","[mm]","[mm]","[mm]","[mm]"]
[{"$nulls":4},9,{"$f":"_xlfn.CONCAT(H63,\"mm - \",G63,\" - \",I63,\" \",J63,\" \",K63,\" \",L63,\" \",M63,\" \",N63,\" \",O63,\" \",P63,\" \",Q63)","v":"297mm - 9s - 33 33 33 33 33 33 33 33 33"},"9s",{"$f":"SUM(I63:Q63)","v":297},33,33,33,33,33,33,33,33,33]
[{"$nulls":5},{"$f":"_xlfn.CONCAT(H64,\"mm - \",G64,\" - \",I64,\" \",J64,\" \",K64,\" \",L64,\" \",M64,\" \",N64,\" \",O64,\" \",P64,\" \",Q64)","v":"320mm - 9s - 40 30 40 30 40 30 40 30 40"},"9s",{"$f":"SUM(I64:Q64)","v":320},40,30,40,30,40,30,40,30,40]
[{"$nulls":5},{"$f":"_xlfn.CONCAT(H65,\"mm - \",G65,\" - \",I65,\" \",J65,\" \",K65,\" \",L65,\" \",M65,\" \",N65,\" \",O65,\" \",P65,\" \",Q65)","v":"340mm - 9s - 40 40 40 30 40 30 40 40 40"},"9s",340,40,40,40,30,40,30,40,40,40]
[{"$nulls":5},{"$f":"_xlfn.CONCAT(H66,\"mm - \",G66,\" - \",I66,\" \",J66,\" \",K66,\" \",L66,\" \",M66,\" \",N66,\" \",O66,\" \",P66,\" \",Q66)","v":"360mm - 9s - 40 40 40 40 40 40 40 40 40"},"9s",{"$f":"SUM(I66:Q66)","v":360},40,40,40,40,40,40,40,40,40]
[{"$nulls":5},{"$f":"_xlfn.CONCAT(H67,\"mm - \",G67,\" - \",I67,\" \",J67,\" \",K67,\" \",L67,\" \",M67,\" \",N67,\" \",O67,\" \",P67,\" \",Q67,\" - user\")","v":"0mm - 9s -          - user"},"9s",{"$f":"SUM(I67:Q67)","v":0}]
[]
[]
[]
[]
[{"$nulls":6},"ns","t","t1","t2","t3","t4","t5","t6","t7","t8","t9","t10","t11"]
[{"$nulls":6},"[-]","[mm]","[mm]","[mm]","[mm]","[mm]","[mm]","[mm]","[mm]","[mm]","[mm]","[mm]","[mm]"]
[{"$nulls":4},11,{"$f":"_xlfn.CONCAT(H74,\"mm - \",G74,\" - \",I74,\" \",J74,\" \",K74,\" \",L74,\" \",M74,\" \",N74,\" \",O74,\" \",P74,\" \",Q74,\" \",R74,\" \",S74)","v":"220mm - 11s - 20 20 20 20 20 20 20 20 20 20 20"},"11s",{"$f":"SUM(I74:S74)","v":220},20,20,20,20,20,20,20,20,20,20,20]
[{"$nulls":5},{"$f":"_xlfn.CONCAT(H75,\"mm - \",G75,\" - \",I75,\" \",J75,\" \",K75,\" \",L75,\" \",M75,\" \",N75,\" \",O75,\" \",P75,\" \",Q75,\" \",R75,\" \",S75)","v":"380mm - 11s - 30 40 30 40 30 40 30 40 30 40 30"},"11s",{"$f":"SUM(I75:S75)","v":380},30,40,30,40,30,40,30,40,30,40,30]
[{"$nulls":5},{"$f":"_xlfn.CONCAT(H76,\"mm - \",G76,\" - \",I76,\" \",J76,\" \",K76,\" \",L76,\" \",M76,\" \",N76,\" \",O76,\" \",P76,\" \",Q76,\" \",R76,\" \",S76,\" - user\")","v":"0mm - 11s -            - user"},"11s",{"$f":"SUM(I76:S76)","v":0}]

{"sheet":"SCREWS","index":8,"n_rows":98,"n_cols":53,"rows_kept":98,"merged":[[3,1,4,1],[24,1,25,5],[24,6,25,10],[36,1,37,5],[36,6,37,10],[51,2,51,4]]}
[]
[]
[]
[]
[null,null,{"$f":"traduzioni!A171","v":"celdas editables"}]
[]
[]
[{"$nulls":29},"legno",{"$nulls":4},"leff min (duct)","leff min (e)"]
[null,null,"SCREWS",null,null,"d","Ftens","fbk","MY","fuk","dn",null,{"$f":"traduzioni!A172","v":"coef. conexión madera"},{"$nulls":16},"ym",{"$f":"IF('CALCOLI STS (slab to slab)'!L2=\"NTC 2018 (ITA)\",1.4,1.35)","v":1.35},"[-]",null,{"$f":"((20*F11^-0.5))","v":{"v":6.666666666666666,"d":"6.7"}},{"$f":"2.3*(I11*1000/(20*F11^-0.5*F11))^0.5","v":{"v":48.97073956285869,"d":"49.0"}}]
[{"$nulls":5},"[mm]","[kN]","[MPa]","[Nm]","[MPa]","[mm]",null,"ym",{"$f":"IF('CALCOLI STS (slab to slab)'!L2=\"NTC 2018 (ITA)\",1.4,1.3)","v":1.3},"[-]",{"$nulls":14},"kmod",{"$f":"VLOOKUP('CALCOLI STS (slab to slab)'!H2,CLT!W9:X14,2,FALSE)","v":1},"[-]",null,{"$f":"((20*F12^-0.5))","v":{"v":6.030226891555273,"d":"6.0"}},{"$f":"2.3*(I12*1000/(20*F12^-0.5*F12))^0.5","v":{"v":60.502178096441845,"d":"60.5"}}]
[null,null,"VGS",null,{"$f":"_xlfn.CONCAT(C11,\"_\",F11)","v":"VGS_9"},9,25.4,12.5,27.2,1000,5.9,null,"kmod",{"$f":"VLOOKUP('CALCOLI STS (slab to slab)'!H2,CLT!W9:X14,2,FALSE)","v":1},"[-]",{"$nulls":14},"ymconn",{"$f":"IF('CALCOLI STS (slab to slab)'!L2=\"NTC 2018 (ITA)\",1.4,1.3)","v":1.3},"[-]",null,{"$f":"((20*F13^-0.5))","v":{"v":5.547001962252292,"d":"5.5"}},{"$f":"2.3*(I13*1000/(20*F13^-0.5*F13))^0.5","v":{"v":72.11906999823809,"d":"72.1"}}]
[{"$nulls":4},{"$f":"_xlfn.CONCAT(C11,\"_\",F12)","v":"VGS_11"},11,38,12.5,45.9,1000,6.6,{"$nulls":22},{"$f":"((20*F14^-0.5))","v":{"v":5,"d":"5.0"}},{"$f":"2.3*(I14*1000/(20*F14^-0.5*F14))^0.5","v":{"v":114.99999999999999,"d":"115.0"}}]
[{"$nulls":4},{"$f":"_xlfn.CONCAT(C11,\"_\",F13)","v":"VGS_13"},13,53,12.5,70.9,1000,8,null,{"$f":"traduzioni!A173","v":"coef. material acero"},{"$nulls":16},"acciaio (trazione)"]
[null,null,"RTR",null,{"$f":"_xlfn.CONCAT(C14,\"_\",F14)","v":"RTR_16"},16,100,9,200,650,12,null,"ym",{"$f":"IF('CALCOLI STS (slab to slab)'!L2=\"NTC 2018 (ITA)\",1.25,1.25)","v":1.25},"[-]",{"$nulls":14},"ym",{"$f":"IF('CALCOLI STS (slab to slab)'!L2=\"NTC 2018 (ITA)\",1.25,1.25)","v":1.25},"[-]"]
[]
[{"$nulls":12},{"$f":"traduzioni!A174","v":"coef. material hormigón"},{"$nulls":16},"Calcestruzzo"]
[{"$nulls":12},"ym",{"$f":"CONCRETE!H26","v":1.5},"[-]",{"$nulls":14},"ym",{"$f":"CONCRETE!H26","v":1.5},"[-]"]
[{"$nulls":12},"acc",{"$f":"CONCRETE!H27","v":0.85},"[-]",{"$nulls":14},"acc",{"$f":"CONCRETE!H27","v":0.85},"[-]",{"$nulls":17},"coeff. Sovr. exp",null,1.5]
[{"$nulls":12},"act",{"$f":"CONCRETE!H28","v":1},"[-]",{"$nulls":14},"act",{"$f":"CONCRETE!H28","v":1},"[-]"]
[]
[]
[{"$nulls":37},"CONTROLLO SU VALORI DI PROGETTO",{"$nulls":5},"CONTROLLO SU VALORI CARATTERISTICI",{"$nulls":5},"CONTROLLO SU VALORI MEDI"]
[null,null,"Selection:",{"$f":"'CALCOLI STS (slab to slab)'!H22","v":"VGS_11"},{"$f":"'CALCOLI STS (slab to slab)'!H24","v":11}]
[{"$nulls":27},"RESISTENZE IMPONENDO MINIMA LUNGHEZZA LATO CALCESTRUZZO",{"$nulls":10},"sovrapposizione",null,"ancoraggio",{"$nulls":3},"sovrapposizione",null,"ancoraggio",{"$nulls":3},"sovrapposizione",null,"ancoraggio"]
[null,{"$f":"traduzioni!A175","v":"Resistencia axial - Hormigón"},{"$nulls":4},{"$f":"traduzioni!A176","v":"Resistencia axial - Madera"},{"$nulls":20},"Resistenze massime lato legno con lunghezza minima lato cls",{"$nulls":3},"Resistenze massime lato calcestruzzo con lunghezza minima",{"$nulls":5},"Rmin","tipo di rottura","Rmin",{"$nulls":3},"Rmin","tipo di rottura","Rmin",{"$nulls":3},"Rmin","tipo di rottura","Rmin"]
[{"$nulls":27},"Sovrapposizione","Ancoraggio","Resistenza lato legno considerando penetrazione minima lato calcestruzzo (sovrapp)","Resistenza lato legno considerando penetrazione minima lato calcestruzzo (anc)","Sovrapposizione","Ancoraggio",null,"Sovrapposizione","Ancoraggio"]
[{"$nulls":24},"d","l","Ftens,d","l-l0min-c","l-lbdmin","Raxd(l-L0min-c)","Raxd(l-Lbdmin)",null,"lbdmin",null,"Raxd(Lmin)","Raxd(Lbdmin)"]
[null,null,"leff",{"$f":"'CALCOLI STS (slab to slab)'!H54","v":160},"[mm]",{"$nulls":17},{"$f":"$E$11","v":"VGS_9"},{"$f":"_xlfn.CONCAT(W28,\"_\",Z28)","v":"VGS_9_300"},{"$f":"IF(MID(W28,5,1)<=9,MID(W28,5,1),MID(W28,5,2))","v":"9"},300,{"$f":"$G$11/$AE$14","v":20.32},{"$f":"Z28-AF28-25","v":125},{"$f":"Z28-AG28","v":{"v":200,"d":"200.0"}},{"$f":"((20*(Y28^0.8)*AB28^0.9)/1000)*$AE$10/$AE$9","v":{"v":6.626882136251188,"d":"6.6"}},{"$f":"((20*(Y28^0.8)*AC28^0.9)/1000)*$AE$10/$AE$9","v":{"v":10.116195899005666,"d":"10.1"}},{"$f":"MAX(14*Y28,150)","v":150},{"$f":"MAX(9*Y28,100)","v":100},{"$f":"VLOOKUP(W28,$E$11:$I$14,4,FALSE)","v":12.5},{"$f":"((Y28*PI())*AF28)*(AH28*$AE$18/$AE$17)/1000","v":{"v":30.041479749952398,"d":"30.0"}},{"$f":"((Y28*PI())*AG28)*(AH28*$AE$18/$AE$17)/1000","v":{"v":20.02765316663493,"d":"20.0"}},null,{"$f":"MIN(#REF!,#REF!,#REF!)","v":{"$error":"#REF!"}},{"$f":"IF(AL28=AA28,\"ACCIAIO\",IF(AL28=AD28,\"LEGNO\",IF(AL28=AI28,\" CALCESTRUZZO\")))","v":{"$error":"#REF!"}},{"$f":"MIN(#REF!,#REF!,#REF!)","v":{"$error":"#REF!"}},{"$f":"IF(AN28=AA28,\"ACCIAIO\",IF(AN28=AE28,\"LEGNO\",IF(AN28=AJ28,\"CALCESTRUZZO\")))","v":{"$error":"#REF!"}},null,null,{"$f":"MIN(AA28*$AE$14,AD28*$AE$9/$AE$10,AI28*$AE$17/$AE$18)","v":{"v":8.946290883939104,"d":"8.9"}},{"$f":"IF(AR28=AA28*$AE$14,\"ACCIAIO\",IF(AR28=AD28*$AE$9/$AE$10,\"LEGNO\",IF(AR28=AI28*$AE$17/$AE$18,\" CALCESTRUZZO\")))","v":"LEGNO"},{"$f":"MIN(AA28*$AE$14,AE28*$AE$9/$AE$10,AJ28*$AE$17/$AE$18)","v":{"v":13.65686446365765,"d":"13.7"}},{"$f":"IF(AT28=AA28*$AE$14,\"ACCIAIO\",IF(AT28=AE28*$AE$9/$AE$10,\"LEGNO\",IF(AT28=AJ28*$AE$17/$AE$18,\" CALCESTRUZZO\")))","v":"LEGNO"},null,null,{"$f":"MIN(AA28*$AE$14,$AZ$18*AD28*$AE$9/$AE$10,AI28*$AE$17/$AE$18)","v":{"v":13.419436325908656,"d":"13.4"}},{"$f":"IF(AX28=AA28*$AE$14,\"ACCIAIO\",IF(AX28=$AZ$18*AD28*$AE$9/$AE$10,\"LEGNO\",IF(AX28=AI28*$AE$17/$AE$18,\" CALCESTRUZZO\")))","v":"LEGNO"},{"$f":"MIN(AA28*$AE$14,$AZ$18*AE28*$AE$9/$AE$10,AJ28*$AE$17/$AE$18)","v":{"v":20.485296695486472,"d":"20.5"}},{"$f":"IF(AZ28=AA28*$AE$14,\"ACCIAIO\",IF(AZ28=$AZ$18*AE28*$AE$9/$AE$10,\"LEGNO\",IF(AZ28=AJ28*$AE$17/$AE$18,\" CALCESTRUZZO\")))","v":"LEGNO"}]
[null,null,"fbk",{"$f":"VLOOKUP(D23,E11:I14,4,FALSE)*D34","v":12.5},"[MPa]","ETA-22/0806",null,"ρ CLT",{"$f":"CLT!N14","v":380},"[kg/mc]",{"$nulls":12},"VGS_9",{"$f":"_xlfn.CONCAT(W29,\"_\",Z29)","v":"VGS_9_320"},"9",{"$f":"Z28+20","v":320},20.32,{"$f":"Z29-AF29-25","v":145},{"$f":"Z29-AG29","v":{"v":220,"d":"220.0"}},{"$f":"((20*(Y29^0.8)*AB29^0.9)/1000)*$AE$10/$AE$9","v":{"v":7.57393261206934,"d":"7.6"}},{"$f":"((20*(Y29^0.8)*AC29^0.9)/1000)*$AE$10/$AE$9","v":{"v":11.022259904542036,"d":"11.0"}},{"$f":"MAX(14*Y29,150)","v":150},{"$f":"MAX(9*Y29,100)","v":100},{"$f":"VLOOKUP(W29,$E$11:$I$14,4,FALSE)","v":12.5},{"$f":"((Y29*PI())*AF29)*(AH29*$AE$18/$AE$17)/1000","v":{"v":30.041479749952398,"d":"30.0"}},{"$f":"((Y29*PI())*AG29)*(AH29*$AE$18/$AE$17)/1000","v":{"v":20.02765316663493,"d":"20.0"}},null,{"$f":"MIN(AA29,AD29,AI29)","v":{"v":7.57393261206934,"d":"7.6"}},{"$f":"IF(AL29=AA29,\"ACCIAIO\",IF(AL29=AD29,\"LEGNO\",IF(AL29=AI29,\" CALCESTRUZZO\")))","v":"LEGNO"},{"$f":"MIN(AA29,AE29,AJ29)","v":{"v":11.022259904542036,"d":"11.0"}},{"$f":"IF(AN29=AA29,\"ACCIAIO\",IF(AN29=AE29,\"LEGNO\",IF(AN29=AJ29,\"CALCESTRUZZO\")))","v":"LEGNO"},null,null,{"$f":"MIN(AA29*$AE$14,AD29*$AE$9/$AE$10,AI29*$AE$17/$AE$18)","v":{"v":10.22480902629361,"d":"10.2"}},{"$f":"IF(AR29=AA29*$AE$14,\"ACCIAIO\",IF(AR29=AD29*$AE$9/$AE$10,\"LEGNO\",IF(AR29=AI29*$AE$17/$AE$18,\" CALCESTRUZZO\")))","v":"LEGNO"},{"$f":"MIN(AA29*$AE$14,AE29*$AE$9/$AE$10,AJ29*$AE$17/$AE$18)","v":{"v":14.880050871131749,"d":"14.9"}},{"$f":"IF(AT29=AA29*$AE$14,\"ACCIAIO\",IF(AT29=AE29*$AE$9/$AE$10,\"LEGNO\",IF(AT29=AJ29*$AE$17/$AE$18,\" CALCESTRUZZO\")))","v":"LEGNO"},null,null,{"$f":"MIN(AA29*$AE$14,$AZ$18*AD29*$AE$9/$AE$10,AI29*$AE$17/$AE$18)","v":{"v":15.337213539440414,"d":"15.3"}},{"$f":"IF(AX29=AA29*$AE$14,\"ACCIAIO\",IF(AX29=$AZ$18*AD29*$AE$9/$AE$10,\"LEGNO\",IF(AX29=AI29*$AE$17/$AE$18,\" CALCESTRUZZO\")))","v":"LEGNO"},{"$f":"MIN(AA29*$AE$14,$AZ$18*AE29*$AE$9/$AE$10,AJ29*$AE$17/$AE$18)","v":{"v":22.320076306697622,"d":"22.3"}},{"$f":"IF(AZ29=AA29*$AE$14,\"ACCIAIO\",IF(AZ29=$AZ$18*AE29*$AE$9/$AE$10,\"LEGNO\",IF(AZ29=AJ29*$AE$17/$AE$18,\" CALCESTRUZZO\")))","v":"LEGNO"}]
[null,null,"fbd",{"$f":"D29*AE19/AE17","v":{"v":8.333333333333334,"d":"8.3"}},"[MPa]",null,null,"leff",{"$f":"'CALCOLI STS (slab to slab)'!H59","v":260},"[mm]",{"$nulls":12},"VGS_9","VGS_9_340","9",340,20.32,165,{"v":240,"d":"240.0"},{"v":8.507966760695933,"d":"8.5"},{"v":11.920112446194445,"d":"11.9"},150,100,12.5,{"v":30.041479749952398,"d":"30.0"},{"v":20.02765316663493,"d":"20.0"},null,{"v":8.507966760695933,"d":"8.5"},"LEGNO",{"v":11.920112446194445,"d":"11.9"},"LEGNO",null,null,{"v":11.48575512693951,"d":"11.5"},"LEGNO",{"v":16.0921518023625,"d":"16.1"},"LEGNO",null,null,{"v":17.228632690409263,"d":"17.2"},"LEGNO",{"v":24.138227703543752,"d":"24.1"},"LEGNO"]
[null,null,"Raxconc,k",{"$f":"((E23*PI())*D28)*D29/1000","v":{"v":69.11503837897544,"d":"69.1"}},"[kN]","EC 1992-1-1",null,"Rtens,d",{"$f":"VLOOKUP(D23,E11:G14,3,FALSE)/AE14","v":30.4},"[kN]",{"$nulls":12},"VGS_9","VGS_9_360","9",360,20.32,185,{"v":260,"d":"260.0"},{"v":9.430718686889461,"d":"9.4"},{"v":12.810504928857574,"d":"12.8"},150,100,12.5,{"v":30.041479749952398,"d":"30.0"},{"v":20.02765316663493,"d":"20.0"},null,{"v":9.430718686889461,"d":"9.4"},"LEGNO",{"v":12.810504928857574,"d":"12.8"},"LEGNO",null,null,{"v":12.731470227300774,"d":"12.7"},"LEGNO",{"v":17.294181653957725,"d":"17.3"},"LEGNO",null,null,{"v":19.09720534095116,"d":"19.1"},"LEGNO",25.4,"ACCIAIO"]
[null,null,"Raxconc,d",{"$f":"((E23*PI())*D28)*D30/1000","v":{"v":46.0766922526503,"d":"46.1"}},"[kN]",null,null,"Rax,d",{"$f":"IF(D23=W84,(((15*(E23^0.8)*I30^0.9)/1000)*AE10/AE11),(((20*(E23^0.8)*I30^0.9)/1000)*AE10/AE11))","v":{"v":15.619848046965735,"d":"15.6"}},"[kN]","ETA-11/0030",{"$nulls":11},"VGS_9","VGS_9_380",{"$f":"IF(MID(W32,5,1)<=9,MID(W32,5,1),MID(W32,5,2))","v":"9"},380,20.32,205,{"v":280,"d":"280.0"},{"v":10.343528363096002,"d":"10.3"},{"v":13.694067458781339,"d":"13.7"},150,100,12.5,{"v":30.041479749952398,"d":"30.0"},{"v":20.02765316663493,"d":"20.0"},null,{"v":10.343528363096002,"d":"10.3"},"LEGNO",{"v":13.694067458781339,"d":"13.7"},"LEGNO",null,null,{"v":13.963763290179603,"d":"14.0"},"LEGNO",{"v":18.486991069354808,"d":"18.5"},"LEGNO",null,null,{"v":20.945644935269407,"d":"20.9"},"LEGNO",25.4,"ACCIAIO"]
[{"$nulls":22},"VGS_9","VGS_9_400","9",400,20.32,225,{"v":300,"d":"300.0"},{"v":11.247461131420955,"d":"11.2"},{"v":14.571335707312436,"d":"14.6"},150,100,12.5,{"v":30.041479749952398,"d":"30.0"},{"v":20.02765316663493,"d":"20.0"},null,{"v":11.247461131420955,"d":"11.2"},"LEGNO",{"v":14.571335707312436,"d":"14.6"},"LEGNO",null,null,{"v":15.18407252741829,"d":"15.2"},"LEGNO",{"v":19.67130320487179,"d":"19.7"},"LEGNO",null,null,{"v":22.776108791127434,"d":"22.8"},"LEGNO",25.4,"ACCIAIO"]
[null,null,"Conversion factor",1,"[%]","ETA-22/0806",null,"min",{"$f":"MIN(I32,I31,D32)","v":{"v":15.619848046965735,"d":"15.6"}},"[kN]",{"$nulls":12},"VGS_9","VGS_9_440","9",{"$f":"Z33+40","v":440},20.32,265,{"v":340,"d":"340.0"},{"v":13.032013502180016,"d":"13.0"},{"v":16.308771955536677,"d":"16.3"},150,100,12.5,{"v":30.041479749952398,"d":"30.0"},{"v":20.02765316663493,"d":"20.0"},null,{"v":13.032013502180016,"d":"13.0"},"LEGNO",{"v":16.308771955536677,"d":"16.3"},"LEGNO",null,null,{"v":17.593218227943023,"d":"17.6"},"LEGNO",{"v":22.016842139974518,"d":"22.0"},"LEGNO",null,null,25.4,"ACCIAIO",25.4,"ACCIAIO"]
[{"$nulls":22},"VGS_9","VGS_9_480","9",{"$f":"Z34+40","v":480},20.32,305,{"v":380,"d":"380.0"},{"v":14.789724704673924,"d":"14.8"},{"v":18.02583833102281,"d":"18.0"},150,100,12.5,{"v":30.041479749952398,"d":"30.0"},{"v":20.02765316663493,"d":"20.0"},null,{"v":14.789724704673924,"d":"14.8"},"LEGNO",{"v":18.02583833102281,"d":"18.0"},"LEGNO",null,null,{"v":19.9661283513098,"d":"20.0"},"LEGNO",{"v":24.334881746880797,"d":"24.3"},"LEGNO",null,null,25.4,"ACCIAIO",25.4,"ACCIAIO"]
[{"$nulls":22},"VGS_9","VGS_9_520","9",520,20.32,{"$f":"Z36-AF36-25","v":345},{"$f":"Z36-AG36","v":{"v":420,"d":"420.0"}},{"$f":"((20*(Y36^0.8)*AB36^0.9)/1000)*$AE$10/$AE$9","v":{"v":16.524465484070348,"d":"16.5"}},{"$f":"((20*(Y36^0.8)*AC36^0.9)/1000)*$AE$10/$AE$9","v":{"v":19.724890278182432,"d":"19.7"}},{"$f":"MAX(14*Y36,150)","v":150},{"$f":"MAX(9*Y36,100)","v":100},{"$f":"VLOOKUP(W36,$E$11:$I$14,4,FALSE)","v":12.5},{"$f":"((Y36*PI())*AF36)*(AH36*$AE$18/$AE$17)/1000","v":{"v":30.041479749952398,"d":"30.0"}},{"$f":"((Y36*PI())*AG36)*(AH36*$AE$18/$AE$17)/1000","v":{"v":20.02765316663493,"d":"20.0"}},null,{"$f":"MIN(AA36,AD36,AI36)","v":{"v":16.524465484070348,"d":"16.5"}},{"$f":"IF(AL36=AA36,\"ACCIAIO\",IF(AL36=AD36,\"LEGNO\",IF(AL36=AI36,\" CALCESTRUZZO\")))","v":"LEGNO"},{"$f":"MIN(AA36,AE36,AJ36)","v":{"v":19.724890278182432,"d":"19.7"}},{"$f":"IF(AN36=AA36,\"ACCIAIO\",IF(AN36=AE36,\"LEGNO\",IF(AN36=AJ36,\"CALCESTRUZZO\")))","v":"LEGNO"},null,null,{"$f":"MIN(AA36*$AE$14,AD36*$AE$9/$AE$10,AI36*$AE$17/$AE$18)","v":{"v":22.30802840349497,"d":"22.3"}},{"$f":"IF(AR36=AA36*$AE$14,\"ACCIAIO\",IF(AR36=AD36*$AE$9/$AE$10,\"LEGNO\",IF(AR36=AI36*$AE$17/$AE$18,\" CALCESTRUZZO\")))","v":"LEGNO"},{"$f":"MIN(AA36*$AE$14,AE36*$AE$9/$AE$10,AJ36*$AE$17/$AE$18)","v":25.4},{"$f":"IF(AT36=AA36*$AE$14,\"ACCIAIO\",IF(AT36=AE36*$AE$9/$AE$10,\"LEGNO\",IF(AT36=AJ36*$AE$17/$AE$18,\" CALCESTRUZZO\")))","v":"ACCIAIO"},null,null,{"$f":"MIN(AA36*$AE$14,$AZ$18*AD36*$AE$9/$AE$10,AI36*$AE$17/$AE$18)","v":25.4},{"$f":"IF(AX36=AA36*$AE$14,\"ACCIAIO\",IF(AX36=$AZ$18*AD36*$AE$9/$AE$10,\"LEGNO\",IF(AX36=AI36*$AE$17/$AE$18,\" CALCESTRUZZO\")))","v":"ACCIAIO"},{"$f":"MIN(AA36*$AE$14,$AZ$18*AE36*$AE$9/$AE$10,AJ36*$AE$17/$AE$18)","v":25.4},{"$f":"IF(AZ36=AA36*$AE$14,\"ACCIAIO\",IF(AZ36=$AZ$18*AE36*$AE$9/$AE$10,\"LEGNO\",IF(AZ36=AJ36*$AE$17/$AE$18,\" CALCESTRUZZO\")))","v":"ACCIAIO"}]
[null,{"$f":"traduzioni!A177","v":"Resistencia al corte - Madera"},{"$nulls":4},{"$f":"traduzioni!A178","v":"Resistencia al corte - Acero"},{"$nulls":15},"VGS_9","VGS_9_560","9",{"$f":"Z36+40","v":560},20.32,385,{"v":460,"d":"460.0"},{"v":18.239162442138806,"d":"18.2"},{"v":21.407812050990984,"d":"21.4"},150,100,12.5,{"v":30.041479749952398,"d":"30.0"},{"v":20.02765316663493,"d":"20.0"},null,{"v":18.239162442138806,"d":"18.2"},"LEGNO",{"v":20.02765316663493,"d":"20.0"},"CALCESTRUZZO",null,null,{"v":24.62286929688739,"d":"24.6"},"LEGNO",25.4,"ACCIAIO",null,null,25.4,"ACCIAIO",25.4,"ACCIAIO"]
[{"$nulls":22},"VGS_9","VGS_9_600","9",600,20.32,{"$f":"Z38-AF38-25","v":425},{"$f":"Z38-AG38","v":{"v":500,"d":"500.0"}},{"v":19.936103137516568,"d":"19.9"},{"v":23.07614390644196,"d":"23.1"},150,100,12.5,{"v":30.041479749952398,"d":"30.0"},{"v":20.02765316663493,"d":"20.0"},null,{"v":19.936103137516568,"d":"19.9"},"LEGNO",{"v":20.02765316663493,"d":"20.0"},{"$f":"IF(AN38=AA38,\"ACCIAIO\",IF(AN38=AE38,\"LEGNO\",IF(AN38=AJ38,\"CALCESTRUZZO\")))","v":"CALCESTRUZZO"},null,null,25.4,"ACCIAIO",25.4,"ACCIAIO",null,null,25.4,"ACCIAIO",25.4,"ACCIAIO"]
[]
[null,null,"My",{"$f":"VLOOKUP(D23,E11:J14,5,FALSE)","v":45.9},"[Nm]",null,null,"ftb",{"$f":"VLOOKUP(D23,E11:J14,6,FALSE)","v":1000},"[MPa]",{"$nulls":12},{"$f":"$E$12","v":"VGS_11"},"VGS_11_300",{"$f":"IF(MID(W40,5,1)<=9,MID(W40,5,1),MID(W40,5,2))","v":"11"},300,{"$f":"$G$12/$AE$14","v":30.4},{"$f":"Z40-AF40-25","v":121},{"$f":"Z40-AG40","v":{"v":200,"d":"200.0"}},{"$f":"((20*(Y40^0.8)*AB40^0.9)/1000)*$AE$10/$AE$9","v":{"v":7.556439483023998,"d":"7.6"}},{"$f":"((20*(Y40^0.8)*AC40^0.9)/1000)*$AE$10/$AE$9","v":{"v":11.877837280351404,"d":"11.9"}},{"$f":"MAX(14*Y40,150)","v":154},{"$f":"MAX(9*Y40,100)","v":100},{"$f":"VLOOKUP(W40,$E$11:$I$14,4,FALSE)","v":12.5},{"$f":"((Y40*PI())*AF40)*(AH40*$AE$18/$AE$17)/1000","v":{"v":37.69649384919952,"d":"37.7"}},{"$f":"((Y40*PI())*AG40)*(AH40*$AE$18/$AE$17)/1000","v":{"v":24.47824275922047,"d":"24.5"}},null,{"$f":"MIN(AA40,AD40,AI40)","v":{"v":7.556439483023998,"d":"7.6"}},{"$f":"IF(AL40=AA40,\"ACCIAIO\",IF(AL40=AD40,\"LEGNO\",IF(AL40=AI40,\" CALCESTRUZZO\")))","v":"LEGNO"},{"$f":"MIN(AA40,AE40,AJ40)","v":{"v":11.877837280351404,"d":"11.9"}},{"$f":"IF(AN40=AA40,\"ACCIAIO\",IF(AN40=AE40,\"LEGNO\",IF(AN40=AJ40,\"CALCESTRUZZO\")))","v":"LEGNO"},null,null,{"$f":"MIN(AA40*$AE$14,AD40*$AE$9/$AE$10,AI40*$AE$17/$AE$18)","v":{"v":10.201193302082398,"d":"10.2"}},{"$f":"IF(AR40=AA40*$AE$14,\"ACCIAIO\",IF(AR40=AD40*$AE$9/$AE$10,\"LEGNO\",IF(AR40=AI40*$AE$17/$AE$18,\" CALCESTRUZZO\")))","v":"LEGNO"},{"$f":"MIN(AA40*$AE$14,AE40*$AE$9/$AE$10,AJ40*$AE$17/$AE$18)","v":{"v":16.035080328474397,"d":"16.0"}},{"$f":"IF(AT40=AA40*$AE$14,\"ACCIAIO\",IF(AT40=AE40*$AE$9/$AE$10,\"LEGNO\",IF(AT40=AJ40*$AE$17/$AE$18,\" CALCESTRUZZO\")))","v":"LEGNO"},null,null,{"$f":"MIN(AA40*$AE$14,$AZ$18*AD40*$AE$9/$AE$10,AI40*$AE$17/$AE$18)","v":{"v":15.301789953123597,"d":"15.3"}},{"$f":"IF(AX40=AA40*$AE$14,\"ACCIAIO\",IF(AX40=$AZ$18*AD40*$AE$9/$AE$10,\"LEGNO\",IF(AX40=AI40*$AE$17/$AE$18,\" CALCESTRUZZO\")))","v":"LEGNO"},{"$f":"MIN(AA40*$AE$14,$AZ$18*AE40*$AE$9/$AE$10,AJ40*$AE$17/$AE$18)","v":{"v":24.052620492711597,"d":"24.1"}},{"$f":"IF(AZ40=AA40*$AE$14,\"ACCIAIO\",IF(AZ40=$AZ$18*AE40*$AE$9/$AE$10,\"LEGNO\",IF(AZ40=AJ40*$AE$17/$AE$18,\" CALCESTRUZZO\")))","v":"LEGNO"}]
[null,null,"fhk",{"$f":"20*E23^-0.5","v":{"v":6.030226891555273,"d":"6.0"}},"[MPa]","ETA-11/0030",null,"Aeff",{"$f":"PI()*VLOOKUP(D23,E11:K14,7,FALSE)^2/4","v":{"v":34.21194399759284,"d":"34.2"}},"[mm2]",{"$nulls":12},"VGS_11","VGS_11_325","11",{"$f":"Z40+25","v":325},30.4,146,{"v":225,"d":"225.0"},{"v":8.94804059063452,"d":"8.9"},{"v":13.20610182620391,"d":"13.2"},154,100,12.5,{"v":37.69649384919952,"d":"37.7"},{"v":24.47824275922047,"d":"24.5"},null,{"v":8.94804059063452,"d":"8.9"},"LEGNO",{"v":13.20610182620391,"d":"13.2"},"LEGNO",null,null,{"v":12.079854797356603,"d":"12.1"},"LEGNO",{"v":17.828237465375278,"d":"17.8"},"LEGNO",null,null,{"v":18.119782196034905,"d":"18.1"},"LEGNO",{"v":26.74235619806292,"d":"26.7"},"LEGNO"]
[{"$nulls":7},"Fv,Rk",{"$f":"0.5*I40*I41/1000","v":{"v":17.10597199879642,"d":"17.1"}},"[kN]","EC 1995-1-1",{"$nulls":11},"VGS_11","VGS_11_350","11",350,30.4,171,{"v":250,"d":"250.0"},{"v":10.315894088167918,"d":"10.3"},{"v":14.519657869845574,"d":"14.5"},154,100,12.5,{"v":37.69649384919952,"d":"37.7"},{"v":24.47824275922047,"d":"24.5"},null,{"v":10.315894088167918,"d":"10.3"},"LEGNO",{"v":14.519657869845574,"d":"14.5"},"LEGNO",null,null,{"v":13.926457019026689,"d":"13.9"},"LEGNO",{"v":19.601538124291526,"d":"19.6"},"LEGNO",null,null,{"v":20.889685528540035,"d":"20.9"},"LEGNO",{"v":29.402307186437287,"d":"29.4"},"LEGNO"]
[{"$nulls":7},"Fv,Rd",{"$f":"I42/AE14","v":{"v":13.684777599037137,"d":"13.7"}},"[kN]",{"$nulls":12},"VGS_11","VGS_11_375","11",375,30.4,196,{"v":275,"d":"275.0"},{"v":11.663820823689857,"d":"11.7"},{"v":15.82012095892662,"d":"15.8"},154,100,12.5,{"v":37.69649384919952,"d":"37.7"},{"v":24.47824275922047,"d":"24.5"},null,{"v":11.663820823689857,"d":"11.7"},"LEGNO",{"v":15.82012095892662,"d":"15.8"},"LEGNO",null,null,{"v":15.746158111981307,"d":"15.7"},"LEGNO",{"v":21.357163294550936,"d":"21.4"},"LEGNO",null,null,{"v":23.61923716797196,"d":"23.6"},"LEGNO",{"v":32.0357449418264,"d":"32.0"},"LEGNO"]
[null,null,"failure mode:",{"$f":"(D41*I30*E23)/1000","v":{"v":17.24644890984808,"d":"17.2"}},null,"c",{"$nulls":16},"VGS_11","VGS_11_400","11",400,30.4,221,{"v":300,"d":"300.0"},{"v":12.9946151410065,"d":"13.0"},{"v":17.108798229761756,"d":"17.1"},154,100,12.5,{"v":37.69649384919952,"d":"37.7"},{"v":24.47824275922047,"d":"24.5"},null,{"v":12.9946151410065,"d":"13.0"},"LEGNO",{"v":17.108798229761756,"d":"17.1"},"LEGNO",null,null,{"v":17.542730440358778,"d":"17.5"},"LEGNO",{"v":23.09687761017837,"d":"23.1"},"LEGNO",null,null,{"v":26.314095660538165,"d":"26.3"},"LEGNO",{"v":34.64531641526756,"d":"34.6"},"LEGNO"]
[null,null,"EC 1995-1-1",{"$f":"IF(T55<(T53/100)*S55,(S55+T55),IF(T55>(T53/100),(S55+U55)))","v":{"v":12.220413318306418,"d":"12.2"}},null,"d",{"$nulls":16},"VGS_11","VGS_11_425","11",425,30.4,246,{"v":325,"d":"325.0"},{"v":14.31040654043901,"d":"14.3"},{"v":18.386768165023867,"d":"18.4"},154,100,12.5,{"v":37.69649384919952,"d":"37.7"},{"v":24.47824275922047,"d":"24.5"},null,{"v":14.31040654043901,"d":"14.3"},"LEGNO",{"v":18.386768165023867,"d":"18.4"},"LEGNO",null,null,{"v":19.319048829592663,"d":"19.3"},"LEGNO",{"v":24.822137022782222,"d":"24.8"},"LEGNO",null,null,{"v":28.978573244388993,"d":"29.0"},"LEGNO",{"v":37.23320553417333,"d":"37.2"},"LEGNO"]
[null,null,"thick plate",{"$f":"IF(T56<(T53/100)*S56,(S56+T56),IF(T56>(T53/100),S56+U56))","v":{"v":8.02652094980626,"d":"8.03"}},null,"e",{"$nulls":16},"VGS_11","VGS_11_450","11",450,30.4,{"$f":"Z46-AF46-25","v":271},{"$f":"Z46-AG46","v":{"v":350,"d":"350.0"}},{"$f":"((20*(Y46^0.8)*AB46^0.9)/1000)*$AE$10/$AE$9","v":{"v":15.612869766148814,"d":"15.6"}},{"$f":"((20*(Y46^0.8)*AC46^0.9)/1000)*$AE$10/$AE$9","v":{"v":19.65493514885711,"d":"19.7"}},154,{"$f":"MAX(9*Y46,100)","v":100},{"$f":"VLOOKUP(W46,$E$11:$I$14,4,FALSE)","v":12.5},{"$f":"((Y46*PI())*AF46)*(AH46*$AE$18/$AE$17)/1000","v":{"v":37.69649384919952,"d":"37.7"}},{"$f":"((Y46*PI())*AG46)*(AH46*$AE$18/$AE$17)/1000","v":{"v":24.47824275922047,"d":"24.5"}},null,{"v":15.612869766148814,"d":"15.6"},"LEGNO",{"v":19.65493514885711,"d":"19.7"},"LEGNO",null,null,{"$f":"MIN(AA46*$AE$14,AD46*$AE$9/$AE$10,AI46*$AE$17/$AE$18)","v":{"v":21.0773741843009,"d":"21.1"}},{"$f":"IF(AR46=AA46*$AE$14,\"ACCIAIO\",IF(AR46=AD46*$AE$9/$AE$10,\"LEGNO\",IF(AR46=AI46*$AE$17/$AE$18,\" CALCESTRUZZO\")))","v":"LEGNO"},{"$f":"MIN(AA46*$AE$14,AE46*$AE$9/$AE$10,AJ46*$AE$17/$AE$18)","v":{"v":26.5341624509571,"d":"26.5"}},{"$f":"IF(AT46=AA46*$AE$14,\"ACCIAIO\",IF(AT46=AE46*$AE$9/$AE$10,\"LEGNO\",IF(AT46=AJ46*$AE$17/$AE$18,\" CALCESTRUZZO\")))","v":"LEGNO"},null,null,{"$f":"MIN(AA46*$AE$14,$AZ$18*AD46*$AE$9/$AE$10,AI46*$AE$17/$AE$18)","v":{"v":31.61606127645135,"d":"31.6"}},{"$f":"IF(AX46=AA46*$AE$14,\"ACCIAIO\",IF(AX46=$AZ$18*AD46*$AE$9/$AE$10,\"LEGNO\",IF(AX46=AI46*$AE$17/$AE$18,\" CALCESTRUZZO\")))","v":"LEGNO"},{"$f":"MIN(AA46*$AE$14,$AZ$18*AE46*$AE$9/$AE$10,AJ46*$AE$17/$AE$18)","v":{"v":38,"d":"38.0"}},{"$f":"IF(AZ46=AA46*$AE$14,\"ACCIAIO\",IF(AZ46=$AZ$18*AE46*$AE$9/$AE$10,\"LEGNO\",IF(AZ46=AJ46*$AE$17/$AE$18,\" CALCESTRUZZO\")))","v":"ACCIAIO"}]
[{"$nulls":22},"VGS_11","VGS_11_475","11",{"$f":"Z46+25","v":475},30.4,296,{"v":375,"d":"375.0"},{"v":16.90335510675159,"d":"16.9"},{"v":20.914068024091584,"d":"20.9"},154,100,12.5,{"v":37.69649384919952,"d":"37.7"},{"v":24.47824275922047,"d":"24.5"},null,{"v":16.90335510675159,"d":"16.9"},"LEGNO",{"v":20.914068024091584,"d":"20.9"},"LEGNO",null,null,{"v":22.81952939411465,"d":"22.8"},"LEGNO",{"v":28.23399183252364,"d":"28.2"},"LEGNO",null,null,{"v":34.22929409117197,"d":"34.2"},"LEGNO",{"v":38,"d":"38.0"},"ACCIAIO"]
[null,null,"Rv,d",{"$f":"MIN(D44,D46,D45)*AE10/AE11","v":{"v":6.174246884466354,"d":"6.2"}},"[kN]",{"$f":"VLOOKUP(D48*AE11/CLT!N12,D44:F46,3,FALSE)","v":"e"},{"$nulls":16},"VGS_11","VGS_11_500","11",500,30.4,321,{"v":400,"d":"400.0"},{"v":18.182973444474648,"d":"18.2"},{"v":22.164828101347375,"d":"22.2"},154,100,12.5,{"v":37.69649384919952,"d":"37.7"},{"v":24.47824275922047,"d":"24.5"},null,{"v":18.182973444474648,"d":"18.2"},"LEGNO",{"v":22.164828101347375,"d":"22.2"},"LEGNO",null,null,{"v":24.547014150040777,"d":"24.5"},"LEGNO",{"v":29.92251793681896,"d":"29.9"},"LEGNO",null,null,{"v":36.820521225061164,"d":"36.8"},"LEGNO",{"v":38,"d":"38.0"},"ACCIAIO"]
[{"$nulls":22},"VGS_11","VGS_11_525","11",525,30.4,346,{"v":425,"d":"425.0"},{"v":19.45265409170637,"d":"19.5"},{"v":23.407789987044442,"d":"23.4"},154,100,12.5,{"v":37.69649384919952,"d":"37.7"},{"v":24.47824275922047,"d":"24.5"},null,{"v":19.45265409170637,"d":"19.5"},"LEGNO",{"v":23.407789987044442,"d":"23.4"},"LEGNO",null,null,{"v":26.261083023803604,"d":"26.3"},"LEGNO",{"v":31.60051648251,"d":"31.6"},"LEGNO",null,null,{"v":38,"d":"38.0"},"ACCIAIO",{"v":38,"d":"38.0"},"ACCIAIO"]
[null,null,"leff,min duct",{"$f":"2.3*(D40*10^3/(D41*E23))^0.5","v":{"v":60.502178096441845,"d":"60.5"}},"[mm]",{"$f":"IF(D50<I30,\"OK\",\"NO\")","v":"OK"},{"$nulls":16},"VGS_11","VGS_11_550","11",550,30.4,371,{"v":450,"d":"450.0"},{"v":20.713185469869224,"d":"20.7"},{"v":24.64345738688546,"d":"24.6"},154,100,12.5,{"v":37.69649384919952,"d":"37.7"},{"v":24.47824275922047,"d":"24.5"},null,{"v":20.713185469869224,"d":"20.7"},"LEGNO",{"v":24.47824275922047,"d":"24.5"},"CALCESTRUZZO",null,null,{"v":27.962800384323454,"d":"28.0"},"LEGNO",{"v":33.26866747229537,"d":"33.3"},"LEGNO",null,null,{"v":38,"d":"38.0"},"ACCIAIO",{"v":38,"d":"38.0"},"ACCIAIO"]
[{"$nulls":22},"VGS_11","VGS_11_575","11",575,30.4,396,{"v":475,"d":"475.0"},{"v":21.965244539057114,"d":"22.0"},{"v":25.872275309469348,"d":"25.9"},154,100,12.5,{"v":37.69649384919952,"d":"37.7"},{"v":24.47824275922047,"d":"24.5"},null,{"v":21.965244539057114,"d":"22.0"},"LEGNO",{"v":24.47824275922047,"d":"24.5"},"CALCESTRUZZO",null,null,{"v":29.653080127727105,"d":"29.7"},"LEGNO",{"v":34.927571667783624,"d":"34.9"},"LEGNO",null,null,{"v":38,"d":"38.0"},"ACCIAIO",{"v":38,"d":"38.0"},"ACCIAIO"]
[null,null,{"$f":"traduzioni!A179","v":"Rigidez lateral para un solo tornillo"},{"$nulls":19},"VGS_11","VGS_11_600","11",600,30.4,421,{"v":500,"d":"500.0"},{"v":23.20941860578759,"d":"23.2"},{"v":27.09463963678593,"d":"27.1"},154,100,12.5,{"v":37.69649384919952,"d":"37.7"},{"v":24.47824275922047,"d":"24.5"},null,{"v":23.20941860578759,"d":"23.2"},"LEGNO",{"v":24.47824275922047,"d":"24.5"},"CALCESTRUZZO",null,null,{"v":31.332715117813247,"d":"31.3"},"LEGNO",{"v":36.57776350966101,"d":"36.6"},"LEGNO",null,null,{"v":38,"d":"38.0"},"ACCIAIO",{"v":38,"d":"38.0"},"ACCIAIO"]
[null,null,"kser",{"$f":"2*60*(0.7*E23)^1.7","v":{"v":3856.6966343319555,"d":"3857"}},"[kN/m]","EC 1995-1-1",{"$nulls":12},"%",100,null,null,"VGS_11","VGS_11_650","11",{"$f":"Z52+50","v":650},30.4,{"$f":"Z53-AF53-25","v":471},{"$f":"Z53-AG53","v":{"v":550,"d":"550.0"}},{"$f":"((20*(Y53^0.8)*AB53^0.9)/1000)*$AE$10/$AE$9","v":{"v":25.67610787859426,"d":"25.7"}},{"$f":"((20*(Y53^0.8)*AC53^0.9)/1000)*$AE$10/$AE$9","v":{"v":29.52138956956288,"d":"29.5"}},{"$f":"MAX(14*Y53,150)","v":154},{"$f":"MAX(9*Y53,100)","v":100},{"$f":"VLOOKUP(W53,$E$11:$I$14,4,FALSE)","v":12.5},{"$f":"((Y53*PI())*AF53)*(AH53*$AE$18/$AE$17)/1000","v":{"v":37.69649384919952,"d":"37.7"}},{"$f":"((Y53*PI())*AG53)*(AH53*$AE$18/$AE$17)/1000","v":{"v":24.47824275922047,"d":"24.5"}},null,{"$f":"MIN(AA53,AD53,AI53)","v":{"v":25.67610787859426,"d":"25.7"}},{"$f":"IF(AL53=AA53,\"ACCIAIO\",IF(AL53=AD53,\"LEGNO\",IF(AL53=AI53,\" CALCESTRUZZO\")))","v":"LEGNO"},{"$f":"MIN(AA53,AE53,AJ53)","v":{"v":24.47824275922047,"d":"24.5"}},{"$f":"IF(AN53=AA53,\"ACCIAIO\",IF(AN53=AE53,\"LEGNO\",IF(AN53=AJ53,\"CALCESTRUZZO\")))","v":"CALCESTRUZZO"},null,null,{"$f":"MIN(AA53*$AE$14,AD53*$AE$9/$AE$10,AI53*$AE$17/$AE$18)","v":{"v":34.66274563610225,"d":"34.7"}},{"$f":"IF(AR53=AA53*$AE$14,\"ACCIAIO\",IF(AR53=AD53*$AE$9/$AE$10,\"LEGNO\",IF(AR53=AI53*$AE$17/$AE$18,\" CALCESTRUZZO\")))","v":"LEGNO"},{"$f":"MIN(AA53*$AE$14,AE53*$AE$9/$AE$10,AJ53*$AE$17/$AE$18)","v":{"v":38,"d":"38.0"}},{"$f":"IF(AT53=AA53*$AE$14,\"ACCIAIO\",IF(AT53=AE53*$AE$9/$AE$10,\"LEGNO\",IF(AT53=AJ53*$AE$17/$AE$18,\" CALCESTRUZZO\")))","v":"ACCIAIO"},null,null,{"$f":"MIN(AA53*$AE$14,$AZ$18*AD53*$AE$9/$AE$10,AI53*$AE$17/$AE$18)","v":{"v":38,"d":"38.0"}},{"$f":"IF(AX53=AA53*$AE$14,\"ACCIAIO\",IF(AX53=$AZ$18*AD53*$AE$9/$AE$10,\"LEGNO\",IF(AX53=AI53*$AE$17/$AE$18,\" CALCESTRUZZO\")))","v":"ACCIAIO"},{"$f":"MIN(AA53*$AE$14,$AZ$18*AE53*$AE$9/$AE$10,AJ53*$AE$17/$AE$18)","v":{"v":38,"d":"38.0"}},{"$f":"IF(AZ53=AA53*$AE$14,\"ACCIAIO\",IF(AZ53=$AZ$18*AE53*$AE$9/$AE$10,\"LEGNO\",IF(AZ53=AJ53*$AE$17/$AE$18,\" CALCESTRUZZO\")))","v":"ACCIAIO"}]
[{"$nulls":18},"J","RE","max RE adm",null,"VGS_11","VGS_11_700","11",{"$f":"Z53+50","v":700},30.4,521,{"v":600,"d":"600.0"},{"v":28.116698652609028,"d":"28.1"},{"v":31.926146387828492,"d":"31.9"},154,100,12.5,{"v":37.69649384919952,"d":"37.7"},{"v":24.47824275922047,"d":"24.5"},null,{"v":28.116698652609028,"d":"28.1"},"LEGNO",{"v":24.47824275922047,"d":"24.5"},"CALCESTRUZZO",null,null,{"v":37.95754318102219,"d":"38.0"},"LEGNO",{"v":38,"d":"38.0"},"ACCIAIO",null,null,{"v":38,"d":"38.0"},"ACCIAIO",{"v":38,"d":"38.0"},"ACCIAIO"]
[{"$nulls":18},{"$f":"(D41*I30*E23*(((2+(4*D40/(D41*E23*I30^2)))^0.5)-1))/1000","v":{"v":7.143962703042554,"d":"7.1"}},{"$f":"IF(I34=I32,I34/4*(AE11/AE10),IF(I34=I31,I34/4*AE14))","v":{"v":5.076450615263864,"d":"5.1"}},{"$f":"MIN(T55,S55*($T$53/100))","v":{"v":5.076450615263864,"d":"5.1"}},null,"VGS_11","VGS_11_750","11",750,30.4,571,{"v":650,"d":"650.0"},{"v":30.53394174777497,"d":"30.5"},{"v":34.31092261141191,"d":"34.3"},154,100,12.5,{"v":37.69649384919952,"d":"37.7"},{"v":24.47824275922047,"d":"24.5"},null,30.4,"ACCIAIO",{"v":24.47824275922047,"d":"24.5"},"CALCESTRUZZO",null,null,{"v":38,"d":"38.0"},"ACCIAIO",{"v":38,"d":"38.0"},"ACCIAIO",null,null,{"v":38,"d":"38.0"},"ACCIAIO",{"v":38,"d":"38.0"},"ACCIAIO"]
[{"$nulls":18},{"$f":"(2.3*(D40*1000*D41*E23)^0.5)/1000","v":{"v":4.01326047490313,"d":"4.0"}},{"$f":"IF(I34=I32,I32/4*(AE11/AE10),IF(I34=I31,I31/4*AE14))","v":{"v":5.076450615263864,"d":"5.1"}},{"$f":"MIN(T56,S56*($T$53/100))","v":{"v":4.01326047490313,"d":"4.0"}},null,"VGS_11","VGS_11_800","11",800,30.4,621,{"v":700,"d":"700.0"},{"v":32.930082249761206,"d":"32.9"},{"v":36.6774058808002,"d":"36.7"},154,100,12.5,{"v":37.69649384919952,"d":"37.7"},{"v":24.47824275922047,"d":"24.5"},null,30.4,"ACCIAIO",{"v":24.47824275922047,"d":"24.5"},"CALCESTRUZZO",null,null,{"v":38,"d":"38.0"},"ACCIAIO",{"v":38,"d":"38.0"},"ACCIAIO",null,null,{"v":38,"d":"38.0"},"ACCIAIO",{"v":38,"d":"38.0"},"ACCIAIO"]
[{"$nulls":22},"VGS_11","VGS_11_850","11",850,30.4,671,{"v":750,"d":"750.0"},{"v":35.306985844405865,"d":"35.3"},{"v":39.02703090744493,"d":"39.0"},{"$f":"MAX(14*Y57,150)","v":154},100,12.5,{"v":37.69649384919952,"d":"37.7"},{"v":24.47824275922047,"d":"24.5"},null,30.4,"ACCIAIO",{"v":24.47824275922047,"d":"24.5"},"CALCESTRUZZO",null,null,{"v":38,"d":"38.0"},"ACCIAIO",{"v":38,"d":"38.0"},"ACCIAIO",null,null,{"v":38,"d":"38.0"},"ACCIAIO",{"v":38,"d":"38.0"},"ACCIAIO"]
[{"$nulls":22},"VGS_11","VGS_11_900","11",900,30.4,721,{"v":800,"d":"800.0"},{"v":37.666226491767056,"d":"37.7"},{"v":41.36103174059848,"d":"41.4"},{"$f":"MAX(14*Y58,150)","v":154},100,12.5,{"v":37.69649384919952,"d":"37.7"},{"v":24.47824275922047,"d":"24.5"},null,30.4,"ACCIAIO",{"v":24.47824275922047,"d":"24.5"},"CALCESTRUZZO",null,null,{"v":38,"d":"38.0"},"ACCIAIO",{"v":38,"d":"38.0"},"ACCIAIO",null,null,{"v":38,"d":"38.0"},"ACCIAIO",{"v":38,"d":"38.0"},"ACCIAIO"]
[{"$nulls":22},"VGS_11","VGS_11_950","11",950,30.4,{"$f":"Z59-AF59-25","v":771},{"$f":"Z59-AG59","v":{"v":850,"d":"850.0"}},{"$f":"((20*(Y59^0.8)*AB59^0.9)/1000)*$AE$10/$AE$9","v":{"v":40.009149144306875,"d":"40.0"}},{"$f":"((20*(Y59^0.8)*AC59^0.9)/1000)*$AE$10/$AE$9","v":{"v":43.68048063375481,"d":"43.7"}},{"$f":"MAX(14*Y59,150)","v":154},{"$f":"MAX(9*Y59,100)","v":100},{"$f":"VLOOKUP(W59,$E$11:$I$14,4,FALSE)","v":12.5},{"$f":"((Y59*PI())*AF59)*(AH59*$AE$18/$AE$17)/1000","v":{"v":37.69649384919952,"d":"37.7"}},{"$f":"((Y59*PI())*AG59)*(AH59*$AE$18/$AE$17)/1000","v":{"v":24.47824275922047,"d":"24.5"}},null,{"$f":"MIN(AA59,AD59,AI59)","v":30.4},{"$f":"IF(AL59=AA59,\"ACCIAIO\",IF(AL59=AD59,\"LEGNO\",IF(AL59=AI59,\" CALCESTRUZZO\")))","v":"ACCIAIO"},{"$f":"MIN(AA59,AE59,AJ59)","v":{"v":24.47824275922047,"d":"24.5"}},{"$f":"IF(AN59=AA59,\"ACCIAIO\",IF(AN59=AE59,\"LEGNO\",IF(AN59=AJ59,\"CALCESTRUZZO\")))","v":"CALCESTRUZZO"},null,null,{"$f":"MIN(AA59*$AE$14,AD59*$AE$9/$AE$10,AI59*$AE$17/$AE$18)","v":{"v":38,"d":"38.0"}},{"$f":"IF(AR59=AA59*$AE$14,\"ACCIAIO\",IF(AR59=AD59*$AE$9/$AE$10,\"LEGNO\",IF(AR59=AI59*$AE$17/$AE$18,\" CALCESTRUZZO\")))","v":"ACCIAIO"},{"$f":"MIN(AA59*$AE$14,AE59*$AE$9/$AE$10,AJ59*$AE$17/$AE$18)","v":{"v":38,"d":"38.0"}},{"$f":"IF(AT59=AA59*$AE$14,\"ACCIAIO\",IF(AT59=AE59*$AE$9/$AE$10,\"LEGNO\",IF(AT59=AJ59*$AE$17/$AE$18,\" CALCESTRUZZO\")))","v":"ACCIAIO"},null,null,{"$f":"MIN(AA59*$AE$14,$AZ$18*AD59*$AE$9/$AE$10,AI59*$AE$17/$AE$18)","v":{"v":38,"d":"38.0"}},{"$f":"IF(AX59=AA59*$AE$14,\"ACCIAIO\",IF(AX59=$AZ$18*AD59*$AE$9/$AE$10,\"LEGNO\",IF(AX59=AI59*$AE$17/$AE$18,\" CALCESTRUZZO\")))","v":"ACCIAIO"},{"$f":"MIN(AA59*$AE$14,$AZ$18*AE59*$AE$9/$AE$10,AJ59*$AE$17/$AE$18)","v":{"v":38,"d":"38.0"}},{"$f":"IF(AZ59=AA59*$AE$14,\"ACCIAIO\",IF(AZ59=$AZ$18*AE59*$AE$9/$AE$10,\"LEGNO\",IF(AZ59=AJ59*$AE$17/$AE$18,\" CALCESTRUZZO\")))","v":"ACCIAIO"}]
[{"$nulls":22},"VGS_11","VGS_11_1000","11",1000,30.4,{"$f":"Z60-AF60-25","v":821},{"$f":"Z60-AG60","v":{"v":900,"d":"900.0"}},{"v":42.33691577716243,"d":"42.3"},{"v":45.98631753499115,"d":"46.0"},154,100,12.5,{"v":37.69649384919952,"d":"37.7"},{"v":24.47824275922047,"d":"24.5"},null,30.4,"ACCIAIO",{"v":24.47824275922047,"d":"24.5"},"CALCESTRUZZO",null,null,{"v":38,"d":"38.0"},"ACCIAIO",{"v":38,"d":"38.0"},"ACCIAIO",null,null,{"v":38,"d":"38.0"},"ACCIAIO",{"v":38,"d":"38.0"},"ACCIAIO"]
[]
[{"$nulls":22},{"$f":"$E$13","v":"VGS_13"},"VGS_13_300","13",300,{"$f":"$G$13/$AE$14","v":42.4},{"$f":"Z62-AF62-25","v":93},{"$f":"Z62-AG62","v":{"v":183,"d":"183.0"}},{"$f":"((20*(Y62^0.8)*AB62^0.9)/1000)*$AE$10/$AE$9","v":{"v":6.815309181620163,"d":"6.8"}},{"$f":"((20*(Y62^0.8)*AC62^0.9)/1000)*$AE$10/$AE$9","v":{"v":12.533053390927336,"d":"12.5"}},{"$f":"MAX(14*Y62,150)","v":182},{"$f":"MAX(9*Y62,100)","v":117},{"$f":"VLOOKUP(W62,$E$11:$I$14,4,FALSE)","v":12.5},{"$f":"((Y62*PI())*AF62)*(AH62*$AE$18/$AE$17)/1000","v":{"v":52.65047488028694,"d":"52.7"}},{"$f":"((Y62*PI())*AG62)*(AH62*$AE$18/$AE$17)/1000","v":{"v":33.84673385161303,"d":"33.8"}},null,{"$f":"MIN(AA62,AD62,AI62)","v":{"v":6.815309181620163,"d":"6.8"}},{"$f":"IF(AL62=AA62,\"ACCIAIO\",IF(AL62=AD62,\"LEGNO\",IF(AL62=AI62,\" CALCESTRUZZO\")))","v":"LEGNO"},{"$f":"MIN(AA62,AE62,AJ62)","v":{"v":12.533053390927336,"d":"12.5"}},{"$f":"IF(AN62=AA62,\"ACCIAIO\",IF(AN62=AE62,\"LEGNO\",IF(AN62=AJ62,\"CALCESTRUZZO\")))","v":"LEGNO"},null,null,{"$f":"MIN(AA62*$AE$14,AD62*$AE$9/$AE$10,AI62*$AE$17/$AE$18)","v":{"v":9.20066739518722,"d":"9.2"}},{"$f":"IF(AR62=AA62*$AE$14,\"ACCIAIO\",IF(AR62=AD62*$AE$9/$AE$10,\"LEGNO\",IF(AR62=AI62*$AE$17/$AE$18,\" CALCESTRUZZO\")))","v":"LEGNO"},{"$f":"MIN(AA62*$AE$14,AE62*$AE$9/$AE$10,AJ62*$AE$17/$AE$18)","v":{"v":16.919622077751903,"d":"16.9"}},{"$f":"IF(AT62=AA62*$AE$14,\"ACCIAIO\",IF(AT62=AE62*$AE$9/$AE$10,\"LEGNO\",IF(AT62=AJ62*$AE$17/$AE$18,\" CALCESTRUZZO\")))","v":"LEGNO"},null,null,{"$f":"MIN(AA62*$AE$14,$AZ$18*AD62*$AE$9/$AE$10,AI62*$AE$17/$AE$18)","v":{"v":13.801001092780831,"d":"13.8"}},{"$f":"IF(AX62=AA62*$AE$14,\"ACCIAIO\",IF(AX62=$AZ$18*AD62*$AE$9/$AE$10,\"LEGNO\",IF(AX62=AI62*$AE$17/$AE$18,\" CALCESTRUZZO\")))","v":"LEGNO"},{"$f":"MIN(AA62*$AE$14,$AZ$18*AE62*$AE$9/$AE$10,AJ62*$AE$17/$AE$18)","v":{"v":25.379433116627855,"d":"25.4"}},{"$f":"IF(AZ62=AA62*$AE$14,\"ACCIAIO\",IF(AZ62=$AZ$18*AE62*$AE$9/$AE$10,\"LEGNO\",IF(AZ62=AJ62*$AE$17/$AE$18,\" CALCESTRUZZO\")))","v":"LEGNO"}]
[{"$nulls":22},"VGS_13","VGS_13_350","13",{"$f":"Z62+50","v":350},42.4,143,{"v":233,"d":"233.0"},{"v":10.03814218016162,"d":"10.0"},{"v":15.576548724575362,"d":"15.6"},182,117,12.5,{"v":52.65047488028694,"d":"52.7"},{"v":33.84673385161303,"d":"33.8"},null,{"v":10.03814218016162,"d":"10.0"},"LEGNO",{"v":15.576548724575362,"d":"15.6"},"LEGNO",null,null,{"v":13.551491943218187,"d":"13.6"},"LEGNO",{"v":21.02834077817674,"d":"21.0"},"LEGNO",null,null,{"v":20.32723791482728,"d":"20.3"},"LEGNO",{"v":31.54251116726511,"d":"31.5"},"LEGNO"]
[{"$nulls":22},"VGS_13","VGS_13_400","13",400,42.4,193,{"v":283,"d":"283.0"},{"v":13.147781775293094,"d":"13.1"},{"v":18.554903541287185,"d":"18.6"},182,117,12.5,{"v":52.65047488028694,"d":"52.7"},{"v":33.84673385161303,"d":"33.8"},null,{"v":13.147781775293094,"d":"13.1"},"LEGNO",{"v":18.554903541287185,"d":"18.6"},"LEGNO",null,null,{"v":17.749505396645677,"d":"17.7"},"LEGNO",{"v":25.0491197807377,"d":"25.0"},"LEGNO",null,null,{"v":26.624258094968514,"d":"26.6"},"LEGNO",{"v":37.57367967110655,"d":"37.6"},"LEGNO"]
[{"$nulls":22},"VGS_13","VGS_13_450","13",450,42.4,243,{"v":333,"d":"333.0"},{"v":16.176946725177327,"d":"16.2"},{"v":21.480813236003915,"d":"21.5"},182,117,12.5,{"v":52.65047488028694,"d":"52.7"},{"v":33.84673385161303,"d":"33.8"},null,{"v":16.176946725177327,"d":"16.2"},"LEGNO",{"v":21.480813236003915,"d":"21.5"},"LEGNO",null,null,{"v":21.838878078989392,"d":"21.8"},"LEGNO",{"v":28.999097868605286,"d":"29.0"},"LEGNO",null,null,{"v":32.75831711848409,"d":"32.8"},"LEGNO",{"v":43.498646802907935,"d":"43.5"},"LEGNO"]
[{"$nulls":22},"VGS_13","VGS_13_500","13",500,42.4,293,{"v":383,"d":"383.0"},{"v":19.143959521969844,"d":"19.1"},{"v":24.362946167207827,"d":"24.4"},182,117,12.5,{"v":52.65047488028694,"d":"52.7"},{"v":33.84673385161303,"d":"33.8"},null,{"v":19.143959521969844,"d":"19.1"},"LEGNO",{"v":24.362946167207827,"d":"24.4"},"LEGNO",null,null,{"v":25.844345354659293,"d":"25.8"},"LEGNO",{"v":32.88997732573057,"d":"32.9"},"LEGNO",null,null,{"v":38.76651803198894,"d":"38.8"},"LEGNO",{"v":49.334965988595854,"d":"49.3"},"LEGNO"]
[{"$nulls":22},"VGS_13","VGS_13_550","13",550,42.4,343,{"v":433,"d":"433.0"},{"v":22.0605134903032,"d":"22.1"},{"v":27.20758632150569,"d":"27.2"},182,117,12.5,{"v":52.65047488028694,"d":"52.7"},{"v":33.84673385161303,"d":"33.8"},null,{"v":22.0605134903032,"d":"22.1"},"LEGNO",{"v":27.20758632150569,"d":"27.2"},"LEGNO",null,null,{"v":29.781693211909325,"d":"29.8"},"LEGNO",{"v":36.730241534032686,"d":"36.7"},"LEGNO",null,null,{"v":44.67253981786398,"d":"44.7"},"LEGNO",{"v":53,"d":"53.0"},"ACCIAIO"]
[{"$nulls":22},"VGS_13","VGS_13_600","13",600,42.4,393,{"v":483,"d":"483.0"},{"v":24.934703269655078,"d":"24.9"},{"v":30.019491170498103,"d":"30.0"},182,117,12.5,{"v":52.65047488028694,"d":"52.7"},{"v":33.84673385161303,"d":"33.8"},null,{"v":24.934703269655078,"d":"24.9"},"LEGNO",{"v":30.019491170498103,"d":"30.0"},"LEGNO",null,null,{"v":33.66184941403436,"d":"33.7"},"LEGNO",{"v":40.52631308017244,"d":"40.5"},"LEGNO",null,null,{"v":50.49277412105154,"d":"50.5"},"LEGNO",{"v":53,"d":"53.0"},"ACCIAIO"]
[{"$nulls":22},"VGS_13","VGS_13_650","13",650,42.4,443,{"v":533,"d":"533.0"},{"v":27.77245441585635,"d":"27.8"},{"v":32.80238315252923,"d":"32.8"},182,117,12.5,{"v":52.65047488028694,"d":"52.7"},{"v":33.84673385161303,"d":"33.8"},null,{"v":27.77245441585635,"d":"27.8"},"LEGNO",{"v":32.80238315252923,"d":"32.8"},"LEGNO",null,null,{"v":37.49281346140608,"d":"37.5"},"LEGNO",{"v":44.283217255914465,"d":"44.3"},"LEGNO",null,null,{"v":53,"d":"53.0"},"ACCIAIO",{"v":53,"d":"53.0"},"ACCIAIO"]
[{"$nulls":22},"VGS_13","VGS_13_700","13",700,42.4,493,{"v":583,"d":"583.0"},{"v":30.57828586254398,"d":"30.6"},{"v":35.55925129778876,"d":"35.6"},182,117,12.5,{"v":52.65047488028694,"d":"52.7"},{"v":33.84673385161303,"d":"33.8"},null,{"v":30.57828586254398,"d":"30.6"},"LEGNO",{"v":33.84673385161303,"d":"33.8"},"CALCESTRUZZO",null,null,{"v":41.28068591443437,"d":"41.3"},"LEGNO",{"v":48.00498925201483,"d":"48.0"},"LEGNO",null,null,{"v":53,"d":"53.0"},"ACCIAIO",{"v":53,"d":"53.0"},"ACCIAIO"]
[{"$nulls":22},"VGS_13","VGS_13_750","13",750,42.4,543,{"v":633,"d":"633.0"},{"v":33.355753493618074,"d":"33.4"},{"v":38.29254646659578,"d":"38.3"},182,117,12.5,{"v":52.65047488028694,"d":"52.7"},{"v":33.84673385161303,"d":"33.8"},null,{"v":33.355753493618074,"d":"33.4"},"LEGNO",{"v":33.84673385161303,"d":"33.8"},"CALCESTRUZZO",null,null,{"v":45.0302672163844,"d":"45.0"},"LEGNO",{"v":51.694937729904304,"d":"51.7"},"LEGNO",null,null,{"v":53,"d":"53.0"},"ACCIAIO",{"v":53,"d":"53.0"},"ACCIAIO"]
[{"$nulls":22},"VGS_13","VGS_13_800","13",800,42.4,593,{"v":683,"d":"683.0"},{"v":36.10772557131662,"d":"36.1"},{"v":41.00431322186679,"d":"41.0"},182,117,12.5,{"v":52.65047488028694,"d":"52.7"},{"v":33.84673385161303,"d":"33.8"},null,{"v":36.10772557131662,"d":"36.1"},"LEGNO",{"v":33.84673385161303,"d":"33.8"},"CALCESTRUZZO",null,null,{"v":48.745429521277444,"d":"48.7"},"LEGNO",{"v":53,"d":"53.0"},"ACCIAIO",null,null,{"v":53,"d":"53.0"},"ACCIAIO",{"v":53,"d":"53.0"},"ACCIAIO"]
[{"$nulls":22},"VGS_13",{"$f":"_xlfn.CONCAT(W73,\"_\",Z73)","v":"VGS_13_850"},"13",850,42.4,{"$f":"Z73-AF73-25","v":643},{"v":733,"d":"733.0"},{"$f":"((20*(Y73^0.8)*AB73^0.9)/1000)*$AE$10/$AE$9","v":{"v":38.836562675450516,"d":"38.8"}},{"$f":"((20*(Y73^0.8)*AC73^0.9)/1000)*$AE$10/$AE$9","v":{"v":43.69628206109772,"d":"43.7"}},{"$f":"MAX(14*Y73,150)","v":182},{"$f":"MAX(9*Y73,100)","v":117},{"$f":"VLOOKUP(W73,$E$11:$I$14,4,FALSE)","v":12.5},{"$f":"((Y73*PI())*AF73)*(AH73*$AE$18/$AE$17)/1000","v":{"v":52.65047488028694,"d":"52.7"}},{"$f":"((Y73*PI())*AG73)*(AH73*$AE$18/$AE$17)/1000","v":{"v":33.84673385161303,"d":"33.8"}},null,{"v":38.836562675450516,"d":"38.8"},"LEGNO",{"v":33.84673385161303,"d":"33.8"},"CALCESTRUZZO",null,null,{"$f":"MIN(AA73*$AE$14,AD73*$AE$9/$AE$10,AI73*$AE$17/$AE$18)","v":{"v":52.4293596118582,"d":"52.4"}},{"$f":"IF(AR73=AA73*$AE$14,\"ACCIAIO\",IF(AR73=AD73*$AE$9/$AE$10,\"LEGNO\",IF(AR73=AI73*$AE$17/$AE$18,\" CALCESTRUZZO\")))","v":"LEGNO"},{"$f":"MIN(AA73*$AE$14,AE73*$AE$9/$AE$10,AJ73*$AE$17/$AE$18)","v":{"v":53,"d":"53.0"}},{"$f":"IF(AT73=AA73*$AE$14,\"ACCIAIO\",IF(AT73=AE73*$AE$9/$AE$10,\"LEGNO\",IF(AT73=AJ73*$AE$17/$AE$18,\" CALCESTRUZZO\")))","v":"ACCIAIO"},null,null,{"$f":"MIN(AA73*$AE$14,$AZ$18*AD73*$AE$9/$AE$10,AI73*$AE$17/$AE$18)","v":{"v":53,"d":"53.0"}},{"$f":"IF(AX73=AA73*$AE$14,\"ACCIAIO\",IF(AX73=$AZ$18*AD73*$AE$9/$AE$10,\"LEGNO\",IF(AX73=AI73*$AE$17/$AE$18,\" CALCESTRUZZO\")))","v":"ACCIAIO"},{"$f":"MIN(AA73*$AE$14,$AZ$18*AE73*$AE$9/$AE$10,AJ73*$AE$17/$AE$18)","v":{"v":53,"d":"53.0"}},{"$f":"IF(AZ73=AA73*$AE$14,\"ACCIAIO\",IF(AZ73=$AZ$18*AE73*$AE$9/$AE$10,\"LEGNO\",IF(AZ73=AJ73*$AE$17/$AE$18,\" CALCESTRUZZO\")))","v":"ACCIAIO"}]
[{"$nulls":22},"VGS_13","VGS_13_900","13",900,42.4,693,{"v":783,"d":"783.0"},{"v":41.5442401590653,"d":"41.5"},{"v":46.36993582763218,"d":"46.4"},182,117,12.5,{"v":52.65047488028694,"d":"52.7"},{"v":33.84673385161303,"d":"33.8"},null,{"v":41.5442401590653,"d":"41.5"},"LEGNO",{"v":33.84673385161303,"d":"33.8"},"CALCESTRUZZO",null,null,{"v":53,"d":"53.0"},"ACCIAIO",{"v":53,"d":"53.0"},"ACCIAIO",null,null,{"v":53,"d":"53.0"},"ACCIAIO",{"v":53,"d":"53.0"},"ACCIAIO"]
[{"$nulls":22},"VGS_13","VGS_13_950","13",950,42.4,743,{"v":833,"d":"833.0"},{"v":44.232434329458506,"d":"44.2"},{"v":49.026558723594036,"d":"49.0"},182,117,12.5,{"v":52.65047488028694,"d":"52.7"},{"v":33.84673385161303,"d":"33.8"},null,42.4,"ACCIAIO",{"v":33.84673385161303,"d":"33.8"},"CALCESTRUZZO",null,null,{"v":53,"d":"53.0"},"ACCIAIO",{"v":53,"d":"53.0"},"ACCIAIO",null,null,{"v":53,"d":"53.0"},"ACCIAIO",{"v":53,"d":"53.0"},"ACCIAIO"]
[{"$nulls":22},"VGS_13","VGS_13_1000","13",1000,42.4,793,{"v":883,"d":"883.0"},{"v":46.90258482918016,"d":"46.9"},{"v":51.66727325669137,"d":"51.7"},182,117,12.5,{"v":52.65047488028694,"d":"52.7"},{"v":33.84673385161303,"d":"33.8"},null,42.4,"ACCIAIO",{"v":33.84673385161303,"d":"33.8"},"CALCESTRUZZO",null,null,{"v":53,"d":"53.0"},"ACCIAIO",{"v":53,"d":"53.0"},"ACCIAIO",null,null,{"v":53,"d":"53.0"},"ACCIAIO",{"v":53,"d":"53.0"},"ACCIAIO"]
[{"$nulls":22},"VGS_13","VGS_13_1100","13",{"$f":"Z76+100","v":1100},42.4,893,{"v":983,"d":"983.0"},{"v":52.193596287554854,"d":"52.2"},{"v":56.904822769046994,"d":"56.9"},182,117,12.5,{"v":52.65047488028694,"d":"52.7"},{"v":33.84673385161303,"d":"33.8"},null,42.4,"ACCIAIO",{"v":33.84673385161303,"d":"33.8"},"CALCESTRUZZO",null,null,{"v":53,"d":"53.0"},"ACCIAIO",{"v":53,"d":"53.0"},"ACCIAIO",null,null,{"v":53,"d":"53.0"},"ACCIAIO",{"v":53,"d":"53.0"},"ACCIAIO"]
[{"$nulls":22},"VGS_13","VGS_13_1200","13",1200,42.4,993,{"v":1083,"d":"1083.0"},{"v":57.42555915891932,"d":"57.4"},{"v":62.089265170119475,"d":"62.1"},182,117,12.5,{"v":52.65047488028694,"d":"52.7"},{"v":33.84673385161303,"d":"33.8"},null,42.4,"ACCIAIO",{"v":33.84673385161303,"d":"33.8"},"CALCESTRUZZO",null,null,{"v":53,"d":"53.0"},"ACCIAIO",{"v":53,"d":"53.0"},"ACCIAIO",null,null,{"v":53,"d":"53.0"},"ACCIAIO",{"v":53,"d":"53.0"},"ACCIAIO"]
[{"$nulls":22},"VGS_13","VGS_13_1300","13",1300,42.4,1093,{"v":1183,"d":"1183.0"},{"v":62.60500502897966,"d":"62.6"},{"v":67.22598576211499,"d":"67.2"},182,117,12.5,{"v":52.65047488028694,"d":"52.7"},{"v":33.84673385161303,"d":"33.8"},null,42.4,"ACCIAIO",{"v":33.84673385161303,"d":"33.8"},"CALCESTRUZZO",null,null,{"v":53,"d":"53.0"},"ACCIAIO",{"v":53,"d":"53.0"},"ACCIAIO",null,null,{"v":53,"d":"53.0"},"ACCIAIO",{"v":53,"d":"53.0"},"ACCIAIO"]
[{"$nulls":22},"VGS_13","VGS_13_1400","13",{"$f":"Z79+100","v":1400},42.4,1193,{"v":1283,"d":"1283.0"},{"v":67.73721056414944,"d":"67.7"},{"v":72.31941422200843,"d":"72.3"},182,117,12.5,{"v":52.65047488028694,"d":"52.7"},{"v":33.84673385161303,"d":"33.8"},null,42.4,"ACCIAIO",{"v":33.84673385161303,"d":"33.8"},"CALCESTRUZZO",null,null,{"v":53,"d":"53.0"},"ACCIAIO",{"v":53,"d":"53.0"},"ACCIAIO",null,null,{"v":53,"d":"53.0"},"ACCIAIO",{"v":53,"d":"53.0"},"ACCIAIO"]
[{"$nulls":22},"VGS_13","VGS_13_1500","13",1500,42.4,1293,{"v":1383,"d":"1383.0"},{"v":72.82652396208488,"d":"72.8"},{"v":77.37325564549556,"d":"77.4"},182,117,12.5,{"v":52.65047488028694,"d":"52.7"},{"v":33.84673385161303,"d":"33.8"},null,42.4,"ACCIAIO",{"v":33.84673385161303,"d":"33.8"},"CALCESTRUZZO",null,null,{"v":53,"d":"53.0"},"ACCIAIO",{"v":53,"d":"53.0"},"ACCIAIO",null,null,{"v":53,"d":"53.0"},"ACCIAIO",{"v":53,"d":"53.0"},"ACCIAIO"]
[]
[]
[{"$nulls":22},{"$f":"$E$14","v":"RTR_16"},{"$f":"_xlfn.CONCAT(W84,\"_\",Z84)","v":"RTR_16_300"},"16",300,{"$f":"$G$14/$AE$14","v":80},{"$f":"Z84-AF84-25","v":51},{"v":156,"d":"156.0"},{"$f":"((15*(Y84^0.8)*AB84^0.9)/1000)*$AE$10/$AE$9","v":{"v":3.5145249856520744,"d":"3.5"}},{"$f":"((15*(Y84^0.8)*AC84^0.9)/1000)*$AE$10/$AE$9","v":{"v":9.613147703942111,"d":"9.6"}},{"$f":"MAX(14*Y84,150)","v":224},{"$f":"MAX(9*Y84,100)","v":144},{"$f":"VLOOKUP(W84,$E$11:$I$14,4,FALSE)","v":9},{"$f":"((Y84*PI())*AF84)*(AH84*$AE$18/$AE$17)/1000","v":{"v":57.42328715937567,"d":"57.4"}},{"$f":"((Y84*PI())*AG84)*(AH84*$AE$18/$AE$17)/1000","v":{"v":36.9149703167415,"d":"36.9"}},null,{"v":3.5145249856520744,"d":"3.5"},"LEGNO",{"v":9.613147703942111,"d":"9.6"},"LEGNO",null,null,{"$f":"MIN(AA84*$AE$14,AD84*$AE$9/$AE$10,AI84*$AE$17/$AE$18)","v":{"v":4.744608730630301,"d":"4.7"}},{"$f":"IF(AR84=AA84*$AE$14,\"ACCIAIO\",IF(AR84=AD84*$AE$9/$AE$10,\"LEGNO\",IF(AR84=AI84*$AE$17/$AE$18,\" CALCESTRUZZO\")))","v":"LEGNO"},{"$f":"MIN(AA84*$AE$14,AE84*$AE$9/$AE$10,AJ84*$AE$17/$AE$18)","v":{"v":12.977749400321851,"d":"13.0"}},{"$f":"IF(AT84=AA84*$AE$14,\"ACCIAIO\",IF(AT84=AE84*$AE$9/$AE$10,\"LEGNO\",IF(AT84=AJ84*$AE$17/$AE$18,\" CALCESTRUZZO\")))","v":"LEGNO"},null,null,{"$f":"MIN(AA84*$AE$14,$AZ$18*AD84*$AE$9/$AE$10,AI84*$AE$17/$AE$18)","v":{"v":7.116913095945452,"d":"7.1"}},{"$f":"IF(AX84=AA84*$AE$14,\"ACCIAIO\",IF(AX84=$AZ$18*AD84*$AE$9/$AE$10,\"LEGNO\",IF(AX84=AI84*$AE$17/$AE$18,\" CALCESTRUZZO\")))","v":"LEGNO"},{"$f":"MIN(AA84*$AE$14,$AZ$18*AE84*$AE$9/$AE$10,AJ84*$AE$17/$AE$18)","v":{"v":19.466624100482775,"d":"19.5"}},{"$f":"IF(AZ84=AA84*$AE$14,\"ACCIAIO\",IF(AZ84=$AZ$18*AE84*$AE$9/$AE$10,\"LEGNO\",IF(AZ84=AJ84*$AE$17/$AE$18,\" CALCESTRUZZO\")))","v":"LEGNO"}]
[{"$nulls":22},"RTR_16",{"$f":"_xlfn.CONCAT(W85,\"_\",Z85)","v":"RTR_16_350"},"16",{"$f":"Z84+50","v":350},80,{"$f":"Z85-AF85-25","v":101},{"$f":"Z85-AG85","v":{"v":206,"d":"206.0"}},{"$f":"((15*(Y85^0.8)*AB85^0.9)/1000)*$AE$10/$AE$9","v":{"v":6.500439387011334,"d":"6.5"}},{"$f":"((15*(Y85^0.8)*AC85^0.9)/1000)*$AE$10/$AE$9","v":{"v":12.346218963196012,"d":"12.3"}},{"$f":"MAX(14*Y85,150)","v":224},{"$f":"MAX(9*Y85,100)","v":144},{"$f":"VLOOKUP(W85,$E$11:$I$14,4,FALSE)","v":9},{"$f":"((Y85*PI())*AF85)*(AH85*$AE$18/$AE$17)/1000","v":{"v":57.42328715937567,"d":"57.4"}},{"$f":"((Y85*PI())*AG85)*(AH85*$AE$18/$AE$17)/1000","v":{"v":36.9149703167415,"d":"36.9"}},null,{"$f":"MIN(AA85,AD85,AI85)","v":{"v":6.500439387011334,"d":"6.5"}},{"$f":"IF(AL85=AA85,\"ACCIAIO\",IF(AL85=AD85,\"LEGNO\",IF(AL85=AI85,\" CALCESTRUZZO\")))","v":"LEGNO"},{"$f":"MIN(AA85,AE85,AJ85)","v":{"v":12.346218963196012,"d":"12.3"}},{"$f":"IF(AN85=AA85,\"ACCIAIO\",IF(AN85=AE85,\"LEGNO\",IF(AN85=AJ85,\"CALCESTRUZZO\")))","v":"LEGNO"},null,null,{"$f":"MIN(AA85*$AE$14,AD85*$AE$9/$AE$10,AI85*$AE$17/$AE$18)","v":{"v":8.775593172465301,"d":"8.8"}},{"$f":"IF(AR85=AA85*$AE$14,\"ACCIAIO\",IF(AR85=AD85*$AE$9/$AE$10,\"LEGNO\",IF(AR85=AI85*$AE$17/$AE$18,\" CALCESTRUZZO\")))","v":"LEGNO"},{"$f":"MIN(AA85*$AE$14,AE85*$AE$9/$AE$10,AJ85*$AE$17/$AE$18)","v":{"v":16.667395600314617,"d":"16.7"}},{"$f":"IF(AT85=AA85*$AE$14,\"ACCIAIO\",IF(AT85=AE85*$AE$9/$AE$10,\"LEGNO\",IF(AT85=AJ85*$AE$17/$AE$18,\" CALCESTRUZZO\")))","v":"LEGNO"},null,null,{"$f":"MIN(AA85*$AE$14,$AZ$18*AD85*$AE$9/$AE$10,AI85*$AE$17/$AE$18)","v":{"v":13.163389758697953,"d":"13.2"}},{"$f":"IF(AX85=AA85*$AE$14,\"ACCIAIO\",IF(AX85=$AZ$18*AD85*$AE$9/$AE$10,\"LEGNO\",IF(AX85=AI85*$AE$17/$AE$18,\" CALCESTRUZZO\")))","v":"LEGNO"},{"$f":"MIN(AA85*$AE$14,$AZ$18*AE85*$AE$9/$AE$10,AJ85*$AE$17/$AE$18)","v":{"v":25.00109340047193,"d":"25.0"}},{"$f":"IF(AZ85=AA85*$AE$14,\"ACCIAIO\",IF(AZ85=$AZ$18*AE85*$AE$9/$AE$10,\"LEGNO\",IF(AZ85=AJ85*$AE$17/$AE$18,\" CALCESTRUZZO\")))","v":"LEGNO"}]
[{"$nulls":22},"RTR_16","RTR_16_400","16",{"$f":"Z85+50","v":400},80,151,{"v":256,"d":"256.0"},{"v":9.335395659302861,"d":"9.3"},{"v":15.013067784793812,"d":"15.0"},224,144,9,{"v":57.42328715937567,"d":"57.4"},{"v":36.9149703167415,"d":"36.9"},null,{"v":9.335395659302861,"d":"9.3"},"LEGNO",{"v":15.013067784793812,"d":"15.0"},"LEGNO",null,null,{"v":12.602784140058864,"d":"12.6"},"LEGNO",{"v":20.267641509471648,"d":"20.3"},"LEGNO",null,null,{"v":18.904176210088295,"d":"18.9"},"LEGNO",{"v":30.40146226420747,"d":"30.4"},"LEGNO"]
[{"$nulls":22},"RTR_16","RTR_16_450","16",450,80,201,{"v":306,"d":"306.0"},{"v":12.076189750110517,"d":"12.1"},{"v":17.627988581272128,"d":"17.6"},224,144,9,{"v":57.42328715937567,"d":"57.4"},{"v":36.9149703167415,"d":"36.9"},null,{"v":12.076189750110517,"d":"12.1"},"LEGNO",{"v":17.627988581272128,"d":"17.6"},"LEGNO",null,null,{"v":16.3028561626492,"d":"16.3"},"LEGNO",{"v":23.797784584717373,"d":"23.8"},"LEGNO",null,null,{"v":24.4542842439738,"d":"24.5"},"LEGNO",{"v":35.69667687707606,"d":"35.7"},"LEGNO"]
[{"$nulls":22},"RTR_16","RTR_16_500","16",500,80,251,{"v":356,"d":"356.0"},{"v":14.748906621468088,"d":"14.7"},{"v":20.200330491292355,"d":"20.2"},224,144,9,{"v":57.42328715937567,"d":"57.4"},{"v":36.9149703167415,"d":"36.9"},null,{"v":14.748906621468088,"d":"14.7"},"LEGNO",{"v":20.200330491292355,"d":"20.2"},"LEGNO",null,null,{"v":19.91102393898192,"d":"19.9"},"LEGNO",{"v":27.27044616324468,"d":"27.3"},"LEGNO",null,null,{"v":29.86653590847288,"d":"29.9"},"LEGNO",{"v":40.90566924486702,"d":"40.9"},"LEGNO"]
[{"$nulls":22},"RTR_16","RTR_16_550","16",550,80,301,{"v":406,"d":"406.0"},{"v":17.368540381761637,"d":"17.4"},{"v":22.736672535105697,"d":"22.7"},224,144,9,{"v":57.42328715937567,"d":"57.4"},{"v":36.9149703167415,"d":"36.9"},null,{"v":17.368540381761637,"d":"17.4"},"LEGNO",{"v":22.736672535105697,"d":"22.7"},"LEGNO",null,null,{"v":23.44752951537821,"d":"23.4"},"LEGNO",{"v":30.69450792239269,"d":"30.7"},"LEGNO",null,null,{"v":35.17129427306732,"d":"35.2"},"LEGNO",{"v":46.04176188358904,"d":"46.0"},"LEGNO"]
[{"$nulls":22},"RTR_16","RTR_16_600","16",600,80,351,{"v":456,"d":"456.0"},{"v":19.944808992106704,"d":"19.9"},{"v":25.2418879809998,"d":"25.2"},224,144,9,{"v":57.42328715937567,"d":"57.4"},{"v":36.9149703167415,"d":"36.9"},null,{"v":19.944808992106704,"d":"19.9"},"LEGNO",{"v":25.2418879809998,"d":"25.2"},"LEGNO",null,null,{"v":26.92549213934405,"d":"26.9"},"LEGNO",{"v":34.07654877434973,"d":"34.1"},"LEGNO",null,null,{"v":40.38823820901608,"d":"40.4"},"LEGNO",{"v":51.1148231615246,"d":"51.1"},"LEGNO"]
[{"$nulls":22},"RTR_16","RTR_16_650","16",650,80,401,{"v":506,"d":"506.0"},{"v":22.48450919861248,"d":"22.5"},{"v":27.71972655736923,"d":"27.7"},224,144,9,{"v":57.42328715937567,"d":"57.4"},{"v":36.9149703167415,"d":"36.9"},null,{"v":22.48450919861248,"d":"22.5"},"LEGNO",{"v":27.71972655736923,"d":"27.7"},"LEGNO",null,null,{"v":30.35408741812685,"d":"30.4"},"LEGNO",{"v":37.421630852448466,"d":"37.4"},"LEGNO",null,null,{"v":45.53113112719028,"d":"45.5"},"LEGNO",{"v":56.1324462786727,"d":"56.1"},"LEGNO"]
[{"$nulls":22},"RTR_16",{"$f":"_xlfn.CONCAT(W92,\"_\",Z92)","v":"RTR_16_700"},{"$f":"IF(MID(W92,5,1)<=9,MID(W92,5,1),MID(W92,5,2))","v":"16"},700,80,451,{"v":556,"d":"556.0"},{"$f":"((15*(Y92^0.8)*AB92^0.9)/1000)*$AE$10/$AE$9","v":{"v":24.992653283340704,"d":"25.0"}},{"$f":"((15*(Y92^0.8)*AC92^0.9)/1000)*$AE$10/$AE$9","v":{"v":30.17315954116246,"d":"30.2"}},{"$f":"MAX(14*Y92,150)","v":224},{"$f":"MAX(9*Y92,100)","v":144},{"$f":"VLOOKUP(W92,$E$11:$I$14,4,FALSE)","v":9},{"$f":"((Y92*PI())*AF92)*(AH92*$AE$18/$AE$17)/1000","v":{"v":57.42328715937567,"d":"57.4"}},{"$f":"((Y92*PI())*AG92)*(AH92*$AE$18/$AE$17)/1000","v":{"v":36.9149703167415,"d":"36.9"}},null,{"v":24.992653283340704,"d":"25.0"},"LEGNO",{"v":30.17315954116246,"d":"30.2"},"LEGNO",null,null,{"v":33.74008193250995,"d":"33.7"},"LEGNO",{"v":40.733765380569324,"d":"40.7"},"LEGNO",null,null,{"v":50.610122898764935,"d":"50.6"},"LEGNO",{"v":61.10064807085398,"d":"61.1"},"LEGNO"]
[{"$nulls":22},"RTR_16",{"$f":"_xlfn.CONCAT(W93,\"_\",Z93)","v":"RTR_16_750"},"16",750,80,{"$f":"Z93-AF93-25","v":501},{"v":606,"d":"606.0"},{"$f":"((15*(Y93^0.8)*AB93^0.9)/1000)*$AE$10/$AE$9","v":{"v":27.473085008363245,"d":"27.5"}},{"$f":"((15*(Y93^0.8)*AC93^0.9)/1000)*$AE$10/$AE$9","v":{"v":32.6045971376774,"d":"32.6"}},{"$f":"MAX(14*Y93,150)","v":224},{"$f":"MAX(9*Y93,100)","v":144},{"$f":"VLOOKUP(W93,$E$11:$I$14,4,FALSE)","v":9},{"$f":"((Y93*PI())*AF93)*(AH93*$AE$18/$AE$17)/1000","v":{"v":57.42328715937567,"d":"57.4"}},{"$f":"((Y93*PI())*AG93)*(AH93*$AE$18/$AE$17)/1000","v":{"v":36.9149703167415,"d":"36.9"}},null,{"v":27.473085008363245,"d":"27.5"},"LEGNO",{"v":32.6045971376774,"d":"32.6"},"LEGNO",null,null,{"v":37.08866476129038,"d":"37.1"},"LEGNO",{"v":44.01620613586449,"d":"44.0"},"LEGNO",null,null,{"v":55.632997141935576,"d":"55.6"},"LEGNO",{"v":65.14406526483795,"d":"65.1"}," CALCESTRUZZO"]
[{"$nulls":22},"RTR_16",{"$f":"_xlfn.CONCAT(W94,\"_\",Z94)","v":"RTR_16_800"},"16",800,80,551,{"v":656,"d":"656.0"},{"$f":"((15*(Y94^0.8)*AB94^0.9)/1000)*$AE$10/$AE$9","v":{"v":29.928842145465477,"d":"29.9"}},{"$f":"((15*(Y94^0.8)*AC94^0.9)/1000)*$AE$10/$AE$9","v":{"v":35.0160321314893,"d":"35.0"}},{"$f":"MAX(14*Y94,150)","v":224},{"$f":"MAX(9*Y94,100)","v":144},{"$f":"VLOOKUP(W94,$E$11:$I$14,4,FALSE)","v":9},{"$f":"((Y94*PI())*AF94)*(AH94*$AE$18/$AE$17)/1000","v":{"v":57.42328715937567,"d":"57.4"}},{"$f":"((Y94*PI())*AG94)*(AH94*$AE$18/$AE$17)/1000","v":{"v":36.9149703167415,"d":"36.9"}},null,{"v":29.928842145465477,"d":"29.9"},"LEGNO",{"v":35.0160321314893,"d":"35.0"},"LEGNO",null,null,{"v":40.4039368963784,"d":"40.4"},"LEGNO",{"v":47.27164337751056,"d":"47.3"},"LEGNO",null,null,{"v":60.605905344567596,"d":"60.6"},"LEGNO",{"v":65.14406526483795,"d":"65.1"}," CALCESTRUZZO"]
[{"$nulls":22},"RTR_16",{"$f":"_xlfn.CONCAT(W95,\"_\",Z95)","v":"RTR_16_850"},"16",850,80,601,{"v":706,"d":"706.0"},{"$f":"((15*(Y95^0.8)*AB95^0.9)/1000)*$AE$10/$AE$9","v":{"v":32.3623836073645,"d":"32.4"}},{"$f":"((15*(Y95^0.8)*AC95^0.9)/1000)*$AE$10/$AE$9","v":{"v":37.40913856406551,"d":"37.4"}},{"$f":"MAX(14*Y95,150)","v":224},{"$f":"MAX(9*Y95,100)","v":144},{"$f":"VLOOKUP(W95,$E$11:$I$14,4,FALSE)","v":9},{"$f":"((Y95*PI())*AF95)*(AH95*$AE$18/$AE$17)/1000","v":{"v":57.42328715937567,"d":"57.4"}},{"$f":"((Y95*PI())*AG95)*(AH95*$AE$18/$AE$17)/1000","v":{"v":36.9149703167415,"d":"36.9"}},null,{"v":32.3623836073645,"d":"32.4"},"LEGNO",{"v":36.9149703167415,"d":"36.9"},"CALCESTRUZZO",null,null,{"v":43.68921786994208,"d":"43.7"},"LEGNO",{"v":50.50233706148844,"d":"50.5"},"LEGNO",null,null,{"v":65.5338268049131,"d":"65.5"},"LEGNO",{"v":65.14406526483795,"d":"65.1"}," CALCESTRUZZO"]
[{"$nulls":22},"RTR_16",{"$f":"_xlfn.CONCAT(W96,\"_\",Z96)","v":"RTR_16_900"},"16",900,80,{"$f":"Z96-AF96-25","v":651},{"$f":"Z96-AG96","v":{"v":756,"d":"756.0"}},{"$f":"((15*(Y96^0.8)*AB96^0.9)/1000)*$AE$10/$AE$9","v":{"v":34.77573889452269,"d":"34.8"}},{"$f":"((15*(Y96^0.8)*AC96^0.9)/1000)*$AE$10/$AE$9","v":{"v":39.78534172253661,"d":"39.8"}},{"$f":"MAX(14*Y96,150)","v":224},{"$f":"MAX(9*Y96,100)","v":144},{"$f":"VLOOKUP(W96,$E$11:$I$14,4,FALSE)","v":9},{"$f":"((Y96*PI())*AF96)*(AH96*$AE$18/$AE$17)/1000","v":{"v":57.42328715937567,"d":"57.4"}},{"$f":"((Y96*PI())*AG96)*(AH96*$AE$18/$AE$17)/1000","v":{"v":36.9149703167415,"d":"36.9"}},null,{"$f":"MIN(AA96,AD96,AI96)","v":{"v":34.77573889452269,"d":"34.8"}},{"$f":"IF(AL96=AA96,\"ACCIAIO\",IF(AL96=AD96,\"LEGNO\",IF(AL96=AI96,\" CALCESTRUZZO\")))","v":"LEGNO"},{"$f":"MIN(AA96,AE96,AJ96)","v":{"v":36.9149703167415,"d":"36.9"}},{"$f":"IF(AN96=AA96,\"ACCIAIO\",IF(AN96=AE96,\"LEGNO\",IF(AN96=AJ96,\"CALCESTRUZZO\")))","v":"CALCESTRUZZO"},null,null,{"$f":"MIN(AA96*$AE$14,AD96*$AE$9/$AE$10,AI96*$AE$17/$AE$18)","v":{"v":46.94724750760563,"d":"46.9"}},{"$f":"IF(AR96=AA96*$AE$14,\"ACCIAIO\",IF(AR96=AD96*$AE$9/$AE$10,\"LEGNO\",IF(AR96=AI96*$AE$17/$AE$18,\" CALCESTRUZZO\")))","v":"LEGNO"},{"$f":"MIN(AA96*$AE$14,AE96*$AE$9/$AE$10,AJ96*$AE$17/$AE$18)","v":{"v":53.710211325424424,"d":"53.7"}},{"$f":"IF(AT96=AA96*$AE$14,\"ACCIAIO\",IF(AT96=AE96*$AE$9/$AE$10,\"LEGNO\",IF(AT96=AJ96*$AE$17/$AE$18,\" CALCESTRUZZO\")))","v":"LEGNO"},null,null,{"$f":"MIN(AA96*$AE$14,$AZ$18*AD96*$AE$9/$AE$10,AI96*$AE$17/$AE$18)","v":{"v":70.42087126140845,"d":"70.4"}},{"$f":"IF(AX96=AA96*$AE$14,\"ACCIAIO\",IF(AX96=$AZ$18*AD96*$AE$9/$AE$10,\"LEGNO\",IF(AX96=AI96*$AE$17/$AE$18,\" CALCESTRUZZO\")))","v":"LEGNO"},{"$f":"MIN(AA96*$AE$14,$AZ$18*AE96*$AE$9/$AE$10,AJ96*$AE$17/$AE$18)","v":{"v":65.14406526483795,"d":"65.1"}},{"$f":"IF(AZ96=AA96*$AE$14,\"ACCIAIO\",IF(AZ96=$AZ$18*AE96*$AE$9/$AE$10,\"LEGNO\",IF(AZ96=AJ96*$AE$17/$AE$18,\" CALCESTRUZZO\")))","v":" CALCESTRUZZO"}]
[{"$nulls":22},"RTR_16","RTR_16_950","16",950,80,701,{"v":806,"d":"806.0"},{"v":37.17061039155458,"d":"37.2"},{"v":42.145869134449946,"d":"42.1"},224,144,9,{"v":57.42328715937567,"d":"57.4"},{"v":36.9149703167415,"d":"36.9"},null,{"v":37.17061039155458,"d":"37.2"},"LEGNO",{"v":36.9149703167415,"d":"36.9"},"CALCESTRUZZO",null,null,{"v":50.18032402859869,"d":"50.2"},"LEGNO",{"v":56.89692333150743,"d":"56.9"},"LEGNO",null,null,{"v":75.27048604289803,"d":"75.3"},"LEGNO",{"v":65.14406526483795,"d":"65.1"}," CALCESTRUZZO"]
[{"$nulls":22},"RTR_16",{"$f":"_xlfn.CONCAT(W98,\"_\",Z98)","v":"RTR_16_1000"},"16",1000,80,751,{"$f":"Z98-AG98","v":{"v":856,"d":"856.0"}},{"$f":"((15*(Y98^0.8)*AB98^0.9)/1000)*$AE$10/$AE$9","v":{"v":39.54844570904084,"d":"39.5"}},{"$f":"((15*(Y98^0.8)*AC98^0.9)/1000)*$AE$10/$AE$9","v":{"v":44.49178858605705,"d":"44.5"}},{"$f":"MAX(14*Y98,150)","v":224},{"$f":"MAX(9*Y98,100)","v":144},{"$f":"VLOOKUP(W98,$E$11:$I$14,4,FALSE)","v":9},{"$f":"((Y98*PI())*AF98)*(AH98*$AE$18/$AE$17)/1000","v":{"v":57.42328715937567,"d":"57.4"}},{"$f":"((Y98*PI())*AG98)*(AH98*$AE$18/$AE$17)/1000","v":{"v":36.9149703167415,"d":"36.9"}},null,{"$f":"MIN(AA98,AD98,AI98)","v":{"v":39.54844570904084,"d":"39.5"}},"LEGNO",{"v":36.9149703167415,"d":"36.9"},"CALCESTRUZZO",null,null,{"v":53.390401707205136,"d":"53.4"},"LEGNO",{"v":60.06391459117702,"d":"60.1"},"LEGNO",null,null,{"v":80.08560256080771,"d":"80.1"},"LEGNO",{"v":65.14406526483795,"d":"65.1"}," CALCESTRUZZO"]

{"sheet":"traduzioni","index":9,"n_rows":226,"n_cols":9,"rows_kept":226,"hidden":true}
["lingua selezionata:",{"$f":"GEOMETRY!K8","v":"ES"},null,"IT","EN","DE","ES","FR","PT"]
[]
[{"$f":"IF($B$1=$D$1,D3,IF($B$1=$E$1,E3,IF($B$1=$F$1,F3,IF($B$1=$G$1,G3,IF($B$1=$H$1,H3,IF($B$1=$I$1,I3,\"ERROR\"))))))","v":"Idioma"},null,null,"Lingua","Language","Sprache","Idioma","Langue","Idioma"]
[{"$f":"IF($B$1=$D$1,D4,IF($B$1=$E$1,E4,IF($B$1=$F$1,F4,IF($B$1=$G$1,G4,IF($B$1=$H$1,H4,IF($B$1=$I$1,I4,\"ERROR\"))))))","v":"CÁLCULO TC FUSION"},null,null,"CALCOLO TC-FUSION","TC-FUSION CALCULATION","BERECHNUNG TC FUSION","CÁLCULO TC FUSION","CALCUL TC-FUSION","CÁLCULO TC-FUSION"]
["Información general ",null,null,"Informazioni generali ","General informations","Allgemeine Informationen ","Información general ","Informations générales ","Informações gerais "]
["Fecha",null,null,"Data","Date","Datum","Fecha","Date","Data"]
["Proyecto",null,null,"Progetto","Project","Projekt","Proyecto","Projet","Projeto"]
["Proyectista",null,null,"Progettista","Designer","Planer","Proyectista","Concepteur","Projetista"]
["Conexión n.º",null,null,"Connessione nr.","Connection no.","Verbindung Nr.","Conexión n.º","Connexion n°","Ligação n.º"]
["Normativa",null,null,"Normativa","Standard","Norm","Normativa","Norme","Normativa"]
["Número eficaz axial (no necesario)",null,null,"Numero efficace assiale (non necessario)","Axial effective number (not required)","Wirksame Anzahl in axialer Richtung (nicht erforderlich)","Número eficaz axial (no necesario)","Nombre efficace axial (non nécessaire)","Número efetivo axial (não necessário)"]
["Número eficaz al corte (no necesario)",null,null,"Numero efficace a taglio (non necessario)","Effective shear number (not necessary)","Wirksame Anzahl in Richtung Querkraft (nicht erforderlich)","Número eficaz al corte (no necesario)","Nombre efficace au cisaillement (non nécessaire)","Número efetivo de corte (não necessário)"]
["Solicitaciones",null,null,"Sollecitazioni","Loads","Beanspruchungen","Solicitaciones","Sollicitations","Carregamentos"]
["Duración de la carga ",null,null,"Durata carico ","Load duration","Lasteinwirkungsdauer ","Duración de la carga ","Durée de la charge ","Duração da carga "]
["Longitud de la unión",null,null,"Lunghezza giunto","Joint length","Länge Verbindung","Longitud de la unión","Longueur de l’assemblage","Comprimento da junta"]
["Acción axial paralela a la conexión",null,null,"Azione assiale parallella alla connessione","Axial force parallel to the connection","Normalkraft senkrecht zum Anschluss","Acción axial paralela a la conexión","Action axiale parallèle à la connexion","Ação axial paralela à ligação"]
["Corte perpendicular a la conexión, dirección-x",null,null,"Taglio perpendicolare alla connessione, direzione-x","Shear perpendicular to the connection, x-direction","Querkraft in x-Richtung","Corte perpendicular a la conexión, dirección-x","Coupe perpendiculaire à la connexion, direction-x","Corte perpendicular à ligação, direção-x"]
["Corte perpendicular a la conexión, dirección-z",null,null,"Taglio perpendicolare alla connessione, direzione-z","Shear perpendicular to the connection, z-direction","Querkraft in z-Richtung","Corte perpendicular a la conexión, dirección-z","Coupe perpendiculaire à la connexion, direction-z","Corte perpendicular à ligação, direção-z"]
["Momento flector paralelo a la conexión",null,null,"Momento flettente parallelo alla connessione","Bending moment parallel to the connection","Biegemoment parallel zur Verbindung","Momento flector paralelo a la conexión","Moment de flexion parallèle à la connexion","Momento fletor paralelo à ligação"]
["Fibras inferiores en tracción",null,null,"Fibre inferiori tese","Lower tense fibers","Untere Fasern unter Zugspannung","Fibras inferiores en tracción","Fibres inférieures tendues","Fibras inferiores tensionadas"]
["Momento perpendicular a la conexión, plano-xz",null,null,"Momento perpendicolare alla connessione, piano-xz","Moment perpendicular to the connection, plane-xz","Moment senkrecht zur Verbindung, Ebene-xz","Momento perpendicular a la conexión, plano-xz","Momentum perpendiculaire à la connexion, plan-xz","Momento perpendicular à ligação, plano-xz"]
["+ tracción",null,null,"+ trazione","+ traction","+ Zugkraft","+ tracción","+ traction","+ tração"]
["- compresión",null,null,"- compressione","- compression","- Druckkraft","- compresión","- compression","- compressão"]
["+ fibras inferiores en tracción",null,null,"+ fibre tese inferiori","+ lower tense fibers","+ untere Fasern unter Zugspannung","+ fibras inferiores en tracción","+ fibres tendues inférieures","+ fibras tensionadas inferiores"]
["- fibras superiores en tracción",null,null,"- fibre tese superiori","- upper tense fibers","- obere Fasern unter Zugspannung","- fibras superiores en tracción","- fibres tendues supérieures","- fibras tensionadas superiores"]
["Permanente",null,null,"Permanente","Permanent","Dauerhaft","Permanente","Permanente","Permanente"]
["Larga",null,null,"Lunga","Long-term","Lang","Larga","Longue","Longa"]
["Media",null,null,"Media","Medium-term","Mittel","Media","Moyenne","Média"]
["Corta",null,null,"Breve","Short-term","Kurz","Corta","Courte","Curta"]
["Instantánea",null,null,"Istantanea","Istantaneous","Sofort wirkend","Instantánea","Instantanée","Instantânea"]
["Corta/Instantánea",null,null,"Breve/Istantanea","Short/Instantaneous","Kurz/Sofort wirkend","Corta/Instantánea","Brève/Instantanée","Curta/Instantânea"]
["Composición del panel",null,null,"Composizione pannello","Panel composition","Zusammensetzung Platte","Composición del panel","Composition du panneau","Composição do painel"]
["Clase",null,null,"Classe","Class","Klasse","Clase","Classe","Classe"]
["Número de capas",null,null,"Nr strati","No. Layers","Anz. Schichten","Número de capas","N° de couches","N.º camadas"]
["Tipo",null,null,"Tipo","Type","Typ","Tipo","Type","Tipo"]
["Espesor",null,null,"Spessore","Thickness","Stärke","Espesor","Épaisseur","Espessura"]
["Orientación ",null,null,"Orientamento ","Orientation","Ausrichtung ","Orientación ","Orientation ","Orientação "]
["L-Fibras capas externas perpendiculares a la línea de unión",null,null,"L-Fibre strati esterni perpendicolari alla linea di giunto","L-Outer layers fibers perpendicular to the joint line","L-Fasern äußere Schichten senkrecht zur Verbindungslinie","L-Fibras capas externas perpendiculares a la línea de unión","L-Fibre couches externes perpendiculaires à la ligne de l'assemblage","L-Fibras das camadas exteriores perpendiculares à linha de junção"]
["T-Fibras capas externas paralelas a la línea de unión",null,null,"T-Fibre strati esterni paralleli alla linea di giunto","T-Outer layers fibers parallel to the joint line","T-Fasern äußere Schichten parallel zur Verbindungslinie","T-Fibras capas externas paralelas a la línea de unión","T-Fibre couches externes parallèles à la ligne de l'assemblage","T-Fibras das camadas exteriores paralelas à linha de junção"]
["Tornillos",null,null,"Viti","Screws","Schrauben","Tornillos","Vis","Parafusos"]
["Tipo de tornillo",null,null,"Tipo di vite","Screw type","Schraubentyp","Tipo de tornillo","Type de vis","Tipo de parafuso"]
["Diámetro",null,null,"Diametro","Diameter","Durchmesser","Diámetro","Diamètre","Diâmetro"]
["Longitud ",null,null,"Lunghezza ","Length","Länge ","Longitud ","Longueur ","Comprimento "]
["Separación superior",null,null,"Spaziatura superiore","Upper spacing","Oberer Abstand","Separación superior","Espacement supérieur","Espaçamento superior"]
["Separación inferior",null,null,"Spaziatura inferiore","Bottom spacing","Unterer Abstand","Separación inferior","Espacement inférieur","Espaçamento inferior"]
["Tabla (Y/N)",null,null,"Tavola (Y/N)","Board (Y/N)","Schalung (Y/N)","Tabla (Y/N)","Lame (Y/N)","Tabela (S/N)"]
["Número de tornillos superiores/metro",null,null,"Numero di viti superiori/metro","Number of upper screws/meter","Anzahl obere Schrauben/Meter","Número de tornillos superiores/metro","Nombre de vis supérieures/mètre","Número de parafusos superiores/metro"]
["Número de tornillos inferiores/metro",null,null,"Numero di viti inferiori/metro","Number of lower screws/meter","Anzahl untere Schrauben/Meter","Número de tornillos inferiores/metro","Nombre de vis inférieures/mètre","Número de parafusos inferiores/metro"]
["Longitud del anclaje mínima (hormigón)",null,null,"Lunghezza ancoraggio minima (Concrete)","Minimum anchorage length (Concrete)","Min. Länge Verankerung (Beton)","Longitud del anclaje mínima (hormigón)","Longueur ancrage minimum (Concrete)","Comprimento mínimo de ancoragem (Concrete)"]
["Longitud de superposición mínima (hormigón)",null,null,"Lunghezza di sovrapposizione minima (Concrete)","Minimum overlap length (Concrete)","Min. Länge Überlappung (Beton)","Longitud de superposición mínima (hormigón)","Longueur de superposition minimum (Concrete)","Comprimento mínimo de sobreposição (Concrete)"]
["Longitud de penetración mínima (timber)",null,null,"Lunghezza di penetrazione minima (Timber)","Minimum penetration length (Timber)","Min. Penetrationslänge (Holz)","Longitud de penetración mínima (timber)","Longueur de pénétration minimum (Timber)","Comprimento mínimo de penetração (Timber)"]
["Distancia borde a4t",null,null,"Distanza bordo a4t","Edge distance a4t","Randabstand a4t","Distancia borde a4t","Distance bord a4t","Distância do bordo a4t"]
["Distancia mínima borde a4t",null,null,"Distanza minima bordo a4t","Minimum edge distance a4t","Minimaler Randabstand a4t","Distancia mínima borde a4t","Distance minimum bord a4t","Distância mínima do bordo a4t"]
["Hormigón",null,null,"Calcestruzzo","Concrete","Beton","Hormigón","Béton","Betão"]
["Clase de hormigón",null,null,"Classe calcestuzzo","Concrete class","Klasse Beton","Clase de hormigón","Classe du béton","Classe do betão"]
["Diámetro estribos",null,null,"Diametro staffe","Stirrups diameter","Durchmesser Bügel","Diámetro estribos","Diamètre étriers","Diâmetro do estribo"]
["Diámetro barras longitudinales",null,null,"Diametro ferri longitudinali","Longitudinal bars diameter","Durchmesser Längseisen","Diámetro barras longitudinales","Diamètre barres longitudinales","Diâmetro da armadura longitudinais"]
["Diámetro áridos (*)",null,null,"Diametro aggregato (*)","Aggregate diameter (*)","Korndurchmesser (*)","Diámetro áridos (*)","Diamètre agrégat (*)","Diâmetro do agregado (*)"]
["Clase de exposición ambiental",null,null,"Classe di esposizione ambientale","Environmental exposure class","Klasse Umweltexposition","Clase de exposición ambiental","Classe d’exposition environnementale","Classe de exposição ambiental"]
["Recubrimiento mínimo estribos",null,null,"Copriferro minimo staffe","Minimum stirrups cover","Min. Betondeckung Bügel","Recubrimiento mínimo estribos","Enrobage minimum étriers","Cobrimento mínimo dos estribros"]
["Recubrimiento mínimo barras longitudinales",null,null,"Copriferro minimo barre longitudinali","Minimum longitudinal bars cover","Min. Betondeckung Längsbewehrung","Recubrimiento mínimo barras longitudinales","Enrobage minimum barres longitudinales","Cobrimento mínimo das barras longitudinais"]
["Distancia eje barras longitudinales",null,null,"Distanza asse ferri longitudinali","Longitudinal iron axis distance","Abstand Achse Längseisen","Distancia eje barras longitudinales","Distance axe barres longitudinales","Distância do eixo dos ferros longitudinais"]
["Anchura mínima dala",null,null,"Larghezza minima cordolo","Minimum curb width","Min. Breite Aufkantung","Anchura mínima dala","Largeur minimum bordure","Largura mínima do lancil"]
["Resistencias",null,null,"Resistenze","Resistances","Festigkeiten","Resistencias","Résistances","Resistências"]
["Resistencia a la compresión madera (diseño)",null,null,"Resistenza a compressione legno (design)","Wood compression strength (design)","Druckfestigkeit Holz (Design)","Resistencia a la compresión madera (diseño)","Résistance à la compression bois (design)","Resistência à compressão madeira (design)"]
["Resistencia a la compresión hormigón (diseño)",null,null,"Resistenza a compressione CLS (design)","Concrete compressive strength (design)","Druckfestigkeit Beton (Design)","Resistencia a la compresión hormigón (diseño)","Résistance à la compression béton CLS (design)","Resistência à compressão CLS (design)"]
["min(T,CA)",null,null,"min(T,CA)","min(T,CLS)","min(T,CA)","min(T,CA)","min(T,CA)","min(T,CA)"]
[{"$f":"IF($B$1=$D$1,D68,IF($B$1=$E$1,E68,IF($B$1=$F$1,F68,IF($B$1=$G$1,G68,IF($B$1=$H$1,H68,IF($B$1=$I$1,I68,\"ERROR\"))))))","v":"Tensión de adhesión"},null,null,"Tensione di aderenza","Tension of adhesion","Verbundspannung","Tensión de adhesión","Tension d’adhérence","Tensão de aderência"]
["Geometría efectiva",null,null,"Geometria effettiva","Effective geometry","Wirksame Geometrie","Geometría efectiva","Géométrie effective","Geometria efetiva"]
["Distancia eje barras longitudinales",null,null,"Distanza asse ferri longitudinali","Longitudinal bars axis distance","Abstand Achse Längseisen","Distancia eje barras longitudinales","Distance axe barres longitudinales","Distância do eixo dos ferros longitudinais"]
["Longitud efectiva dala",null,null,"Larghezza effettiva cordolo","Effective curb width","Wirksame Breite Betonbalken","Longitud efectiva dala","Largeur effective bordure","Largura efetiva do lancil"]
["Longitud de superposición",null,null,"Lunghezza di sovrapposizione","Length of overlap","Länge Überlappung","Longitud de superposición","Longueur de superposition","Comprimento de sobreposição"]
["Longitud de anclaje",null,null,"Lunghezza di ancoraggio","Anchorage length","Länge Verankerung","Longitud de anclaje","Longueur d’ancrage","Comprimento de ancoragem"]
["Distancia desde el borde real tornillos",null,null,"Distanza dal bordo reale viti","Distance from the edge screws","Abstand zur tatsächlichen Kante der Schrauben","Distancia desde el borde real tornillos","Distance du bord réel des vis","Distância do bordo real dos parafusos"]
["Comprobación coherencia posición tornillos/barras",null,null,"Verifica coerenza posizione viti/ferri","Checking consistency of screw/rod position","Überprüfung der Kohärenz Position Schrauben/Bewehrung","Comprobación coherencia posición tornillos/barras","Vérification cohérence position vis/barres","Verificação da coerência da posição dos parafusos/ferros"]
["Distancia tornillos borde superior",null,null,"Distanza viti lembo superiore","Upper edge screw distance","Abstand Schrauben oberer Rand","Distancia tornillos borde superior","Distance vis section supérieure","Distância dos parafusos da aba superior"]
["Longitud rosca tornillo HORM (*)",null,null,"Lunghezza filetto vite CA (*)","Screw thread length in concrete (*)","Länge Schraubengewinde BET(*)","Longitud rosca tornillo HORM (*)","Longueur filetage vis CA (*)","Comprimento da rosca do parafuso CA (*)"]
["Longitud rosca tornillo Madera",null,null,"Lunghezza filetto vite Legno","Screw thread length in timber","Länge Schraubengewinde Holz","Longitud rosca tornillo Madera","Longueur filetage vis Bois","Comprimento da rosca do parafuso Madeira"]
["Longitud eficaz rosca tornillo Madera",null,null,"Lunghezza efficace filetto vite Legno","Effective screw thread length in timber","Wirksame Länge Schraubengewinde Holz","Longitud eficaz rosca tornillo Madera","Longueur efficace filetage vis Bois","Comprimento eficaz da rosca do parafuso Madeira"]
["Distancia entre tornillos superiores/inferiores",null,null,"Distanza tra viti superiori/inferiori","Distance between upper/lower screws","Abstand zwischen oberen/unteren Schrauben","Distancia entre tornillos superiores/inferiores","Distance entre vis supérieures/inférieures","Distância entre os parafusos superiores/inferiores"]
["(*) Se supone que el tornillo penetra en la dala hasta la barra de armadura opuesta",null,null,"(*) si assume che la vite penetri nel cordolo fino alla barra d'armatura opposta","(*) it is assumed that the screw penetrates the curb to the opposite reinforcement bar","(*) Es wird angenommen, dass die Schraube im Betonbalken bis zum gegenüberliegenden Betonstahl hineinreicht","(*) Se supone que el tornillo penetra en la dala hasta la barra de armadura opuesta","(*) nous supposons que la vis pénètre dans la bordure jusqu'à la barre d'armature opposée","(*) assume-se que o parafuso penetra no lancil até à barra de armadura oposta"]
["Comprobación",null,null,"Verifica","Verification","Überprüfung","Comprobación","Vérification","Verificação"]
["Acción máxima en un solo tornillo",null,null,"Azione massima su singola vite","Maximum action on single screw","Max. Wirkung auf einzelne Schraube","Acción máxima en un solo tornillo","Action maximale sur chaque vis","Ação máxima num único parafuso"]
["Resistencia axial un solo tornillo lado madera/acero",null,null,"Resistenza assiale singola vite lato legno/acciaio","Single screw axial resistance timber/steel side","Axiale Festigkeit einzelne Schraube Seite Holz/Stahl","Resistencia axial un solo tornillo lado madera/acero","Résistance axiale d’une vis côté bois/acier","Resistência axial num único parafuso lado madeira/aço"]
["Coeficiente de trabajo esfuerzo axial ",null,null,"Tasso di lavoro sforzo assiale ","Axial stress work ratio","Axiale Beanspruchung ","Coeficiente de trabajo esfuerzo axial ","Taux de travail effort axial ","Taxa de trabalho esforço axial "]
["Máxima acción de corte",null,null,"Massima azione tagliante","Maximum shear action","Max. Scherkraft","Máxima acción de corte","Action tranchante maximale","Ação de corte máxima"]
["Resistencia al corte de un solo tornillo ",null,null,"Resistenza a taglio singola vite ","Single screw shear strength","Scherfestigkeit einzelne Schraube ","Resistencia al corte de un solo tornillo ","Résistance au cisaillement de chaque vis ","Resistência ao corte de cada parafuso "]
["Coeficiente de trabajo esfuerzo corte ",null,null,"Tasso di lavoro sforzo taglio ","Shear stress work ratio","Scherbeanspruchung ","Coeficiente de trabajo esfuerzo corte ","Taux de travail effort au cisaillement ","Taxa de trabalho esforço de corte "]
["Coeficiente de trabajo combinación corte tracción ",null,null,"Tasso di lavoro combinata taglio trazione ","Combined shear-axial working ratio","Kombinierte Scher-Zug-Beanspruchung ","Coeficiente de trabajo combinación corte tracción ","Taux de travail combinaison cisaillement traction ","Taxa de trabalho combinada corte tração "]
["Comprobación anclaje lado hormigón",null,null,"Verifica ancoraggio lato calcestruzzo","Concrete side anchorage verification","Überprüfung Verankerung Betonseite","Comprobación anclaje lado hormigón","Vérification ancrage côté béton","Verificação da ancoragem do lado do betão"]
["Longitud efectiva",null,null,"Lunghezza effettiva","Effective length","Wirksame Länge","Longitud efectiva","Longueur effective","Comprimento efetivo"]
["Longitud mínimo anclaje",null,null,"Lunghezza minima ancoraggio","Minimum anchor length","Min. Länge Verankerung","Longitud mínimo anclaje","Longueur minimum ancrage","Comprimento mínimo de ancoragem"]
["Coeficiente de trabajo ",null,null,"Tasso di lavoro ","Degree of utilization","Beanspruchung ","Coeficiente de trabajo ","Taux de travail ","Taxa de trabalho "]
["Longitud efectiva",null,null,"Lunghezza effettiva","Effective length","Wirksame Länge","Longitud efectiva","Longueur effective","Comprimento efetivo"]
["Longitud mínima solapamiento",null,null,"Lunghezza minima overlap","Minimum overlap length","Min. Länge Überlappung (Beton)","Longitud mínima solapamiento","Longueur minimum overlap","Comprimento mínimo de overlap"]
["Coeficiente de trabajo",null,null,"Tasso di lavoro","Degree of utilization","Beanspruchung","Coeficiente de trabajo","Taux de travail","Taxa de trabalho"]
["Rigideces",null,null,"Rigidezze","Stiffnesses","Steifigkeiten","Rigideces","Rigidités","Rigidez"]
["Rigidez al corte",null,null,"Rigidezza a taglio","Shear stiffness","Scherfestigkeit","Rigidez al corte","Rigidité au cisaillement","Rigidez ao corte"]
["Rigidez axial",null,null,"Rigidezza assiale","Axial stiffness","Axiale Steifigkeit","Rigidez axial","Rigidité axiale","Rigidez axial"]
["Rigidez rotacional (*)",null,null,"Rigidezza rotazionale (*)","Rotational stiffness (*)","Drehfedersteifigkeit (*)","Rigidez rotacional (*)","Rigidité en rotation (*)","Rigidez rotacional (*)"]
["Cálculo eje neutro - Flexión",null,null,"Calcolo asse neutro - Flessione","Neutral axis calculation - Bending","Berechnung Nulllinie - Biegung","Cálculo eje neutro - Flexión","Calcul axe neutre - Flexion","Cálculo do eixo neutro - Flexão"]
["Momento de flexión respecto a los tornillos ",null,null,"Momento flettente rispetto le viti ","Bending moment with respect to screws","Biegesteifigkeit in Bezug auf Schrauben ","Momento de flexión respecto a los tornillos ","Moment fléchissant par rapport aux vis ","Momento fletor em relação aos parafusos "]
["Eje neutro ",null,null,"Asse neutro ","Neutral axis","Nulllinie ","Eje neutro ","Axe neutre ","Eixo neutro "]
["Parte comprimida primera lámina ",null,null,"Porzione compressa prima lamella ","Compressed portion first lamella","Gedrückter Bereich erste Lamelle ","Parte comprimida primera lámina ","Portion comprimée première lame ","Parte comprimida primeira lamela "]
["Parte comprimida segunda lámina ",null,null,"Porzione compressa seconda lamella ","Compressed portion second lamella","Gedrückter Bereich zweite Lamelle ","Parte comprimida segunda lámina ","Portion comprimée deuxième lame ","Parte comprimida segunda lamela "]
["Parte comprimida tercera lámina ",null,null,"Porzione compressa terza lamella ","Compressed portion third lamella","Gedrückter Bereich dritte Lamelle ","Parte comprimida tercera lámina ","Portion comprimée troisième lame ","Parte comprimida terceira lamela "]
["Posición resultante ",null,null,"Posizione risultante ","Resulting position","Resultierende Position ","Posición resultante ","Position résultante ","Posição resultante "]
["Brazo de palanca",null,null,"Braccio di leva","Lever arm","Hebelsarm","Brazo de palanca","Bras de levier","Braço de alavanca"]
["Cálculo esfuerzos",null,null,"Calcolo sforzi","Stress calculation","Berechnung Belastungen","Cálculo esfuerzos","Calcul des efforts","Cálculo dos esforços"]
["Acción máxima en todos los tornillos",null,null,"Azione massima su tutte le viti","Maximum action on all screws","Max. Kraft auf alle Schrauben","Acción máxima en todos los tornillos","Action maximale sur toutes les vis","Ação máxima em todos os parafusos"]
["Acción máxima en un solo tornillo (*)",null,null,"Azione massima su singola vite (*)","Maximum action on single screw (*)","Max. Kraft auf einzelne Schraube (*)","Acción máxima en un solo tornillo (*)","Action maximale sur chaque vis (*)","Ação máxima num único parafuso (*)"]
["Acción máxima tornillos dentro del plano en un solo tornillo superior",null,null,"Azione massima viti in piano su singola vite superiore","Maximum in-plane screw action on single top screw","Max. Kraft Schrauben in Ebene auf einzelne obere Schraube","Acción máxima tornillos dentro del plano en un solo tornillo superior","Action maximale des vis en plan sur chaque vis supérieure","Ação máxima dos parafusos em plano num único parafuso superior"]
["Acción máxima tornillos dentro del plano en un solo tornillo inferior",null,null,"Azione massima viti in piano su singola vite inferiore","Maximum in-plane screw action on single lower screw","Max. Kraft Schrauben in Ebene auf einzelne untere Schraube","Acción máxima tornillos dentro del plano en un solo tornillo inferior","Action maximale des vis en plan sur chaque vis inférieure","Ação máxima dos parafusos em plano num único parafuso inferior"]
["Acción máxima tornillos fuera del plano en un solo tornillo superior",null,null,"Azione massima viti fuoripiano su singola vite superiore","Maximum out-of-plane screw action on single top screw","Max. Kraft Schrauben außerhalb Ebene auf einzelne obere Schraube","Acción máxima tornillos fuera del plano en un solo tornillo superior","Action maximale des vis hors plan sur chaque vis supérieure","Ação máxima dos parafusos fora do plano num único parafuso superior"]
["Acción máxima tornillos fuera del plano en un solo tornillo inferior",null,null,"Azione massima viti fuoripiano su singola vite inferiore","Maximum out-of-plane screw action on single lower screw","Max. Kraft Schrauben außerhalb Ebene auf einzelne untere Schraube","Acción máxima tornillos fuera del plano en un solo tornillo inferior","Action maximale des vis hors plan sur chaque vis inférieure","Ação máxima dos parafusos fora do plano num único parafuso inferior"]
["Acción combinada en un solo tornillo superior",null,null,"Azione combinata su singola vite superiore","Combined action on single upper screw","Kombinierte Kraft auf einzelne obere Schraube","Acción combinada en un solo tornillo superior","Action combinée sur chaque vis supérieure","Ação combinada num único parafuso superior"]
["Acción combinada en un solo tornillo inferior",null,null,"Azione combinata su singola vite inferiore","Combined action on single lower screw","Kombinierte Kraft auf einzelne untere Schraube","Acción combinada en un solo tornillo inferior","Action combinée sur chaque vis inférieure","Ação combinada num único parafuso inferior"]
["Máxima acción de corte",null,null,"Massima azione tagliante","Maximum shear action","Max. Scherkraft","Máxima acción de corte","Action tranchante maximale","Ação de corte máxima"]
["(*) Se considera que la tracción es absorbida únicamente por los tornillos en la línea inferior",null,null,"(*) si considera che la trazione venga assorbita solo dalle viti sulla linea inferiore","(*) traction is considered to be absorbed only by the screws on the lower line","(*) Es wird angenommen, dass die Zugkraft nur von den Schrauben an der unteren Linie aufgenommen wird","(*) Se considera que la tracción es absorbida únicamente por los tornillos en la línea inferior","(*) nous considérons que la traction est uniquement absorbée par les vis sur la ligne inférieure","(*) considera-se que a tração só é absorvida pelos parafusos da linha inferior"]
["Fibras inferiores en tracción",null,null,"Fibre inferiori tese","Lower tense fibers","Untere Fasern unter Zugspannung","Fibras inferiores en tracción","Fibres inférieures tendues","Fibras inferiores tensionadas"]
["Fibras superiores en tracción",null,null,"Fibre superiori tese","Upper tense fibers","Obere Fasern unter Zugspannung","Fibras superiores en tracción","Fibres supérieures tendues","Fibras superiores tensionadas"]
["Comprobación",null,null,"Verifica","Verifications","Überprüfung","Comprobación","Vérification","Verificação"]
["Resistencia axial un solo tornillo lado madera/acero",null,null,"Resistenza assiale singola vite lato legno/acciaio","Single screw axial capacity timber/steel side","Axiale Festigkeit einzelne Schraube Seite Holz/Stahl","Resistencia axial un solo tornillo lado madera/acero","Résistance axiale d’une vis côté bois/acier","Resistência axial num único parafuso lado madeira/aço"]
["Resistencia al corte de un solo tornillo ",null,null,"Resistenza a taglio singola vite ","Single screw shear capacity","Scherfestigkeit einzelne Schraube ","Resistencia al corte de un solo tornillo ","Résistance au cisaillement de chaque vis ","Resistência ao corte de cada parafuso "]
["Coeficiente de trabajo esfuerzo axial ",null,null,"Tasso di lavoro sforzo assiale ","Axial stress work ratio","Axiale Beanspruchung ","Coeficiente de trabajo esfuerzo axial ","Taux de travail effort axial ","Taxa de trabalho esforço axial "]
["Coeficiente de trabajo esfuerzo corte ",null,null,"Tasso di lavoro sforzo taglio ","Shear stress work ratio","Scherbeanspruchung ","Coeficiente de trabajo esfuerzo corte ","Taux de travail effort au cisaillement ","Taxa de trabalho esforço de corte "]
["Coeficiente de trabajo combinación corte tracción ",null,null,"Tasso di lavoro combinata taglio trazione ","Combined shear-axial working ratio","Kombinierte Scher-Zug-Beanspruchung ","Coeficiente de trabajo combinación corte tracción ","Taux de travail combinaison cisaillement traction ","Taxa de trabalho combinada corte tração "]
["Comprobación anclaje lado hormigón",null,null,"Verifica ancoraggio lato calcestruzzo","Concrete side anchorage verification","Überprüfung Verankerung Betonseite","Comprobación anclaje lado hormigón","Vérification ancrage côté béton","Verificação da ancoragem do lado do betão"]
["Longitud anclaje requerida",null,null,"Lunghezza ancoraggio richiesta","Required anchor length","Geforderte Länge Verankerung","Longitud anclaje requerida","Longueur ancrage requise","Comprimento de ancoragem requerido"]
["Longitud mínima anclaje",null,null,"Lunghezza ancoraggio minima","Minimum anchor length","Min. Länge Verankerung","Longitud mínima anclaje","Longueur ancrage minimum","Comprimento mínimo de ancoragem"]
["Longitud efectiva",null,null,"Lunghezza effettiva","Effective length","Wirksame Länge","Longitud efectiva","Longueur effective","Comprimento efetivo"]
[{"$f":"IF($B$1=$D$1,D132,IF($B$1=$E$1,E132,IF($B$1=$F$1,F132,IF($B$1=$G$1,G132,IF($B$1=$H$1,H132,IF($B$1=$I$1,I132,\"ERROR\"))))))","v":"Longitud anclaje"},null,null,"Lunghezza ancoraggio","Anchorage length","Länge Verankerung","Longitud anclaje","Longueur d’ancrage","Comprimento de ancoragem"]
["Coeficiente de trabajo ",null,null,"Tasso di lavoro ","Degree of utilization","Beanspruchung ","Coeficiente de trabajo ","Taux de travail ","Taxa de trabalho "]
["Longitud solapamiento ",null,null,"Lunghezza overlap ","Overlap length","Länge Überlappung","Longitud solapamiento ","Longueur overlap ","Comprimento de overlap "]
["Longitud mínima solapamiento",null,null,"Lunghezza minima overlap","Minimum overlap length","Min. Länge Überlappung","Longitud mínima solapamiento","Longueur minimum overlap","Comprimento mínimo de overlap"]
["Longitud efectiva",null,null,"Lunghezza effettiva","Effective length","Wirksame Länge","Longitud efectiva","Longueur effective","Comprimento efetivo"]
["Coeficiente de trabajo",null,null,"Tasso di lavoro","Degree of utilization","Beanspruchung","Coeficiente de trabajo","Taux de travail","Taxa de trabalho"]
["Rigidez corte/flexión",null,null,"Rigidezza taglio/flessionale","Shear and bending stiffness","Scher-/Biegesteifigkeit","Rigidez corte/flexión","Rigidité cisaillement/flexion","Rigidez ao corte/de flexão"]
["Rigidez al corte",null,null,"Rigidezza a taglio","Shear stiffness","Scherfestigkeit","Rigidez al corte","Rigidité au cisaillement","Rigidez ao corte"]
["primera capa",null,null,"primo strato","first layer","erste Schicht","primera capa","première couche","primeira camada"]
["25 % espesor",null,null,"25% spessore","25% thickness","25 % Stärke","25 % espesor","25 % épaisseur","25% espessura"]
["a_t(25%)",null,null,"a_t(25%)","a_t(25%)","a_t(25%)","a_t(25%)","a_t(25 %)","a_t(25%)"]
["Cálculo longitud comprimida por rigidez",null,null,"Lunghezza compressa calcolo per rigidezza","Compressed length calculation by stiffness","Länge des Bereiches unter Druckspannung Berechnung für Steifigkeit","Cálculo longitud comprimida por rigidez","Longueur comprimée calcul pour rigidité","Comprimento comprimido cálculo para rigidez"]
["Brazo de palanca",null,null,"Braccio di leva","Lever arm","Hebelsarm","Brazo de palanca","Bras de levier","Braço de alavanca"]
["Momento de referencia",null,null,"Momento di riferimento","Reference bending moment","Bezugsmoment","Momento de referencia","Moment de référence","Momento de referência"]
["Fuerza en los tornillos de referencia",null,null,"Forza su viti di riferimento","Reference force on screws","Kraft auf Bezugsschrauben","Fuerza en los tornillos de referencia","Force sur vis de référence","Força nos parafusos de referência"]
["Anchura de referencia",null,null,"Larghezza di riferimento","Reference width","Bezugsbreite","Anchura de referencia","Largeur de référence","Largura de referência"]
["Rigidez a compresión ",null,null,"Rigidezza a compressione ","Compressive stiffness","Druckfestigkeit ","Rigidez a compresión ","Rigidité à la compression ","Rigidez à compressão "]
["Rigidez axial",null,null,"Rigidezza assiale","Axial stiffness","Axiale Steifigkeit","Rigidez axial","Rigidité axiale","Rigidez axial"]
["Tornillos en zona de tensión",null,null,"Viti in zona tesa","Screws in tension area","Schrauben im Bereich unter Zugspannung","Tornillos en zona de tensión","Vis en zone tendue","Parafusos na zona tensionada"]
["Deformación de la zona comprimida",null,null,"Deformazione della zona compressa","Deformation of the compressed zone","Verformung gedrückter Bereich","Deformación de la zona comprimida","Déformation de la zone comprimée","Deformação da zona comprimida"]
["Deformación de las fijaciones",null,null,"Deformazione dei fissaggi","Deformation of fasteners","Verformung Befestigungen","Deformación de las fijaciones","Déformation des fixations","Deformação das fixações"]
["Ángulo de rotación unitario",null,null,"Angolo di rotazione unitario","Unit angle of rotation","Einzelner Drehwinkel","Ángulo de rotación unitario","Angle de rotation unitaire","Ângulo de rotação unitário"]
["Rigidez rotacional (*)",null,null,"Rigidezza rotazionale (*)","Rotational stiffness (*)","Drehsteifigkeit (*)","Rigidez rotacional (*)","Rigidité en rotation (*)","Rigidez rotacional (*)"]
["celdas editables",null,null,"celle editabili","editable cells","bearbeitbare Zellen","celdas editables","cases éditables","células editáveis"]
["Distancia de la línea de tornillos bajos desde el borde CLT",null,null,"Distanza della linea di viti basse dal bordo CLT","Distance of the low screw line from the edge CLT","Abstand Linie untere Schrauben von der CLT-Kante","Distancia de la línea de tornillos bajos desde el borde CLT","Distance de la ligne de vis basses depuis le bord CLT","Distância da linha de parafusos baixos do bordo CLT"]
["Tabla",null,null,"Tavola","Board","Schalung","Tabla","Lame","Soalho"]
["Posición barra longitudinal",null,null,"Posizione ferro longitudinale","Longitudinal bar position","Position Längseisen","Posición barra longitudinal","Position barre longitudinale","Posição da armadura longitudinal"]
["Barra longitudinal (1/2 diám.)",null,null,"Ferro longitudinale (1/2 dia.)","Longitudinal bar (1/2 dia.)","Längseisen (1/2 Durchm.)","Barra longitudinal (1/2 diám.)","Barre longitudinale (1/2 dia.)","Armadura longitudinal (1/2 dia.)"]
["Tolerancia en curvatura estribos",null,null,"Tolleranza su curvatura staffe","Tolerance on stirrup curvature","Toleranz bei Biegung der Bügel","Tolerancia en curvatura estribos","Tolérance sur courbure des étriers","Tolerância em curvatura dos estribos"]
["Tornillo (1/2 diám.)",null,null,"Vite (1/2 dia.)","Screw (1/2 dia.)","Schrauben (1/2 Durchm.)","Tornillo (1/2 diám.)","Vis (1/2 dia.)","Parafuso (1/2 dia.)"]
["celdas editables",null,null,"celle editabili","editable cells","bearbeitbare Zellen","celdas editables","cases éditables","células editáveis"]
["Recubrimiento mínimo requerido [mm]",null,null,"Copriferro minimo richiesto [mm]","Minimum required bars cover [mm]","Min. geforderte Betondeckung [mm]","Recubrimiento mínimo requerido [mm]","Enrobage minimum requis [mm]","Cobirmento mínimo requerido [mm]"]
["Clase de exposición ambiental",null,null,"Classe di esposizione ambientale","Environmental exposure class","Klasse Umweltexposition","Clase de exposición ambiental","Classe d’exposition environnementale","Classe de exposição ambiental"]
["Clase estructural",null,null,"Classe strutturale","Structural class","Konstruktionsklasse","Clase estructural","Classe structurelle","Classe estrutural"]
["Recubrimiento mínimo para estribos",null,null,"Copriferro minimo per le staffe","Minimum stirrups cover","Min. Betondeckung für die Bügel","Recubrimiento mínimo para estribos","Enrobage minimum pour les étriers","Cobrimento mínimo dos estribros"]
["Recubrimiento mínimo para barras longitudinales",null,null,"Copriferro minimo per le barre longitudinali","Minimum longitudinal bars cover","Min. Betondeckung für die Längsstangen","Recubrimiento mínimo para barras longitudinales","Enrobage minimum pour les barres longitudinales","Cobrimento mínimo das barras longitudinais"]
["Distancia desde el eje de las barras longitudinales",null,null,"Distanza dall'asse delle barre lungitudinali","Distance from the axis of the longitudinal bars","Abstand von Achse der Längsstangen","Distancia desde el eje de las barras longitudinales","Distance par rapport à l’axe des barres longitudinales","Distância do eixo das barras longitudinais"]
["celdas editables",null,null,"celle editabili","editable cells","bearbeitbare Zellen","celdas editables","cases éditables","células editáveis"]
["Paneles",null,null,"Pannelli","Pannels","Platten","Paneles","Panneaux","Painéis"]
["celdas editables",null,null,"celle editabili","editable cells","bearbeitbare Zellen","celdas editables","cases éditables","células editáveis"]
["coef. conexión madera",null,null,"coeff. connessione legno","timber connection coeff.","Beiw. Verbindung Holz","coef. conexión madera","coeff. connexion bois","coef. ligação da madeira"]
["coef. material acero",null,null,"coeff. materiale acciaio","steel material coeff.","Beiw. Material Stahl","coef. material acero","coeff. matériau acier","coef. material de aço"]
["coef. material hormigón",null,null,"coeff. materiale calcestruzzo","concrete material coeff.","Beiw. Material Beton","coef. material hormigón","coeff. matériau béton","coef. material de betão"]
["Resistencia axial - Hormigón",null,null,"Resistanza assiale - Calcestruzzo","AXIAL CAPACITY - CONCRETE","Axiale Festigkeit - Beton","Resistencia axial - Hormigón","Résistance axiale - Béton","Resistência axial - Betão"]
["Resistencia axial - Madera",null,null,"Resistanza assiale - Legno","AXIAL CAPACITY - TIMBER","Axiale Festigkeit - Holz","Resistencia axial - Madera","Résistance axiale - Bois","Resistência axial - Madeira"]
["Resistencia al corte - Madera",null,null,"Resistenza a taglio - Legno","SHEAR CAPACITY - TIMBER","Scherfestigkeit - Holz","Resistencia al corte - Madera","Résistance au cisaillement - Bois","Resistência ao corte - Madeira"]
["Resistencia al corte - Acero",null,null,"Resistenza a taglio - Acciaio","SHEAR CAPACITY - STEEL","Scherfestigkeit - Stahl","Resistencia al corte - Acero","Résistance au cisaillement - Acier","Resistência ao corte - Aço"]
["Rigidez lateral para un solo tornillo",null,null,"Rigidezza laterale per vite singola","Lateral stiffness for single screw","Seitensteifigkeit für Einzelschraube","Rigidez lateral para un solo tornillo","Rigidité latérale pour chaque vis","Rigidez lateral para parafuso único"]
["NOTAS",null,null,"NOTE","NOTES","ANMERKUNGEN","NOTAS","NOTES","NOTAS"]
["Antes de la construcción, todos los cálculos deben ser comprobados y aprobados por el proyectista responsable.",null,null,"Prima della costruzione, tutti i calcoli devono essere verificati e approvati dal progettista responsabile.","Before the construction, all calculation must be verified and approved by the responsible designer.","Vor dem Bau müssen alle Berechnungen vom verantwortlichen Planer geprüft und freigegeben werden.","Antes de la construcción, todos los cálculos deben ser comprobados y aprobados por el proyectista responsable.","Avant la construction, tous les calculs doivent être vérifiés et approuvés par le concepteur responsable.","Antes da construção, todos os cálculos devem ser verificados e aprovados pelo projetista responsável."]
["Los valores de resistencia mecánica y la geometría se refieren a la certificación del producto.",null,null,"I valori di resistenza meccanica e la geometria si riferiscono alla certificazione del prodotto.","Mechanical resistance values and geometry refer to product certification.","Die Werte der mechanischen Festigkeit und Geometrie beziehen sich auf die Produktzertifizierung.","Los valores de resistencia mecánica y la geometría se refieren a la certificación del producto.","Les valeurs de résistance mécanique et la géométrie se réfèrent à la certification du produit.","Os valores de resistência mecânica e a geometria referem-se à certificação do produto."]
["La comprobación de la resistencia del sistema lado anclaje al hormigón deberá realizarse por separado siguiendo las indicaciones de ETA-22/0806 - Annex E1.",null,null,"La verifica della resistenza del sistema lato ancoraggio al calcestruzzo devono essere realizzata a parte seguendo quanto indicato in ETA-22/0806 - Annex E1.","Verification of concrete side anchoring system capacity must be carried out separately following ETA-22/0806 - Annex E1.","Die Überprüfung der Festigkeit des Systems auf der Seite der Verankerung am Beton muss separat gemäß den Angaben in ETA-22/0806 - Anhang E1 durchgeführt werden.","La comprobación de la resistencia del sistema lado anclaje al hormigón deberá realizarse por separado siguiendo las indicaciones de ETA-22/0806 - Annex E1.","La vérification de la résistance du système côté ancrage au béton doit être effectuée séparément conformément à l’ETA-22/0806 - Annexe E1.","A verificação da resistência do sistema do lado de ancoragem ao betão deve ser efetuada separadamente, de acordo com a ETA-22/0806 - Anexo E1."]
["Todos los cálculos deben ser comprobados y aprobados por el proyectista responsable antes de su ejecución. El proyectista tiene la obligación de comprobar en cada uso que los datos sean conformes con las normativas vigentes y con el proyecto. La responsabilidad final de elegir el producto apropiado para una aplicación específica recae en el proyectista.",null,null,"Tutti i calcoli devono essere verificati e approvati dal progettista responsabile prima dell'esecuzione. Il progettista è tenuto a verificare, ad ogni utilizzo, la conformità dei dati alle normative vigenti e al progetto. La responsabilità ultima della scelta del prodotto appropriato per una specifica applicazione spetta al progettista.","All calculations must be verified and approved by the responsible designer prior to execution. The designer are responsible to verify, at each use, the conformity of the data to the regulations in force and to the project. The ultimate responsibility for choosing the appropriate product for a specific application lies with the designer.","Alle Berechnungen müssen vor der Ausführung vom verantwortlichen Planer geprüft und freigegeben werden. Der Planer ist verpflichtet, bei jeder Nutzung die Übereinstimmung der Daten mit den geltenden Vorschriften und dem Projekt zu überprüfen. Die letztendliche Verantwortung für die Auswahl des geeigneten Produkts für eine bestimmte Anwendung liegt beim Planer.","Todos los cálculos deben ser comprobados y aprobados por el proyectista responsable antes de su ejecución. El proyectista tiene la obligación de comprobar en cada uso que los datos sean conformes con las normativas vigentes y con el proyecto. La responsabilidad final de elegir el producto apropiado para una aplicación específica recae en el proyectista.","Tous les calculs doivent être vérifiés et approuvés par le concepteur responsable avant l'exécution. Le concepteur est tenu de vérifier, à chaque utilisation, la conformité des données aux règlementations en vigueur et au projet. La responsabilité ultime du choix du produit approprié pour une application spécifique incombe au concepteur.","Todos os cálculos devem ser verificados e aprovados pelo projetista responsável antes da execução. É dever do projetista verificar em cada utilização a conformidade dos dados com as normas em vigor e com o projeto. A responsabilidade final pela escolha do produto apropriado para uma aplicação específica cabe ao projetista."]
["Los resultados obtenidos en esta ficha son de carácter indicativo y deben considerarse como un servicio técnico-comercial en el ámbito de la actividad de ventas de Rotho Blaas srl. El número y el espesor de las puntas deben ser determinados por el proyectista responsable, que tiene la obligación de comprobar la exactitud de los resultados obtenidos mediante el procesamiento de los datos introducidos. Rotho Blaas srl no garantiza la conformidad con la normativa vigente ni la proyección de los cálculos realizados mediante esta hoja de cálculo. En concreto, tras modificar las disposiciones pertinentes, como, por ejemplo, normas, aprobaciones, etc., el programa puede dejar de ser válido, parcial o completamente. Rotho Blaas srl no ofrece ninguna garantía y en ningún caso podrá ser considerado responsable por daños o consecuencias, directas o indirectas (garantía por defectos, garantía por mal funcionamiento, responsabilidad del producto o legal, etc.). El Usuario declara que utilizará la hoja de cálculo como profesional con la obligación y la responsabilidad de comprobar que la hoja de cálculo responda a sus necesidades específicas.",null,null,"I risultati ottenuti in questa scheda sono di natura indicativa e vanno considerati come un servizio tecnico-commerciale nell'ambito dell'attività di vendita di Rotho Blaas srl. Il numero e lo spessore degli inserti devono essere determinati dal progettista responsabile che è tenuto a verificare l'esattezza dei risultati derivanti dall'elaborazione dei dati inseriti. Rotho Blaas srl non garantisce la conformità alla normativa vigente e la progettazione dei calcoli effettuati tramite questo foglio di calcolo. In particolare, in seguito alla modifica delle disposizioni pertinenti, quali ad esempio norme, approvazioni, ecc. il programma potrebbe diventare, in parte o in toto, non valido. Rotho Blaas srl non garantisce e non sarà responsabile per danni o conseguenze dirette o indirette o altro, in qualsiasi modo (garanzia per difetti, garanzia per malfunzionamento, responsabilità del prodotto o legale, ecc.) L'Utente dichiara di utilizzare il foglio di calcolo in qualità di professionista con l'obbligo e la responsabilità di verificare che il foglio di calcolo risponda alle sue specifiche esigenze.","The results obtained in this sheet are of an indicative nature and should be considered as a technical-commercial service within the Rotho Blaas srl sales activity. The number and thickness of the inserts must be determined by the responsible designer who is required to check the accuracy of the results deriving from the processing of the data entered. Rotho Blaas srl does not guarantee compliance with current legislation and the design of the calculations made through this spreadsheet. In particular, following the amendment of the pertinent provisions such as, for example standards, approvals, etc. the program may become, in part or in whole, invalid. Rotho Blaas srl does not guarantee and will not be responsible for direct or indirect damages or consequences or other, in any way (warranty for defects, warranty for malfunction, product or legal responsibility, etc.). The User declares to use the spreadsheet as a professional with the obligation and responsibility to verify that the spreadsheet meets his specific needs.","Die in diesem Datenblatt erzielten Ergebnisse sind Richtwerte und sollten als technisch-kommerzielle Dienstleistung im Rahmen der Verkaufstätigkeit von Rotho Blaas srl. betrachtet werden. Die Anzahl und Stärke der Einsätze muss vom verantwortlichen Planer bestimmt werden, der verpflichtet ist, die Richtigkeit der Ergebnisse zu überprüfen, die sich aus der Verarbeitung der eingegebenen Daten ergeben. Rotho Blaas srl übernimmt keine Garantie für die Übereinstimmung mit den geltenden Vorschriften und die Planung der Berechnungen, die mit dieser Tabellenkalkulation durchgeführt wurden. Insbesondere könnte das Programm infolge einer Änderung der relevanten Bestimmungen, wie z. B. Normen, Zulassungen usw., seine Gültigkeit teilweise oder vollständig verlieren. Rotho Blaas srl garantiert nicht bzw. haftet in keiner Weise für direkte oder indirekte Schäden oder Folgen oder sonstige Auswirkungen (Gewährleistung bei Mängeln, Gewährleistung bei Fehlfunktionen, gesetzliche oder Produkthaftung usw.). Der Benutzer erklärt, das Tabellenkalkulationsprogramm in seiner Eigenschaft als Fachkraft zu verwenden, einschließlich der Verpflichtung und Verantwortung, sicherzustellen, dass die Tabellenkalkulation seinen spezifischen Anforderungen entspricht.","Los resultados obtenidos en esta ficha son de carácter indicativo y deben considerarse como un servicio técnico-comercial en el ámbito de la actividad de ventas de Rotho Blaas srl. El número y el espesor de las puntas deben ser determinados por el proyectista responsable, que tiene la obligación de comprobar la exactitud de los resultados obtenidos mediante el procesamiento de los datos introducidos. Rotho Blaas srl no garantiza la conformidad con la normativa vigente ni la proyección de los cálculos realizados mediante esta hoja de cálculo. En concreto, tras modificar las disposiciones pertinentes, como, por ejemplo, normas, aprobaciones, etc., el programa puede dejar de ser válido, parcial o completamente. Rotho Blaas srl no ofrece ninguna garantía y en ningún caso podrá ser considerado responsable por daños o consecuencias, directas o indirectas (garantía por defectos, garantía por mal funcionamiento, responsabilidad del producto o legal, etc.). El Usuario declara que utilizará la hoja de cálculo como profesional con la obligación y la responsabilidad de comprobar que la hoja de cálculo responda a sus necesidades específicas.","Les résultats obtenus dans cette fiche sont à titre indicatif et doivent être considérés comme un service technico-commercial dans le cadre de l'activité de vente de Rotho Blaas srl. Le nombre et l'épaisseur des inserts doivent être déterminés par le concepteur responsable qui est tenu de vérifier l'exactitude des résultats découlant du traitement des données saisies. Rotho Blaas srl ne garantit pas la conformité aux normes en vigueur et la conception des calculs effectués à l'aide de cette feuille de calcul. En particulier, suite à la modification des dispositions pertinentes, comme par exemple les normes, approbations, etc. le programme pourrait devenir entièrement ou partiellement non valide. Rotho Blaas srl ne garantit pas et n'est pas responsable des dommages ou conséquences directs ou indirects, ou autre, quels qu'ils soient (garantie pour les défauts, garantie pour les dysfonctionnements, responsabilité du produit ou responsabilité juridique, etc.) L'utilisateur déclare utiliser la feuille de calcul en tant que professionnel avec l'obligation et la responsabilité de vérifier que la feuille de calcul répond à ses besoins spécifiques.","Os resultados obtidos nesta ficha são de natureza indicativa e devem ser considerados como um serviço técnico-comercial no âmbito da atividade comercial da Rotho Blaas srl. O número e a espessura das inserções devem ser determinados pelo projetista responsável que tem o dever de verificar a exatidão dos resultados do tratamento dos dados introduzidos. A Rotho Blaas srl não garante o cumprimento da regulamentação em vigor e a conceção dos cálculos efetuados com esta folha de cálculo. Em particular, devido a alterações nas disposições aplicáveis, tais como normas, homologações, etc., o programa pode tornar-se parcial ou totalmente inválido. A Rotho Blaas srl não garante e não será responsável por quaisquer danos ou consequências, diretos ou indiretos, de qualquer forma (garantia contra defeitos, garantia em caso de mau funcionamento, responsabilidade pelo produto ou jurídica, etc.). O Utilizador declara que utiliza a folha de cálculo como profissional, com a obrigação e a responsabilidade de verificar se a folha de cálculo responde às suas necessidades específicas."]
["(flexión de vigas de hormigón)",null,null,"(flessione cordolo in calcestruzzo)","(concrete beam bending)","(Biegung von Betonbalken)","(flexión de vigas de hormigón)","(flexion d'une poutre en béton)","(flexão de vigas de betão)"]
[]
[]
["lingua selezionata:",{"$f":"CONDITIONS!E3","v":"ES"},null,"IT","EN","DE","ES","FR","PT"]
[{"$f":"IF($B$189=$D$189,D190,IF($B$189=$E$189,E190,IF($B$189=$F$189,F190,IF($B$189=$G$189,G190,IF($B$189=$H$189,H190,IF($B$189=$I$189,I190,\"ERROR\"))))))","v":"CONDICIONES GENERALES DEL CONTRATO DE LICENCIA DE USO PARA LA HOJA DE CÁLCULO “TC_FUSION_CALCULATOR”"},null,null,"CONDIZIONI GENERALI CONTRATTO DI LICENZA D’USO PER IL FOGLIO DI CALCOLO \"TC_FUSION_CALCULATOR\"","GENERAL TERMS AND CONDITIONS OF THE LICENSE AGREEMENT FOR THE USE OF THE SPREADSHEET \"TC_FUSION_CALCULATOR\"","ALLGEMEINE BEDINGUNGEN DES LIZENZVERTRAGS ZUR NUTZUNG DES TABELLENKALKULATIONSPROGRAMMS „TC_FUSION_CALCULATOR“","CONDICIONES GENERALES DEL CONTRATO DE LICENCIA DE USO PARA LA HOJA DE CÁLCULO “TC_FUSION_CALCULATOR”","CONDITIONS GÉNÉRALES DU CONTRAT DE LICENCE D'UTILISATION DE LA FEUILLE DE CALCUL « TC_FUSION_CALCULATOR »","CONDIÇÕES GERAIS DO CONTRATO DE LICENÇA PARA A UTILIZAÇÃO DA FOLHA DE CÁLCULO “TC_FUSION_CALCULATOR”"]
[{"$f":"IF($B$189=$D$189,D191,IF($B$189=$E$189,E191,IF($B$189=$F$189,F191,IF($B$189=$G$189,G191,IF($B$189=$H$189,H191,IF($B$189=$I$189,I191,\"ERROR\"))))))","v":"1. OBJETO"},null,null,"1. OGGETTO","1. SUBJECT","1. BETREFF","1. OBJETO","1. OBJET","1. OBJETO"]
["Con estas Condiciones Generales (o “Contrato”), ROTHO BLAAS SRL, con domicilio en I-39040 Cortaccia (BZ), Via dell'Adige 2/1 (en lo sucesivo, “RB”), otorga al usuario el derecho no exclusivo y revocable para usar, a título gratuito, la hoja de cálculo “--” (en lo sucesivo, “CALC”) en las condiciones indicadas a continuación y mientras esté vigente el Contrato.\n\nPor lo tanto, este contrato tiene por objeto regular la relación entre el usuario y RB con respecto al uso de dicha hoja de cálculo. En el momento en que el usuario descarga y usa CALC, acepta este Contrato y las condiciones indicadas.\n\nCALC permite al usuario realizar cálculos estáticos exclusivamente para los productos y los materiales indicados en cada una de sus secciones. Este Contrato prohíbe expresamente el uso de CALC para realizar cálculos para productos que no estén indicados.\n\nEn cualquier caso, RB no proporciona ninguna garantía sobre la conformidad legal ni con el proyecto de cálculos y solo pretende proporcionar una herramienta de cálculo indicativo, como servicio técnico-comercial en el ámbito de la actividad de ventas.",null,null,"Con le presenti Condizioni Generali (o “Contratto”), ROTHO BLAAS SRL, con sede in I-39040 Cortaccia (BZ), Via dell’Adige 2/1 (d’ora in avanti “RB”) concede all’utente il diritto non esclusivo e revocabile di utilizzare, a titolo gratuito, il foglio di calcolo (d’ora in avanti “CALC”) alle condizioni di seguito indicate e per la durata del presente Contratto.\n\nIl presente contratto regola pertanto il rapporto tra l’utente e RB relativamente all’utilizzo di detto foglio di calcolo. Nel momento in cui l’utente scarica e utilizza CALC, lo stesso accetta il presente Contratto e le condizioni riportate.\n\nCALC permette all’utente di effettuare calcoli statici esclusivamente per i prodotti e materiali indicati in ciascuna sezione dello stesso. Il presente Contratto vieta espressamente l’uso di CALC per la realizzazione di prodotti che non sono indicati.\n\nNessuna garanzia sulla conformità legale ed al progetto dei calcoli è in ogni caso fornita da RB, che intende fornire esclusivamente uno strumento di calcolo indicativo quale servizio tecnico-commerciale nell’ambito dell’attività di vendita.","With these General Terms and Conditions (or \"Agreement\"), ROTHO BLAAS SRL, with registered office at I-39040 Cortaccia (BZ), Via dell'Adige 2/1 (hereinafter \"RB\") grants the user the non-exclusive and revocable right to use the spreadsheet (hereinafter \"XLS\") free of charge under the following conditions and during the term of this Agreement.\n\nIn any case, RB does not guarantee the legal and design conformity of the calculations, as RB intends to provide only an indicative calculation tool to be considered as a technical-commercial service within the sales activity.\n\nXLS allows the user to perform static calculations only for the products and materials indicated in each of its sections. This Agreement expressly prohibits to use XLS to manufacture products that are not indicated.\n\nThis Agreement therefore governs the relationship between the User and RB with respect to the use of this spreadsheet. By downloading and using XLS, the user accepts this Agreement and the conditions set out herein.","Mit diesen Allgemeinen Bedingungen (oder „Vertrag“) gewährt ROTHO BLAAS GmbH mit Sitz in I-39040 Kurtatsch (BZ), Etschweg 2/1 (nachfolgend „RB“) dem Benutzer das nicht exklusive und widerrufliche Recht, das Tabellenkalkulationsprogramm „CALC“ (nachfolgend „XLS“) zu den im Folgenden angegebenen Bedingungen und für die Laufzeit dieses Vertrags unentgeltlich zu verwenden.\n\nDieser Vertrag regelt somit das Verhältnis zwischen dem Benutzer und RB in Bezug auf die Verwendung des besagten Tabellenkalkulationsprogramms. Wenn der Benutzer CALC herunterlädt und verwendet, akzeptiert er diesen Vertrag und die dort aufgeführten Bedingungen.\n\nCALC ermöglicht dem Benutzer, statische Berechnungen ausschließlich für jene Produkte und Materialien vorzunehmen, die in jeder seiner Sektionen angegeben sind. Durch diesen Vertrag ist die Verwendung von CALC für die Fertigung nicht angegebener Produkte ausdrücklich untersagt.\n\nRB bietet keine Garantie für die rechtliche Konformität und die Konformität mit dem Berechnungsprojekt und bezweckt, ausschließlich ein indikatives Berechnungstool bereitzustellen, bei dem es sich um eine technisch-kommerzielle Leistung im Rahmen der Vertriebstätigkeit handelt.","Con estas Condiciones Generales (o “Contrato”), ROTHO BLAAS SRL, con domicilio en I-39040 Cortaccia (BZ), Via dell'Adige 2/1 (en lo sucesivo, “RB”), otorga al usuario el derecho no exclusivo y revocable para usar, a título gratuito, la hoja de cálculo “--” (en lo sucesivo, “CALC”) en las condiciones indicadas a continuación y mientras esté vigente el Contrato.\n\nPor lo tanto, este contrato tiene por objeto regular la relación entre el usuario y RB con respecto al uso de dicha hoja de cálculo. En el momento en que el usuario descarga y usa CALC, acepta este Contrato y las condiciones indicadas.\n\nCALC permite al usuario realizar cálculos estáticos exclusivamente para los productos y los materiales indicados en cada una de sus secciones. Este Contrato prohíbe expresamente el uso de CALC para realizar cálculos para productos que no estén indicados.\n\nEn cualquier caso, RB no proporciona ninguna garantía sobre la conformidad legal ni con el proyecto de cálculos y solo pretende proporcionar una herramienta de cálculo indicativo, como servicio técnico-comercial en el ámbito de la actividad de ventas.","Avec les présentes Conditions Générales (ou « Contrat »), ROTHO BLAAS SRL, dont le siège se situe I-39040 Cortaccia (BZ), Via dell'Adige 2/1 (ci-après « RB »), donne à l'utilisateur le droit non exclusif et révocable d'utiliser à titre gratuit la feuille de calcul « -- » (ci-après « CALC »), aux conditions indiquées ci-après et pour la durée du présent Contrat.\n\nLe présent contrat régit ainsi le rapport entre l'utilisateur et RB concernant l'utilisation de la feuille de calcul mentionnée. Lorsque l'utilisateur télécharge et utilise CALC, il accepte le présent Contrat et les conditions indiquées.\n\nCALC permet à l'utilisateur d'effectuer des calculs statiques, exclusivement pour les produits et les matériaux indiqués dans chacune des sections. Le présent Contrat interdit expressément d'utiliser CALC pour réaliser des produits non indiqués.\n\nRB ne donne aucune garantie sur la conformité des calculs à la réglementation et au projet et fournit exclusivement un outil de calcul indicatif en tant que service technico-commercial dans le cadre de l'activité de vente.","Com as presentes Condições Gerais (ou “Contrato”), a ROTHO BLAAS SRL, com sede em I-39040 Cortaccia (BZ), Via dell’Adige 2/1 (a seguir designada “RB”) concede ao Utilizador o direito não exclusivo e revogável de utilizar gratuitamente a folha de cálculo “--” (a seguir designada “CALC”) nas condições a seguir indicadas e durante o período de vigência do presente Contrato.\n\nEste acordo rege, portanto, a relação entre o Utilizador e a RB no que diz respeito à utilização da referida folha de cálculo. Ao transferir e utilizar o CALC, o Utilizador aceita o presente Contrato e as Condições aqui estabelecidas.\n\nO CALC permite ao Utilizador efetuar cálculos estáticos apenas para os produtos e materiais indicados em cada secção do mesmo. O presente Contrato proíbe expressamente a utilização de CALC para o fabrico de produtos não indicados.\n\nA RB não garante, em caso algum, a conformidade legal e com a conceção dos cálculos, pretendendo fornecer apenas um instrumento de cálculo indicativo enquanto serviço técnico-comercial no âmbito das suas atividades de venda."]
["2. REFERENCIAS TÉCNICAS",null,null,"2. RIFERIMENTI TECNICI","2. TECHNICAL-STANDARDS REFERENCES","2. TECHNISCHE VERWEISE","2. REFERENCIAS TÉCNICAS","2. RÉFÉRENCES TECHNIQUES","2. REFERÊNCIAS TÉCNICAS"]
["RB ha efectuado las comprobaciones según el método de los estados límite de acuerdo con la norma EN 1995-1-1 Eurocódigo 5 - Proyecto de estructuras de madera y con la norma EN 1992-1-1 Eurocódigo 2 - Proyecto de estructuras de hormigón. Para los valores de resistencia mecánica y para la geometría de los clavos se han tomado como referencia las indicaciones de ETA-22/0806.",null,null,"RB ha svolto le verifiche secondo il metodo degli Stati Limite in accordo EN 1995-1-1 Eurocodice 5-Progettazione delle strutture di legno ed EN 1992-1-1 Eurocodice 2-Progettazione delle strutture di calcestruzzo. Per i valori di resistenza meccanica e per la geometria del sistema si è fatto riferimento a quanto riportato in ETA-22/0806.","RB carried out the checks according to the Limit State method in accordance with EN 1995-1-1 Eurocode 5 - Design of timber structures and EN 1992-1-1 Eurocode 2 - Design of concrete structures. For the mechanical resistance values and the geometry of the connectors, reference was made to ETA-22/0806.","RB hat die Prüfungen gemäß Grenzzustandsmethode laut DIN EN 1995-1-1 Eurocode 5 - Bemessung und Konstruktion von Holzbauten sowie DIN EN 1992-1-1 Eurocode 2 - Bemessung und Konstruktion von Stahlbeton- und Spannbetontragwerken vorgenommen. Bei den Werten für die mechanische Festigkeit und die Geometrie des Systems wurde auf die Angaben in der ETA-22/0806 Bezug genommen.","RB ha efectuado las comprobaciones según el método de los estados límite de acuerdo con la norma EN 1995-1-1 Eurocódigo 5 - Proyecto de estructuras de madera y con la norma EN 1992-1-1 Eurocódigo 2 - Proyecto de estructuras de hormigón. Para los valores de resistencia mecánica y para la geometría de los clavos se han tomado como referencia las indicaciones de ETA-22/0806.","RB a effectué les vérifications selon la méthode des états-limites conformément à l'Eurocode 5 EN 1995-1-1 Conception et calcul des structures en bois et l'Eurocode 2 EN 1992-1-1 Conception et calcul des structures en béton. Pour les valeurs de résistance mécanique et pour la géométrie du système, il a été fait référence à l’ETA-22/0806.","A RB efetuou as verificações segundo o método dos Estados-Limite em conformidade com a EN 1995-1-1 Eurocódigo 5 - Conceção de estruturas de madeira e a EN 1992-1-1 Eurocódigo 2 - Conceção de estruturas de betão. Para os valores de resistência mecânica e para a geometria do sistema, fez-se referência ao que consta da ETA-22/0806."]
["3. DERECHOS Y OBLIGACIONES DE RB",null,null,"3. DIRITTI E OBBLIGHI DI RB","3. RB RIGHTS AND OBLIGATIONS","3. RECHTE UND PFLICHTEN VON RB","3. DERECHOS Y OBLIGACIONES DE RB","3. DROITS ET OBLIGATIONS DE RB","3. DIREITOS E OBRIGAÇÕES DA RB"]
["RB:\n\na) pone el CALC a disposición del usuario gratuitamente, tal como está;\n\nb) no proporciona al usuario asistencia técnica de ningún tipo para el uso de CALC;\n\nc) no garantiza la conformidad de CALC con la normativa vigente ni con el proyecto de cálculos realizados con este. En concreto, tras modificar las disposiciones pertinentes, como, por ejemplo, normas, homologaciones, etc., la hoja de cálculo puede dejar de ser válida, parcial o completamente.\n\nd) aunque se reserva el derecho de actualizar, revisar y desarrollar CALC, no asume ninguna obligación, ante el usuario, de comprobar, corregir, completar o actualizar la hoja de cálculo ni de poner a su disposición las actualizaciones realizadas.",null,null,"RB:\n\na) mette a disposizione dell’Utente CALC gratuitamente, così com’è;\n\nb) non fornisce all’utente alcun supporto tecnico per l’utilizzo di CALC;\n\nc) non garantisce la conformità di CALC alla normativa vigente né al progetto dei calcoli effettuati tramite lo stesso. In particolare, in seguito alla modifica delle disposizioni di pertinenza quali, per es. norme, omologazioni, ecc. il foglio di calcolo potrebbe diventare, in parte o per intero, non valido.\n\nd) pur riservandosi il diritto di aggiornare, rivedere e sviluppare CALC, non assume alcun obbligo nei confronti dell’utente di verificare, correggere, completare o aggiornare il foglio di calcolo e/o rendere disponibili allo stesso gli aggiornamenti effettuati.","RB:\n\na) makes available XLS to the User free of charge, as it is;\n\nb) does not provide the user with any technical support for using XLS;\n\nc) does not guarantee that XLS complies with the regulations in force or with the calculations design made using it. In particular, as a result of changes to the relevant provisions, such as standards, approvals, etc., the spreadsheet may become invalid in part or in full.\n\nd) while reserving the right to update, revise and develop XLS, RB does not assume any obligation towards the user to verify, correct, complete or update the spreadsheet and/or make the updates available to the user.","RB:\n\na) stellt dem Benutzer CALC kostenlos zur Verfügung, wie es ist;\n\nb) bietet dem Benutzer keine technische Unterstützung für die Verwendung von CALC;\n\nc) garantiert weder die Übereinstimmung der mit CALC durchgeführten Berechnungen mit den geltenden Vorschriften noch mit dem Projekt. Insbesondere könnte das Tabellenkalkulationsprogramm infolge einer Änderung der relevanten Bestimmungen, wie z. B. Normen, Zulassungen usw., seine Gültigkeit teilweise oder vollständig verlieren.\n\nd) übernimmt, auch wenn das Unternehmen sich das Recht auf Aktualisierung, Korrektur und Entwicklung von CALC vorbehält, keinerlei Verpflichtung gegenüber dem Benutzer, das Tabellenkalkulationsprogramm zu prüfen, zu korrigieren, zu vervollständigen oder zu aktualisieren und/oder dieses mit den vorgenommenen Aktualisierungen auszustatten.","RB:\n\na) pone el CALC a disposición del usuario gratuitamente, tal como está;\n\nb) no proporciona al usuario asistencia técnica de ningún tipo para el uso de CALC;\n\nc) no garantiza la conformidad de CALC con la normativa vigente ni con el proyecto de cálculos realizados con este. En concreto, tras modificar las disposiciones pertinentes, como, por ejemplo, normas, homologaciones, etc., la hoja de cálculo puede dejar de ser válida, parcial o completamente.\n\nd) aunque se reserva el derecho de actualizar, revisar y desarrollar CALC, no asume ninguna obligación, ante el usuario, de comprobar, corregir, completar o actualizar la hoja de cálculo ni de poner a su disposición las actualizaciones realizadas.","RB :\n\na) met gratuitement CALC à la disposition de l’Utilisateur, telle quelle est ;\n\nb) ne fournit aucun support technique à l’utilisateur pour l’utilisation de CALC ;\n\nc) ne garantit pas la conformité de CALC à la règlementation en vigueur ni à la conception des calculs effectués à travers celui-ci. En particulier, suite à la modification des dispositions relatives, comme les normes, homologations, etc. la feuille de calcul pourrait devenir entièrement ou partiellement non valide ;\n\nd) tout en se réservant le droit de mettre à jour, revoir et développer CALC, ne prend aucune obligation envers l'utilisateur concernant la vérification, la correction, le complètement ou la mise à jour de la feuille de calcul et/ou la mise à disposition des mises à jour effectuées.","RB:\n\na) coloca o CALC à disposição do Utilizador gratuitamente, tal como está;\n\nb) não fornece ao utilizador qualquer suporte técnico para a utilização do CALC;\n\nc) não garante a conformidade do CALC com a regulamentação em vigor ou a conceção dos cálculos efetuados pelo mesmo. Em particular, na sequência de alterações nas disposições aplicáveis, tais como normas, homologações, etc., a folha de cálculo pode ficar total ou parcialmente inválida.\n\nd) embora se reserve o direito de atualizar, rever e desenvolver o CALC, não assume qualquer obrigação perante o utilizar de verificar, corrigir, completar ou atualizar a folha de cálculo e/ou disponibilizar ao utilizar as atualizações realizadas."]
["4. DERECHOS Y OBLIGACIONES DEL USUARIO",null,null,"4. DIRITTI E OBBLIGHI DELL'UTENTE","4. USER RIGHTS AND OBLIGATIONS","4. RECHTE UND PFLICHTEN DES BENUTZERS","4. DERECHOS Y OBLIGACIONES DEL USUARIO","4. DROITS ET OBLIGATIONS DE L'UTILISATEUR","4. DIREITOS E OBRIGAÇÕES DO UTILIZADOR"]
["El Usuario declara que utilizará la hoja de cálculo como profesional, quedando excluido cualquier uso como consumidor, y que respetará siempre las siguientes obligaciones y prohibiciones:\n\na) la obligación y la responsabilidad de comprobar que CALC satisfaga sus necesidades específicas y sea compatible con su hardware, software y sistemas;\n\nb) la obligación de comprobar, cada vez que lo use, la conformidad de los cálculos realizados mediante CALC con la normativa vigente y con el proyecto;\n\nc) la obligación de comprobar la conformidad legal de los cálculos realizados mediante el software;\n\nd) la obligación de usar la versión más actualizada de CALC puesta a disposición por la persona de contacto RB y de comprobar, cada vez que lo use, si hay actualizaciones;\n\ne) la prohibición de usar XLS para productos no indicados en cada sección de cálculo;\n\nf) la obligación de utilizar un software antivirus actualizado y que sea conforme con el estándar industrial actual;\n\ng) la obligación de no ceder la licencia de uso de CALC a terceros ni, por otros medios, transferir, dar en garantía o arrendamiento, alquilar o compartir con otros o conceder en sublicencia los derechos de uso de la hoja de cálculo;\n\nh) la prohibición de hacer copias de XLS o hacer que terceros lo hagan por él.\n\nEl usuario se compromete a solicitar a la persona de contacto de RB la última versión de CALC. ",null,null,"L’Utente dichiara di utilizzare il foglio di calcolo in qualità di professionista escludendosi qualsiasi uso come consumatore, e di rispettare sempre i seguenti obblighi e divieti:\n\na) l’obbligo e la responsabilità di verificare che CALC soddisfi i propri bisogni specifici e sia compatibile con i propri hardware-software-sistemi;\n\nb) l’obbligo di verificare, ad ogni utilizzo, la conformità dei calcoli effettuati tramite CALC alla normativa vigente ed al progetto;\n\nc) l’obbligo di verificare la conformità legale dei calcoli effettuati tramite il Software;\n\nd) L’obbligo di utilizzare l'ultima versione di CALC resa disponibile dal contatto di riferimento RB, controllando ad ogni utilizzo eventuali aggiornamenti;\n\ne) il divieto di utilizzare CALC per prodotti non indicati in ciascuna sezione di calcolo;\n\nf) l’obbligo di utilizzare software antivirus aggiornati e conformi allo standard industriale vigente;\n\ng) l’obbligo di non cedere la licenza d’uso di CALC a terzi e/o in altro modo trasferire, dare in pegno o in locazione, affittare o condividere con altri o concedere in sublicenza i diritti di utilizzo del foglio di calcolo;\n\nh) il divieto di modificare o variare in alcun modo CALC, anche tramite terzi.\n\nL'utente si impegna a chiedere al referente di RB l'ultima versione di CALC. ","The User declares to use the spreadsheet as a professional excluding any use as a consumer, and to always comply with the following obligations and prohibitions:\n\na) obligation and responsibility to verify that XLS meets the specific needs and that it is compatible with the hardware-software-systems;\n\nb) obligation to verify, for each use, the compliance of the calculations made through XLS to the regulations in force and to the project;\n\nc) obligation to verify the legal compliance of the calculations made through the Software;\n\nd) obligation to use the latest version of XLS made available by the RB contact person, checking at each use for any updates that have occurred;\n\ne) prohibition to use XLS for products not indicated in each calculation section;\n\nf) obligation to use updated antivirus software that complies with the industry standard in force;\n\ng) obligation not to assign the licence to use XLS to third parties and/or in any other way transfer, pledge or lease, rent or share with others or sublicense the rights to use the spreadsheet;\n\nh) prohibition to modify or vary XLS in any way, including through third parties.\n\nThe user commits himself to ask the RB contact person for the last version of the XLS.","Der Benutzer erklärt, das Tabellenkalkulationsprogramm in seiner Eigenschaft als Fachkraft zu verwenden und in keiner Weise als Verbraucher davon Gebrauch zu machen sowie stets die folgenden Pflichten und Verbote zu respektieren:\n\na) die Verpflichtung und Verantwortung zu überprüfen, dass CALC seinen spezifischen Bedürfnissen entspricht und mit seinen Hard- und Software-Systemen kompatibel ist;\n\nb) die Verpflichtung, bei jeder Verwendung die Übereinstimmung der mit CALC durchgeführten Berechnungen mit den geltenden Vorschriften und dem Projekt zu überprüfen;\n\nc) die Verpflichtung, die rechtliche Übereinstimmung der über die Software vorgenommenen Berechnungen zu überprüfen;\n\nd) die Verpflichtung, die neueste Version von CALC zu verwenden, die vom Ansprechpartner RB zur Verfügung gestellt wurde, und bei jeder Verwendung auf etwaige Aktualisierungen zu kontrollieren;\n\ne) das Verbot, CALC für Produkte zu verwenden, die nicht in jeder der Berechnungssektionen angegeben sind;\n\nf) die Verpflichtung, aktualisierte Antivirensoftware zu verwenden, die den geltenden Industriestandards entspricht;\n\ng) die Verpflichtung, die Nutzungslizenz von CALC nicht an Dritte zu übertragen und/oder auf andere Weise die Nutzungsrechte am Tabellenkalkulationsprogramm zu übertragen, zu verpfänden oder zu vermieten;\n\nh) das Verbot, CALC in irgendeiner Weise zu verändern oder abzuwandeln.\n\nDer Benutzer verpflichtet sich, den Ansprechpartner von RB um die neueste Version von CALC zu bitten. ","El Usuario declara que utilizará la hoja de cálculo como profesional, quedando excluido cualquier uso como consumidor, y que respetará siempre las siguientes obligaciones y prohibiciones:\n\na) la obligación y la responsabilidad de comprobar que CALC satisfaga sus necesidades específicas y sea compatible con su hardware, software y sistemas;\n\nb) la obligación de comprobar, cada vez que lo use, la conformidad de los cálculos realizados mediante CALC con la normativa vigente y con el proyecto;\n\nc) la obligación de comprobar la conformidad legal de los cálculos realizados mediante el software;\n\nd) la obligación de usar la versión más actualizada de CALC puesta a disposición por la persona de contacto RB y de comprobar, cada vez que lo use, si hay actualizaciones;\n\ne) la prohibición de usar XLS para productos no indicados en cada sección de cálculo;\n\nf) la obligación de utilizar un software antivirus actualizado y que sea conforme con el estándar industrial actual;\n\ng) la obligación de no ceder la licencia de uso de CALC a terceros ni, por otros medios, transferir, dar en garantía o arrendamiento, alquilar o compartir con otros o conceder en sublicencia los derechos de uso de la hoja de cálculo;\n\nh) la prohibición de hacer copias de XLS o hacer que terceros lo hagan por él.\n\nEl usuario se compromete a solicitar a la persona de contacto de RB la última versión de CALC. ","L'utilisateur déclare utiliser la feuille de calcul en tant que professionnel et en excluant toute utilisation en tant que consommateur, et respecter systématiquement les obligations et interdictions suivantes :\n\na) l'obligation et la responsabilité de vérifier que CALC répond à ses besoins spécifiques et est compatible avec ses systèmes hardware et logiciels ; \n\nb) l'obligation de vérifier, à chaque utilisation, la conformité des calculs effectués à travers CALC à la réglementation en vigueur et à la conception ;\n\nc) l'obligation de vérifier la conformité légale des calculs effectués au moyen du logiciel ;\n\nd) l'obligation d'utiliser la dernière version de CALC mise à disposition par le contact de référence RB, en vérifiant les éventuelles mises à jour à chaque utilisation ;\n\ne) l'interdiction d'utiliser CALC pour des produits non indiqués dans chaque section de calcul ;\n\nf) l'obligation d'utiliser des logiciels antivirus mis à jour et conformes à la norme industrielle en vigueur ;\n\ng) l'obligation de ne pas céder la licence d'utilisation de CALC à des tiers et/ou de transférer, mettre en gage ou en location, louer ou partager avec d'autres ou sous-licencier les droits d'utilisation de la feuille de calcul ;\n\nh) l'interdiction de modifier ou de varier CALC de quelque manière que ce soit, même par l'intermédiaire de tiers.\n\nL’utilisateur s’engage à demander au conseiller RB la dernière version de CALC. ","O Utilizador declara que utiliza a folha de cálculo como profissional, excluindo qualquer utilização como consumidor, e que respeita sempre as seguintes obrigações e proibições:\n\na) a obrigação e a responsabilidade de verificar se o CALC satisfaz as suas necessidades específicas e é compatível com os seus sistemas de hardware-software;\n\nb) a obrigação de verificar, em cada utilização, a conformidade dos cálculos efetuados com o CALC com a regulamentação em vigor e o projeto;\n\nc) a obrigação de verificar a conformidade legal dos cálculos efetuados através do Software;\n\nd) A obrigação de utilizar a última versão do CALC disponibilizada pelo contacto de referência da RB, verificando as atualizações de cada vez que é utilizado;\n\ne) a proibição de utilizar o CALC para produtos não indicados em cada secção de cálculo;\n\nf) a obrigação de utilizar software antivírus atualizado que esteja em conformidade com as normas em vigor no setor;\n\ng) a obrigação de não ceder a terceiros a licença de utilização do CALC e/ou de transferir, penhorar ou arrendar, alugar ou partilhar com outros ou sublicenciar os direitos de utilização da folha de cálculo;\n\nh) a proibição de modificar ou alterar o CALC de qualquer forma, mesmo através de terceiros.\n\nO utilizador compromete-se a solicitar à pessoa de contacto da RB a última versão do CALC. "]
["5. DERECHOS DE AUTOR",null,null,"5. DIRITTI D'AUTORE","5. COPYRIGHTS","5. URHEBERRECHTE","5. DERECHOS DE AUTOR","5. DROITS D'AUTEUR","5. DIREITOS DE AUTOR"]
["Los derechos de autor sobre las fórmulas de la hoja de cálculo y todos los derechos de propiedad intelectual e industrial que se aplican a aquellas (a título meramente de ejemplo y no exhaustivo: marcas, patentes, secretos comerciales, saber hacer, información confidencial) son y seguirán siendo propiedad exclusiva de RB.\n\nEste acuerdo no otorga al usuario ninguno de los derechos indicados anteriormente.",null,null,"I diritti d’autore sulle formulazioni di cui nel foglio di calcolo e tutti i diritti di proprietà intellettuale ed industriale sottesi a queste (quali in via puramente esemplificativa e non esaustiva: marchi, brevetti, segreti commerciali, know how, informazioni riservate) sono e restano di proprietà esclusiva di RB.\n\nIl presente accordo non conferisce all’utente alcuno dei diritti di cui sopra.","The copyrights on the formulations referred to in the spreadsheet and all the intellectual and industrial property rights underlying them (such as, but not limited to: trademarks, patents, trade secrets, know-how, confidential information) are and remain the exclusive property of RB. \n\nThis agreement does not transfer any of the above rights to the user.","Die Urheberrechte auf die im Tabellenkalkulationsprogramm aufgeführten Formeln und alle ihnen zugrunde liegenden geistigen und gewerblichen Eigentumsrechte (beispielsweise und ohne Anspruch auf Vollständigkeit: Marken, Patente, Geschäftsgeheimnisse, Know-how, vertrauliche Informationen) sind und bleiben ausschließlicher Besitz von RB.\n\nDieser Vertrag erteilt dem Benutzer keines der hier o. g. Rechte.","Los derechos de autor sobre las fórmulas de la hoja de cálculo y todos los derechos de propiedad intelectual e industrial que se aplican a aquellas (a título meramente de ejemplo y no exhaustivo: marcas, patentes, secretos comerciales, saber hacer, información confidencial) son y seguirán siendo propiedad exclusiva de RB.\n\nEste acuerdo no otorga al usuario ninguno de los derechos indicados anteriormente.","Les droits d'auteur sur les formules de la feuille de calcul et tous les droits de propriété intellectuelle et industrielle sous-jacents (par exemple, sans s'y limiter : marques, brevets, secrets industriels, savoir-faire, informations confidentielles) sont et restent la propriété exclusive de RB.\n\nLe présent accord ne donne à l'utilisateur aucun des droits susmentionnés.","Os direitos de autor sobre as formulações referidas na folha de cálculo e todos os direitos de propriedade intelectual e industrial que lhes estão subjacentes (tais como, a título de exemplo e não exaustivo: marcas, patentes, segredos comerciais, saber-fazer, informações confidenciais) são e continuam a ser propriedade exclusiva da RB.\n\nO presente acordo não concede ao Utilizador nenhum dos direitos acima estabelecidos."]
["6. DURACIÓN, RESCISIÓN Y TERMINACIÓN ",null,null,"6. DURATA, RECESSO E CESSAZIONE ","6. DURATION, WITHDRAWAL AND TERMINATION","6. LAUFZEIT, RÜCKTRITT UND AUFLÖSUNG ","6. DURACIÓN, RESCISIÓN Y TERMINACIÓN ","6. DURÉE, RETRAIT ET RÉSILIATION ","6. DURAÇÃO, DENÚNCIA E CESSAÇÃO "]
["Las presentes condiciones generales y, en consecuencia, la licencia de uso de la hoja de cálculo, son válidas desde el momento de su descarga hasta que termine su uso.\n\nEl usuario puede rescindir en cualquier momento este contrato eliminando CALC y cualquier copia de sus sistemas.\n\nRB puede rescindir este Contrato y desactivar el servicio en caso de infracción de una cualquiera de las disposiciones que regulan la licencia de uso. En caso de que RB comunique la terminación, el usuario deberá eliminar la hoja de cálculo y cualquier copia de sus sistemas.",null,null,"Le presenti condizioni generali e, di conseguenza, la licenza d’uso del foglio di calcolo, sono validi dal momento del download dello stesso sino alla cessazione del suo utilizzo.\n\nL’utente può recedere in qualsiasi momento dal presente Contratto eliminando CALC e tutte le eventuali copie dai suoi sistemi.\n\nRB può recedere dal presente Contratto e disattivare il servizio in caso di infrazione di una qualsiasi delle disposizioni che regolano la licenza d’uso. Nel caso in cui RB comunichi la cessazione, l’utente dovrà provvedere ad eliminare il foglio di calcolo ed eventuali sue copie dai suoi sistemi.","These general conditions and, consequently, the licence to use the spreadsheet, are valid from the moment of downloading it until the termination of its use.\n\nThe user may withdraw from this Agreement at any time by deleting the XLS and all copies from its systems.\n\nRB may withdraw from this Agreement and deactivate the service in the event of a breach of any of the provisions governing the license of use. In the event that RB notifies its termination, the user shall remove the spreadsheet and any copies thereof from its systems.","Diese Allgemeinen Bedingungen und demzufolge die Nutzungslizenz des Tabellenkalkulationsprogramms gelten ab dem Zeitpunkt ihres Downloads bis zur Beendigung seiner Nutzung.\n\nDer Benutzer kann zu jeder Zeit vom Vertrag zurücktreten, indem er CALC und alle etwaigen Kopien von seinen Systemen löscht.\n\nRB kann im Falle eines Verstoßes gegen eine der die Nutzungslizenz regelnden Bestimmungen von diesem Vertrag zurücktreten und die Leistung deaktivieren. Für den Fall, dass RB den Rücktritt mitteilt, muss der Benutzer dafür sorgen, dass das Tabellenkalkulationsprogramm und etwaige Kopien von seinen Systemen gelöscht werden.","Las presentes condiciones generales y, en consecuencia, la licencia de uso de la hoja de cálculo, son válidas desde el momento de su descarga hasta que termine su uso.\n\nEl usuario puede rescindir en cualquier momento este contrato eliminando CALC y cualquier copia de sus sistemas.\n\nRB puede rescindir este Contrato y desactivar el servicio en caso de infracción de una cualquiera de las disposiciones que regulan la licencia de uso. En caso de que RB comunique la terminación, el usuario deberá eliminar la hoja de cálculo y cualquier copia de sus sistemas.","Les présentes conditions générales et, par conséquent, la licence d'utilisation de la feuille de calcul, sont valables à partir du moment du téléchargement de celle-ci jusqu'à la fin de son utilisation.\n\nL'utilisateur peut résilier à tout moment le présent Contrat en supprimant CALC et toutes les copies éventuelles de ses systèmes.\n\nRB peut résilier à tout moment le présent Contrat et désactiver le service en cas d'infraction d'une des dispositions qui régissent la licence d'utilisation. En cas de communication de résiliation par RB, l'utilisateur devra supprimer la feuille de calcul et ses copies éventuelles de ses systèmes.","As presentes Condições Gerais e, consequentemente, a licença de utilização da folha de cálculo, são válidas desde o momento de download do mesmo até à cessação da sua utilização.\n\nO Utilizador pode rescindir o presente Contrato a qualquer momento, eliminando o CALC e todas as cópias dos seus sistemas.\n\nA RB pode rescindir o presente Contrato e desativar o serviço em caso de violação de qualquer uma das disposições que regem a licença de utilização. Caso a RB comunique a cessação, o Utilizador deve eliminar a folha de cálculo e eventuais cópias da mesma dos seus sistemas."]
["7. RESPONSABILIDAD",null,null,"7. RESPONSABILITÀ","7. RESPONSIBILITY","7. VERANTWORTUNG","7. RESPONSABILIDAD","7. RESPONSABILITÉ","7. RESPONSABILIDADE"]
["El usuario es el único responsable del uso de CALC, incluidos, entre otros, todos los cálculos, los listados y los datos exportados realizados con él; también es el único responsable de los errores de introducción, de la protección de los archivos de datos y del mantenimiento y, en general, de cualquier uso que haga de la hoja de cálculo.\n\nRB no ofrece ninguna garantía y en ningún caso podrá ser considerada responsable por daños, pérdidas y costes u otras consecuencias, bajo ningún concepto (garantía por vicios, garantía por mal funcionamiento, responsabilidad del producto o legal, etc.), ocasionados por:\n\n•   uso de CALC, cálculos realizados, conformidad con la normativa vigente, con el proyecto u otras exigencias del Usuario;\n\n•   compatibilidad del hardware y software, virus, mal funcionamiento, defectos, errores o lagunas;\n\n•   falta de actualización de la hoja de cálculo o interrupción de la disponibilidad de la hoja de cálculo o terminación del contrato por cualquier motivo;\n\n•   infracción de derechos de propiedad intelectual de terceros.\n\nEl usuario confirma que ha comprendido y acepta las exclusiones de responsabilidad y las limitaciones de responsabilidad y reclamación de este Contrato. \n\nEl usuario también confirma que la hoja de cálculo está disponible gratuitamente, que las exclusiones y limitaciones son elementos fundamentales de este Contrato y que RB no pone su hoja de cálculo a disposición del usuario si las exclusiones o limitaciones se eliminan o modifican a favor del usuario en cuestión.",null,null,"L’utente è l’unico responsabile per l’uso di CALC, inclusi, ma non solo, tutti i calcoli, i tabulati, i dati di esportazioni con esso svolti e/o per gli errori di inserimento, per la protezione dei file di dati e per la manutenzione ed in generale per qualsiasi uso effettuato del foglio di calcolo.\n\nRB non garantisce e in nessun caso potrà essere ritenuta responsabile in merito a danni, perdite e costi o altre conseguenze, a qualsiasi titolo (garanzia per vizi, garanzia per malfunzionamento, responsabilità del prodotto o di legge, etc.) derivanti da:\n\n•   utilizzo di CALC, calcoli effettuati, conformità alla normativa vigente, al progetto o altre esigenze dell’Utente;\n\n•   compatibilità hardware e software, virus, malfunzionamenti, difetti, errori o lacune;\n\n•   mancato aggiornamento del foglio di calcolo e/o interruzione della messa a disposizione del foglio di calcolo e/o cessazione del contratto a qualsiasi titolo;\n\n•   violazione di diritti di proprietà intellettuale di terzi.\n\nL’utente conferma di aver compreso e accettato le esclusioni di responsabilità e le limitazioni di responsabilità e reclamo del presente Contratto. \n\nL’utente conferma inoltre che il foglio di calcolo è disponibile gratuitamente, che le esclusioni e le limitazioni sono elementi fondamentali del presente Contratto e che RB non rende disponibile il proprio foglio di calcolo all’utente nel caso in cui le esclusioni o le limitazioni vengono eliminate o modificate a favore dell’utente stesso.","The user is solely responsible for the use of XLS, including, but not limited to, all calculations, printouts, export data made with it and/or for entry errors, protection of data files and maintenance and in general for any use of the spreadsheet.\n\nRB does not guarantee and in no case can be held responsible for damages, losses and costs or other consequences, for any reason (warranty for defects, warranty for malfunction, product or legal responsibility, etc.) deriving from:\n\n•   use of XLS, calculations made, compliance with current legislation, with the design or other User needs;\n\n•   hardware and software compatibility, viruses, malfunctions, defects, errors or gaps;\n\n•   failure to update the spreadsheet and/or interruption of the availability of the spreadsheet and/or termination of the agreement for any reason;\n\n•   infringement of intellectual property rights of third parties.\n\nThe user confirms to have understood and accepted the disclaimers and limitations of liability and claim of this Agreement. The user also confirms that the spreadsheet is available for free, that the exclusions and limitations are fundamental elements of this Agreement and that RB does not make its spreadsheet available to the user if the exclusions or limitations are deleted or modified in favour of the user.","Der Benutzer ist der alleinige Verantwortliche für die Verwendung von CALC, einschließlich, aber nicht beschränkt auf alle Berechnungen, die Tabellen, die Daten aus Exporten, die hiermit vorgenommen wurden und/oder für die Fehler bei der Eingabe, für den Schutz der Datendateien sowie für die Instandhaltung und im Allgemeinen für jede erfolgte Verwendung des Tabellenkalkulationsprogramms.\n\nRB garantiert nicht für bzw. kann in keinem Fall haftbar gemacht werden für Schäden, Verluste und Kosten oder sonstige Auswirkungen aus einem beliebigen Grund (Gewährleistung bei Mängeln, Gewährleistung bei Fehlfunktionen, gesetzliche oder Produkthaftung usw.), die sich ergeben aus:\n\n•   der Verwendung von CALC, den durchgeführten Berechnungen, der Übereinstimmung mit geltenden Vorschriften, dem Projekt oder anderen Anforderungen des Benutzers;\n\n•   der Hardware- und Softwarekompatibilität, Viren, Fehlfunktionen, Mängeln, Fehlern oder Lücken;\n\n•   der nicht erfolgten Aktualisierung des Tabellenkalkulationsprogramms und/oder der Unterbrechung der Bereitstellung des Tabellenkalkulationsprogramms und/oder Beendigung des Vertrags aus einem beliebigen Grund;\n\n•   der Verletzung von Rechten an geistigem Eigentum Dritter.\n\nDer Benutzer bestätigt, die Haftungsausschlüsse sowie die Haftungs- und Beschwerdebeschränkungen verstanden und akzeptiert zu haben. \n\nDer Benutzer bestätigt weiterhin, dass das Tabellenkalkulationsprogramm kostenlos verfügbar ist, dass die Ausschlüsse und Beschränkungen grundlegende Elemente dieses Vertrags sind und dass RB sein Tabellenkalkulationsprogramm dem Benutzer nicht zur Verfügung stellt, sollten die Ausschlüsse oder Beschränkungen zugunsten des Benutzers beseitigt oder geändert werden.","El usuario es el único responsable del uso de CALC, incluidos, entre otros, todos los cálculos, los listados y los datos exportados realizados con él; también es el único responsable de los errores de introducción, de la protección de los archivos de datos y del mantenimiento y, en general, de cualquier uso que haga de la hoja de cálculo.\n\nRB no ofrece ninguna garantía y en ningún caso podrá ser considerada responsable por daños, pérdidas y costes u otras consecuencias, bajo ningún concepto (garantía por vicios, garantía por mal funcionamiento, responsabilidad del producto o legal, etc.), ocasionados por:\n\n•   uso de CALC, cálculos realizados, conformidad con la normativa vigente, con el proyecto u otras exigencias del Usuario;\n\n•   compatibilidad del hardware y software, virus, mal funcionamiento, defectos, errores o lagunas;\n\n•   falta de actualización de la hoja de cálculo o interrupción de la disponibilidad de la hoja de cálculo o terminación del contrato por cualquier motivo;\n\n•   infracción de derechos de propiedad intelectual de terceros.\n\nEl usuario confirma que ha comprendido y acepta las exclusiones de responsabilidad y las limitaciones de responsabilidad y reclamación de este Contrato. \n\nEl usuario también confirma que la hoja de cálculo está disponible gratuitamente, que las exclusiones y limitaciones son elementos fundamentales de este Contrato y que RB no pone su hoja de cálculo a disposición del usuario si las exclusiones o limitaciones se eliminan o modifican a favor del usuario en cuestión.","L'utilisateur est le seul responsable de l'utilisation de CALC y compris, sans s'y limiter, de l'ensemble des calculs, des rapports, des données d'exportation réalisées avec celui-ci et/ou des erreurs de saisie, de la protection des fichiers de données et de la conservation et en général de toute utilisation de la feuille de calcul.\n\nRB ne garantit pas et ne pourra en aucun cas être considéré responsable de dommages, pertes et frais ou d'autres conséquences, à quelque titre que ce soit (garantie en cas de défauts, garantie en cas de dysfonctionnement, responsabilité des produits ou responsabilité légale, etc.) dérivant de :\n\n•   l'utilisation de CALC, des calculs effectués, de la conformité aux réglementations en vigueur, au projet ou autres exigences de l'utilisateur ;\n\n•   la compatibilité du hardware et logiciel, virus, dysfonctionnements, défauts, erreurs ou lacunes ;\n\n•   l'absence de mise à jour de la feuille de calcul et/ou interruption de la mise à disposition de la feuille de calcul et/ou résiliation du contrat pour quelque raison que ce soit ;\n\n•   la violation des droits de propriété intellectuelle de tiers.\n\nL'utilisateur confirme qu'il a compris et qu'il accepte les exclusions de responsabilité et les limitations de responsabilité et de réclamation du présent Contrat. \n\nL'utilisateur confirme également que la feuille de calcul est disponible gratuitement, que les exclusions et les limitations sont des éléments fondamentaux du présent Contrat et que RB ne fournit pas sa feuille de calcul à l'utilisateur si les exclusions ou les limitations sont supprimées ou modifiées en faveur de l'utilisateur.","O Utilizador é o único responsável pela utilização do CALC, incluindo, mas não limitado a, todos os cálculos, impressões, dados de exportações realizados através do mesmo e/ou por erros de introdução, segurança de ficheiros de dados e manutenção e, em geral, por qualquer utilização da folha de cálculo.\n\nA RB não garante e não será, em caso algum, responsável por danos, perdas e custos ou outras consequências, seja a que título for (garantia contra defeitos, garantia em caso de mau funcionamento, responsabilidade pelo produto ou responsabilidade legal, etc.), resultantes de:\n\n•   utilização do CALC, cálculos efetuados, cumprimento da regulamentação aplicável, do projeto ou de outras necessidades do Utilizador;\n\n•   compatibilidade de hardware e software, vírus, avarias, defeitos, erros ou deficiências;\n\n•   não atualização da folha de cálculo e/ou interrupção da disponibilização da folha de cálculo e/ou rescisão do contrato por qualquer motivo;\n\n•   violação dos direitos de propriedade intelectual de terceiros.\n\nO Utilizador declara que compreende e aceita as exclusões de responsabilidade e limitações de responsabilidade e reclamação do presente Contrato. \n\nO Utilizador declara igualmente que a folha de cálculo está disponível gratuitamente, que as exclusões e limitações são elementos fundamentais do presente Contrato e que a RB não disponibilizará a sua folha de cálculo ao Utilizador caso as exclusões ou limitações sejam eliminadas ou alteradas a favor deste último."]
["8. REEMBOLSO",null,null,"8. RIMBORSO","8. REFUND","8. RÜCKERSTATTUNG","8. REEMBOLSO","8. REMBOURSEMENT","8. REEMBOLSO"]
["El usuario acepta eximir de toda responsabilidad e indemnizar a RB, sus sociedades afiliadas y sus funcionarios, directores, empleados, sucesores, y encargados (cada uno individualmente, \"Beneficiario\", colectivamente, \"Beneficiarios\") por los costes sufragados en relación con las reclamaciones presentadas por terceros por daños o pérdidas ocasionados por el uso de la hoja de cálculo por parte del usuario (incluidos, entre otros, honorarios y gastos de gestión sufragados por RB).",null,null,"L'utente accetta di tenere indenne e risarcire RB, le sue società affiliate e il suo o i suoi funzionari, direttori, dipendenti, successori, e incaricati (ciascuno singolarmente, \"\"Beneficiario\"\", collettivamente, i \"\"Beneficiari\"\") per i costi sostenuti in relazione a pretese avanzate da terzi per danni o perdite derivanti dall’utilizzo del foglio di calcolo da parte dell‘utente (compresi, ma non solo, onorari e spese di gestione sostenute da RB).","The user agrees to indemnify and hold harmless RB, its subsidiaries and its or its officers, directors, employees, successors and appointees (each individually, \"\"Beneficiary\"\", collectively, the \"\"Beneficiaries\"\") for the costs incurred in relation to claims made by third parties for damages or losses deriving from the use of the spreadsheet by the user (including, but not limited to, fees and management costs incurred by RB).","Der Benutzer akzeptiert, RB, dessen Niederlassungen sowie dessen und deren Führungskräfte, Direktoren, Angestellte, Nachfolger und Beauftragte (jeder von diesen einzeln „Begünstigter“, gemeinsam die „Begünstigten“) für Kosten schadlos zu halten und zu entschädigen, die im Zusammenhang mit von Dritten vorgebrachten Ansprüchen für Schäden oder Verluste entstehen, welche sich aus der Nutzung des Tabellenkalkulationsprogramms seitens des Benutzers (einschließlich, aber nicht beschränkt auf von RB getragene Honorare und Verwaltungskosten) ergeben.","El usuario acepta eximir de toda responsabilidad e indemnizar a RB, sus sociedades afiliadas y sus funcionarios, directores, empleados, sucesores, y encargados (cada uno individualmente, \"Beneficiario\", colectivamente, \"Beneficiarios\") por los costes sufragados en relación con las reclamaciones presentadas por terceros por daños o pérdidas ocasionados por el uso de la hoja de cálculo por parte del usuario (incluidos, entre otros, honorarios y gastos de gestión sufragados por RB).","L'utilisateur accepte d'indemniser et de dégager de toute responsabilité RB, ses sociétés affiliées et son ou ses dirigeants, directeurs, employés, successeurs et mandataires (chacun individuellement, le « Bénéficiaire », collectivement, les « Bénéficiaires ») pour les coûts engagés relativement aux réclamations faites par des tiers pour des dommages ou pertes découlant de l'utilisation de la feuille de calcul par l'utilisateur (incluant, sans s'y limiter, les honoraires et frais de gestion engagés par RB).","O Utilizador aceita eximir e isentar a RB, respetivas filiais e executivo(s), diretores, empregados, sucessores e agentes (cada um individualmente, “Beneficiário”, coletivamente, os “Beneficiários”) por custos incorridos em relação a reclamações de terceiros, por danos ou perdas decorrentes da utilização da folha de cálculo pelo Utilizador (incluindo, mas não limitado a, honorários e despesas de gestão suportadas pela RB)."]
["9. DISPOSICIONES VARIAS",null,null,"9. VARIE","9. MISCELLANEOUS","9. SONSTIGE","9. DISPOSICIONES VARIAS","9. DIVERS","9. DIVERSOS"]
["Estas condiciones generales constituyen el acuerdo completo entre RB y el usuario por lo que respecta al asunto en cuestión y sustituyen todos los acuerdos anteriores, tanto orales como escritos, así como cualquier acuerdo entre RB y el usuario.",null,null,"Le presenti condizioni generali costituiscono l’intero accordo tra RB e l’utente per quanto riguarda la materia in oggetto e sostituiscono tutti gli accordi precedenti, orali o scritti che siano, nonché eventuali intese tra RB e l’utente.","These general conditions constitute the entire agreement between RB and the user regarding the subject matter and replace all previous, oral or written agreements, as well as any agreements between RB and the user.","Diese Allgemeinen Bedingungen bilden die vollständigen Vereinbarungen zwischen RB und dem Benutzer in Bezug auf die Angelegenheit und ersetzen alle vorherigen Vereinbarungen, ob mündlich oder schriftlich, sowie etwaige Absprachen zwischen RB und dem Benutzer.","Estas condiciones generales constituyen el acuerdo completo entre RB y el usuario por lo que respecta al asunto en cuestión y sustituyen todos los acuerdos anteriores, tanto orales como escritos, así como cualquier acuerdo entre RB y el usuario.","Les présentes conditions générales constituent l'ensemble de l'accord entre RB et l'utilisateur en la matière et remplacent tous les accords précédents, oraux ou écrits, ainsi que les éventuels arrangements entre RB et l'utilisateur.","As presentes Condições Gerais constituem o acordo integral entre a RB e o Utilizador em relação ao assunto em questão e substituem todos os acordos anteriores, sejam orais ou escritos, bem como quaisquer acordos entre a RB e o Utilizador."]
["10. IDIOMA",null,null,"10. LINGUA","10. LANGUAGE","10. SPRACHE","10. IDIOMA","10. LANGUE","10. IDIOMA"]
["En caso de diferencias entre las versiones de estas condiciones en los distintos idiomas, el texto italiano es vinculante y prevalece con respecto a las traducciones.",null,null,"In caso di divergenze tra versioni delle presenti condizioni nelle varie lingue, il testo italiano è vincolante e prevalente rispetto alle traduzioni.","In the event of differences between versions of these conditions in the various languages, the Italian text is binding and takes precedence with respect to the translations.","Im Falle von Unstimmigkeiten zwischen den Versionen dieser Bedingungen in den verschiedenen Sprachen gilt der italienische Wortlaut als bindend und als im Verhältnis zu den Übersetzungen vorrangig.","En caso de diferencias entre las versiones de estas condiciones en los distintos idiomas, el texto italiano es vinculante y prevalece con respecto a las traducciones.","En cas de divergence entre les versions des présentes conditions dans les différentes langues, le texte italien fait foi et prévaut sur les traductions.","Em caso de divergências entre as versões das presentes Condições nas diferentes línguas, o texto italiano é vinculativo e prevalece sobre as traduções."]
["11. DERECHO APLICABLE Y TRIBUNAL COMPETENTE",null,null,"11. DIRITTO APPLICABILE E FORO COMPETENTE","11. APPLICABLE LAW AND COURT OF JURISDICTION","11. GELTENDES RECHT UND GERICHTSSTAND","11. DERECHO APLICABLE Y TRIBUNAL COMPETENTE","11. DROIT APPLICABLE ET TRIBUNAL COMPÉTENT","11. LEGISLAÇÃO APLICÁVEL E FORO COMPETENTE"]
["Este acuerdo y cualquier relación entre las partes se rigen exclusivamente por el derecho italiano.\nCualquier controversia que surja entre las partes en relación con este acuerdo, que estas no sean capaces de resolver amigablemente, será competencia exclusiva de los tribunales de Bolzano.",null,null,"Il presente accordo e ogni rapporto tra le parti è regolato esclusivamente dal diritto italiano.\nOgni controversia che dovesse insorgere tra le parti in relazione al presente accordo, che le stesse non siano in grado di risolvere amichevolmente, sarà di esclusiva competenza del foro di Bolzano.","This agreement and any relationship between the parties is governed exclusively by the Italian law. \nAny dispute that may arise between the parties in relation to this agreement, that cannot be resolved amicably, shall be brought before the court of Bolzano.","Diese Vereinbarung sowie jede Beziehung zwischen den Parteien wird ausschließlich durch das italienische Recht geregelt.\nFür alle Streitigkeiten, die zwischen den Parteien in Bezug auf diese Vereinbarung auftreten könnten und die diese nicht in der Lage sind, im gegenseitigen Einvernehmen beizulegen, ist ausschließlich das Gericht Bozen zuständig.","Este acuerdo y cualquier relación entre las partes se rigen exclusivamente por el derecho italiano.\nCualquier controversia que surja entre las partes en relación con este acuerdo, que estas no sean capaces de resolver amigablemente, será competencia exclusiva de los tribunales de Bolzano.","Le présent accord et tout accord entre les parties est régi exclusivement par la loi italienne.\nTout litige éventuel entre les parties concernant le présent accord qu'elles ne réussissent pas à résoudre à l'amiable relèvera de la compétence exclusive du tribunal de Bolzano.","O presente acordo e qualquer relação entre as partes é regida exclusivamente pelo direito italiano.\nQualquer litígio que possa surgir entre as partes em relação ao presente acordo, que não possam resolver amigavelmente, será da competência exclusiva do Tribunal de Bolzano."]
["12. PRIVACIDAD",null,null,"12. PRIVACY","12. PRIVACY","12. DATENSCHUTZ","12. PRIVACIDAD","12. CONFIDENTIALITÉ","12. PRIVACIDADE"]
["Véase la política de privacidad disponible en el enlace:",null,null,"Si rinvia alla privacy policy consultabile al link:","Refer to the privacy policy available at the link:","Siehe hierzu die Datenschutzerklärung unter dem Link:","Véase la política de privacidad disponible en el enlace:","Veuillez vous référer à la politique de confidentialité disponible au lien :","Consulte a política de privacidade disponível no link:"]
["ACEPTADA",null,null,"ACCETTO","ACCEPT","ICH AKZEPTIERE","ACEPTADA","J’ACCEPTE","ACEITE"]
["Idioma",null,null,"Lingua","Language","Sprache","Idioma","Langue","Idioma"]
[]
[]
[]
["lingua selezionata:",{"$f":"GEOMETRY!K8","v":"ES"},null,"IT","EN","DE","ES","FR","PT"]
[{"$f":"IF($B$220=$D$220,D221,IF($B$220=$E$220,E221,IF($B$220=$F$220,F221,IF($B$220=$G$220,G221,IF($B$220=$H$220,H221,IF($B$220=$I$220,I221,\"ERROR\"))))))","v":"(*) Para diámetros de los áridos superiores a 15 mm, evaluar las condiciones de vertido del hormigón"},null,null,"(*) per dimensioni dell'aggregato superiori ai 15 mm valutare le condizioni di posa del getto di calcestruzzo","(*) for aggregate size larger than 15 mm, evaluate the concrete pouring conditions","(*) Bei Aggregatgrößen von mehr als 15 mm die Bedingungen für den Betonguss bewerten","(*) Para diámetros de los áridos superiores a 15 mm, evaluar las condiciones de vertido del hormigón","(*) pour les agrégats de taille supérieure à 15 mm, évaluer les conditions de coulage du béton","(*) para agregados de dimensão superior a 15 mm, avaliar as condições de colocação do jato de betão"]
[{"$f":"IF($B$220=$D$220,D222,IF($B$220=$E$220,E222,IF($B$220=$F$220,F222,IF($B$220=$G$220,G222,IF($B$220=$H$220,H222,IF($B$220=$I$220,I222,\"ERROR\"))))))","v":"(*) Duplicar la rigidez en caso de conexión no simétrica con un solo plano de conexión"},null,null,"(*) raddoppiare la rigidezza in caso di connessione non simmetrica con singolo piano di collegamento","(*) double the stiffness in case of non-symmetrical connection with single plane of connection","(*) Bei nicht symmetrischer Verbindung mit einer einzelnen Verbindungsebene die Steifigkeit verdoppeln","(*) Duplicar la rigidez en caso de conexión no simétrica con un solo plano de conexión","(*) doubler la rigidité dans le cas d'un assemblage non symétrique avec un seul plan de connexion","(*) duplicar a rigidez no caso de ligação não simétrica com um único plano de ligação"]
[{"$f":"IF($B$220=$D$220,D223,IF($B$220=$E$220,E223,IF($B$220=$F$220,F223,IF($B$220=$G$220,G223,IF($B$220=$H$220,H223,IF($B$220=$I$220,I223,\"ERROR\"))))))","v":"Recubrimiento mínimo requerido"},null,null,"Copriferro minimo richiesto","Minimum bars cover required","Min. geforderte Betondeckung","Recubrimiento mínimo requerido","Enrobage minimum requis","Tapa-ferro mínimo requerido"]
[{"$f":"IF($B$220=$D$220,D224,IF($B$220=$E$220,E224,IF($B$220=$F$220,F224,IF($B$220=$G$220,G224,IF($B$220=$H$220,H224,IF($B$220=$I$220,I224,\"ERROR\"))))))","v":"Madera"},null,null,"Legno","Timber","Holz","Madera","Bois","Madeira"]
["Hormigón",null,null,"Calcestruzzo","Concrete","Beton","Hormigón","Béton","Betão"]
["Coeficiente",null,null,"Coefficiente","Coefficient","Beiwert","Coeficiente","Coefficient","Coeficiente"]

{"sheet":"Foglio1","index":10,"n_rows":96,"n_cols":40,"rows_kept":96,"hidden":true}
[{"$nulls":28},"L",null,null,"L",{"$nulls":3},"C"]
[{"$nulls":12},"x","y",null,"x","y",{"$nulls":10},{"$f":"IF(I8=\"T\",0,AB3+50)","v":300},{"$f":"IF(I8=\"T\",0,AC3+50)","v":550},null,{"$f":"IF(I8=\"T\",0,AE3+50)","v":1500},{"$f":"IF(I8=\"T\",0,AF3+50)","v":550},{"$nulls":3},{"$f":"IF(I8=\"L\",0,N5/2+50)","v":0},{"$f":"IF(I8=\"L\",0,M4/4+50)","v":0},null,{"$f":"IF(I8=\"L\",0,AJ2++D9+D23)","v":0},{"$f":"IF(I8=\"L\",0,AK2)","v":0}]
[{"$nulls":11},1,{"$f":"0","v":0},0,null,{"$f":"M3+D9+D23","v":1200},{"$f":"N3","v":0},null,0,0,null,{"$f":"P3","v":1200},{"$f":"Q3","v":0},null,{"$f":"D9+5","v":1005},{"$f":"Q3","v":0},null,{"$f":"IF(I8=\"T\",0,M4/4)","v":250},{"$f":"IF(I8=\"T\",0,N5/2)","v":500},null,{"$f":"IF(I8=\"T\",0,AB3+D9+D23)","v":1450},{"$f":"IF(I8=\"T\",0,AC3)","v":500},{"$nulls":3},{"$f":"IF(I8=\"L\",0,N5/2)","v":0},{"$f":"IF(I8=\"L\",0,M4/4)","v":0},null,{"$f":"IF(I8=\"L\",0,AJ3++D9+D23)","v":0},{"$f":"IF(I8=\"L\",0,AK3)","v":0}]
[{"$nulls":11},2,{"$f":"D9","v":1000},0,null,{"$f":"M4+D23+D9","v":2200},{"$f":"N4","v":0},null,0,{"$f":"D9","v":1000},null,{"$f":"0","v":0},{"$f":"Q3","v":0},null,{"$f":"D9-5+D23","v":1195},{"$f":"Q4","v":0},null,{"$f":"IF(I8=\"T\",0,M5-AB3)","v":750},{"$f":"IF(I8=\"T\",0,AC3)","v":500},null,{"$f":"IF(I8=\"T\",0,AB4+D9+D23)","v":1950},{"$f":"IF(I8=\"T\",0,AC4)","v":500},{"$nulls":3},{"$f":"IF(I8=\"L\",0,N5/2)","v":0},{"$f":"IF(I8=\"L\",0,M5-M4/4)","v":0},null,{"$f":"IF(I8=\"L\",0,AJ4++D9+D23)","v":0},{"$f":"IF(I8=\"L\",0,AK4)","v":0}]
[{"$nulls":11},3,{"$f":"M4","v":1000},{"$f":"M4","v":1000},null,{"$f":"M5+D23+D9","v":2200},1000,{"$nulls":7},{"$f":"P5-5-D9","v":1195},1000,null,{"$f":"IF(I8=\"T\",0,AB4-50)","v":700},{"$f":"IF(I8=\"T\",0,AC4-50)","v":450},null,{"$f":"IF(I8=\"T\",0,AE4-50)","v":1900},{"$f":"IF(I8=\"T\",0,AF4-50)","v":450},{"$nulls":3},{"$f":"IF(I8=\"L\",0,N5/2-50)","v":0},{"$f":"IF(I8=\"L\",0,M5-M4/4-50)","v":0},null,{"$f":"IF(I8=\"L\",0,AJ5+D9+D23)","v":0},{"$f":"IF(I8=\"L\",0,AK5)","v":0}]
[{"$nulls":11},4,{"$f":"0","v":0},{"$f":"M5","v":1000},null,{"$f":"M6+D23+D9","v":1200},1000,null,{"$f":"P6","v":1200},{"$f":"Q6","v":1000},{"$nulls":4},{"$f":"D9+5","v":1005},1000]
[{"$nulls":15},{"$f":"P3","v":1200},{"$f":"Q3","v":0},null,{"$f":"S6","v":1200},{"$f":"Q3","v":0},{"$nulls":4},{"$f":"Y3","v":1005},{"$f":"Z3","v":0}]
[{"$nulls":8},{"$f":"GEOMETRY!H34","v":"L"},{"$nulls":15},{"$f":"Y5","v":1195},{"$f":"Z5","v":1000},{"$nulls":5},{"$f":"IF(I8=\"T\",0,1)","v":1}]
[null,null,"b",{"$f":"GEOMETRY!H21","v":1000},"mm",{"$nulls":3},{"$f":"GEOMETRY!$H$32","v":"260mm - 7s - 40 40 30 40 30 40 40"},{"$nulls":15},{"$f":"Y6","v":1005},{"$f":"Z8","v":1000}]
[null,null,"h",{"$f":"GEOMETRY!H33","v":260},"mm",{"$nulls":19},{"$f":"Y8","v":1195},0]
[null,null,"n",{"$f":"IF(--MID(GEOMETRY!H31,3,1)=1,--MID(GEOMETRY!H31,3,2),--MID(GEOMETRY!H31,3,1))","v":7},null,1,{"$f":"IF(F11<$D$11,F11,IF(F11=$D$11,F11,\"\"))","v":1},{"$f":"IF(G11=\"\",\"\",1)","v":1},{"$f":"IF(G11=\"\",\"\",IF(--MID(GEOMETRY!$H$31,3,1)=1,--MID(GEOMETRY!$H$32,15,2),--MID(GEOMETRY!$H$32,14,2)))","v":40},{"$nulls":3},"sup","x","y",null,"inf"]
[{"$nulls":5},2,{"$f":"IF(F12<$D$11,F12,IF(F12=$D$11,F12,\"\"))","v":2},{"$f":"IF(G12=\"\",\"\",1)","v":1},{"$f":"IF(G12=\"\",\"\",IF(--MID(GEOMETRY!$H$31,3,1)=1,--MID(GEOMETRY!$H$32,15+3,2),--MID(GEOMETRY!$H$32,14+3,2)))","v":40},null,null,1,{"$f":"IF(L12>$D$17,\"\",L12)","v":1},{"$f":"IF(M12=\"\",\"\",D19)","v":50},{"$f":"IF(M12=\"\",\"\",$D$16)","v":45},null,{"$f":"IF(L12>$D$18,\"\",L12)","v":1},{"$f":"IF(Q12=\"\",\"\",D20)","v":100},{"$f":"IF(Q12=\"\",\"\",$D$10-$D$16)","v":215}]
[{"$nulls":5},3,3,1,{"$f":"IF(G13=\"\",\"\",IF(--MID(GEOMETRY!$H$31,3,1)=1,--MID(GEOMETRY!$H$32,15+6,2),--MID(GEOMETRY!$H$32,14+6,2)))","v":30},null,null,2,{"$f":"IF(L13>$D$17,\"\",L13)","v":2},{"$f":"IF(M13=\"\",\"\",N12+$D$14)","v":250},{"$f":"IF(M13=\"\",\"\",$D$16)","v":45},null,{"$f":"IF(L13>$D$18,\"\",L13)","v":2},{"$f":"IF(Q13=\"\",\"\",R12+$D$15)","v":300},{"$f":"IF(Q13=\"\",\"\",$D$10-$D$16)","v":215}]
[null,null,"esup",{"$f":"GEOMETRY!H40","v":200},"mm",4,4,1,{"$f":"IF(G14=\"\",\"\",IF(--MID(GEOMETRY!$H$31,3,1)=1,--MID(GEOMETRY!$H$32,15+9,2),--MID(GEOMETRY!$H$32,14+9,2)))","v":40},null,null,3,3,{"$f":"IF(M14=\"\",\"\",N13+$D$14)","v":450},45,null,{"$f":"IF(L14>$D$18,\"\",L14)","v":3},{"$f":"IF(Q14=\"\",\"\",R13+$D$15)","v":500},215]
[null,null,"einf",{"$f":"GEOMETRY!H41","v":200},"mm",5,5,1,{"$f":"IF(G15=\"\",\"\",IF(--MID(GEOMETRY!$H$31,3,1)=1,--MID(GEOMETRY!$H$32,15+12,2),--MID(GEOMETRY!$H$32,14+12,2)))","v":30},null,null,4,4,{"$f":"IF(M15=\"\",\"\",N14+$D$14)","v":650},45,null,{"$f":"IF(L15>$D$18,\"\",L15)","v":4},700,215]
[null,null,"a",{"$f":"GEOMETRY!H70","v":45},"mm",6,6,1,{"$f":"IF(G16=\"\",\"\",IF(--MID(GEOMETRY!$H$31,3,1)=1,--MID(GEOMETRY!$H$32,15+15,2),--MID(GEOMETRY!$H$32,14+15,2)))","v":40},null,null,5,5,{"$f":"IF(M16=\"\",\"\",N15+$D$14)","v":850},45,null,{"$f":"IF(L16>$D$18,\"\",L16)","v":5},900,215]
[null,null,"nsup",{"$f":"D9/D14","v":5},"mm",7,7,1,{"$f":"IF(G17=\"\",\"\",IF(--MID(GEOMETRY!$H$31,3,1)=1,--MID(GEOMETRY!$H$32,15+18,2),--MID(GEOMETRY!$H$32,14+18,2)))","v":40},null,null,6,{"$f":"IF(L17>$D$17,\"\",L17)","v":""},"","",null,null,"",""]
[null,null,"ninf",{"$f":"D9/D15","v":5},"mm",8,"","",{"$f":"IF(G18=\"\",\"\",IF(--MID(GEOMETRY!$H$31,3,1)=1,--MID(GEOMETRY!$H$32,15+21,2),--MID(GEOMETRY!$H$32,14+21,2)))","v":""},null,null,7,"","","",null,null,"",""]
[null,null,"(d1vitesup)",50,"mm",9,"","",{"$f":"IF(G19=\"\",\"\",IF(--MID(GEOMETRY!$H$31,3,1)=1,--MID(GEOMETRY!$H$32,15+24,2),--MID(GEOMETRY!$H$32,14+24,2)))","v":""},null,null,8,"","","",null,null,"",""]
[null,null,"(d1viteinf",100,"mm",10,"","",{"$f":"IF(G20=\"\",\"\",IF(--MID(GEOMETRY!$H$31,3,1)=1,--MID(GEOMETRY!$H$32,15+27,2),--MID(GEOMETRY!$H$32,14+27,2)))","v":""},null,null,9,"","","",null,null,"",""]
[null,null,"htav",{"$f":"IF(GEOMETRY!H42=\"N\",0,GEOMETRY!I42)","v":0},"mm",11,"","",{"$f":"IF(G21=\"\",\"\",IF(--MID(GEOMETRY!$H$31,3,1)=1,--MID(GEOMETRY!$H$32,15+30,2),--MID(GEOMETRY!$H$32,14+30,2)))","v":""},null,null,10,"","","",null,null,"",""]
[null,null,"ltav",{"$f":"D23+60","v":260},"mm",{"$nulls":6},11,"","","",null,null,"",""]
[null,null,"LC",{"$f":"GEOMETRY!H67","v":200},"mm",{"$nulls":6},12,"","","",null,null,"",""]
[{"$nulls":11},13,"","","",null,null,"",""]
[{"$nulls":11},14,"","","",null,null,"",""]
[{"$nulls":11},15,"","","",null,null,"",""]
[{"$nulls":11},16,"","","",null,null,"",""]
[{"$nulls":11},17,"","","",null,null,"",""]
[{"$nulls":11},18,"","","",null,null,"",""]
[{"$nulls":11},19,"","","",null,null,"",""]
[{"$nulls":11},20,"","","",null,null,"",""]
[{"$nulls":11},21,"","","",null,null,"",""]
[{"$nulls":11},22,"","","",null,null,"",""]
[{"$nulls":11},23,"","","",null,null,"",""]
[{"$nulls":11},24,"","","",null,null,"",""]
[{"$nulls":11},25,"","","",null,null,"",""]
[]
[{"$nulls":8},"x","y"]
[{"$nulls":5},1,{"$f":"IF(F39<$D$11*2,F39,IF(F39=$D$11*2,F39,\"\"))","v":1},{"$f":"IF(G39=\"\",0,1)","v":1},{"$f":"0*H39","v":0},0,null,{"$f":"I39+$D$9+$D$23","v":1200},{"$f":"J39","v":0}]
[{"$nulls":5},2,{"$f":"IF(F40<$D$11*2,F40,IF(F40=$D$11*2,F40,\"\"))","v":2},{"$f":"IF(G40=\"\",0,1)","v":1},{"$f":"$D$9*H40","v":1000},0,null,{"$f":"I40+$D$9+$D$23","v":2200},{"$f":"J40","v":0}]
[{"$nulls":5},3,3,1,{"$f":"0*H41","v":0},{"$f":"I11","v":40},null,1200,40]
[{"$nulls":5},4,4,1,{"$f":"$D$9*H42","v":1000},{"$f":"I11","v":40},null,2200,40]
[{"$nulls":5},5,5,1,{"$f":"0*H43","v":0},{"$f":"J41+I12","v":80},null,1200,80]
[{"$nulls":5},6,6,1,{"$f":"$D$9*H44","v":1000},{"$f":"J42+I12","v":80},null,2200,80]
[{"$nulls":5},7,7,1,{"$f":"0*H45","v":0},{"$f":"J43+I13","v":110},null,1200,110,{"$nulls":22},{"$f":"I65+CONCRETE!M14","v":1020},{"$f":"D21+CONCRETE!M14","v":20}]
[{"$nulls":5},8,8,1,{"$f":"$D$9*H46","v":1000},{"$f":"J44+I13","v":110},null,2200,110,{"$nulls":22},{"$f":"I66+CONCRETE!M14","v":1020},{"$f":"J66-CONCRETE!M14","v":240}]
[{"$nulls":5},9,9,1,{"$f":"0*H47","v":0},{"$f":"J45+I14","v":150},null,1200,150,{"$nulls":22},{"$f":"AJ46+D23-2*CONCRETE!M14","v":1180},{"$f":"AK46","v":240}]
[{"$nulls":5},10,10,1,{"$f":"$D$9*H48","v":1000},{"$f":"J46+I14","v":150},null,2200,150,{"$nulls":22},{"$f":"AJ47","v":1180},{"$f":"AK45","v":20}]
[{"$nulls":5},11,11,1,{"$f":"0*H49","v":0},{"$f":"J47+I15","v":180},null,1200,180,{"$nulls":22},{"$f":"AJ45","v":1020},{"$f":"AK45","v":20}]
[{"$nulls":5},12,12,1,{"$f":"$D$9*H50","v":1000},{"$f":"J48+I15","v":180},null,2200,180]
[{"$nulls":5},13,13,1,{"$f":"0*H51","v":0},{"$f":"J49+I16","v":220},null,1200,220]
[{"$nulls":5},14,{"$f":"IF(F52<$D$11*2,F52,IF(F52=$D$11*2,F52,\"\"))","v":14},1,{"$f":"$D$9*H52","v":1000},{"$f":"J50+I16","v":220},null,2200,220,{"$nulls":22},{"$f":"I65+GEOMETRY!H58+GEOMETRY!H53/2","v":1028},{"$f":"GEOMETRY!H66","v":24}]
[{"$nulls":5},15,"",0,{"$f":"0*H53","v":0},{"$f":"J51+I17","v":260},null,1200,260,{"$nulls":22},{"$f":"AJ52","v":1028},{"$f":"D10-GEOMETRY!H58+D211","v":236}]
[{"$nulls":5},16,"",0,{"$f":"$D$9*H54","v":0},{"$f":"J52+I17","v":260},null,1200,260,{"$nulls":22},{"$f":"I67-GEOMETRY!H58-GEOMETRY!H53/2","v":1172},{"$f":"AK52","v":24}]
[{"$nulls":5},17,"",0,{"$f":"0*H55","v":0},{"$f":"J53+I18","v":{"$error":"#VALUE!"}},null,1200,{"$error":"#VALUE!"},{"$nulls":22},{"$f":"AJ54","v":1172},{"$f":"AK53","v":236}]
[{"$nulls":5},18,"",0,{"$f":"$D$9*H56","v":0},{"$f":"J54+I18","v":{"$error":"#VALUE!"}},null,1200,{"$error":"#VALUE!"}]
[{"$nulls":5},19,"",0,{"$f":"0*H57","v":0},{"$f":"J55+I19","v":{"$error":"#VALUE!"}},null,1200,{"$error":"#VALUE!"}]
[{"$nulls":5},20,"",0,{"$f":"$D$9*H58","v":0},{"$f":"J56+I19","v":{"$error":"#VALUE!"}},null,1200,{"$error":"#VALUE!"}]
[{"$nulls":5},21,"",0,{"$f":"0*H59","v":0},{"$f":"J57+I20","v":{"$error":"#VALUE!"}},null,1200,{"$error":"#VALUE!"}]
[{"$nulls":5},22,{"$f":"IF(F60<$D$11*2,F60,IF(F60=$D$11*2,F60,\"\"))","v":""},0,{"$f":"$D$9*H60","v":0},{"$f":"J58+I20","v":{"$error":"#VALUE!"}},null,1200,{"$error":"#VALUE!"}]
[{"$nulls":5},23,null,null,0,{"$f":"D10","v":260},null,{"$f":"I61+$D$9+$D$23","v":1200},260]
[{"$nulls":5},24,null,null,{"$f":"D9","v":1000},{"$f":"D10","v":260},null,2200,260]
[]
[]
[{"$nulls":8},{"$f":"I62","v":1000},{"$f":"D21","v":0}]
[{"$nulls":8},{"$f":"I65","v":1000},{"$f":"J62","v":260}]
[{"$nulls":8},{"$f":"L61","v":1200},{"$f":"D21","v":0}]
[{"$nulls":8},{"$f":"L61","v":1200},{"$f":"M61","v":260}]
[]
[]
[]
[]
[{"$nulls":5},"viti",null,null,{"$f":"I62-GEOMETRY!H74","v":730},{"$f":"D16","v":45},null,null,{"$f":"L39-GEOMETRY!H73","v":1020},{"$f":"J73+10","v":55}]
[{"$nulls":8},{"$f":"I73+GEOMETRY!H39","v":1180},{"$f":"D16","v":45},null,null,{"$f":"L39+GEOMETRY!H74","v":1470},{"$f":"J74+10","v":55}]
[]
[]
[{"$nulls":8},{"$f":"I73","v":730},{"$f":"D10-D16","v":215},null,null,{"$f":"M73","v":1020},{"$f":"D10-D16+10","v":225}]
[{"$nulls":8},{"$f":"I74","v":1180},{"$f":"D10-D16","v":215},null,null,{"$f":"M74","v":1470},{"$f":"D10-D16+10","v":225}]
[]
[]
[{"$nulls":5},"tavoletta"]
[{"$nulls":8},{"$f":"I62-(D22-D23)/2","v":970},{"$f":"D21","v":0}]
[{"$nulls":8},{"$f":"I62+D23+(D22-D23)/2","v":1230},{"$f":"J82","v":0}]
[]
[{"$nulls":8},{"$f":"I82","v":970},{"$f":"0","v":0}]
[{"$nulls":8},{"$f":"I83","v":1230},{"$f":"0","v":0}]
[]
[{"$nulls":8},{"$f":"I82","v":970},0]
[{"$nulls":8},{"$f":"I88","v":970},{"$f":"J83","v":0}]
[]
[{"$nulls":8},{"$f":"I83","v":1230},{"$f":"0","v":0}]
[{"$nulls":8},{"$f":"I83","v":1230},{"$f":"J89","v":0}]
[]
[]
[{"$nulls":5},"Concrete",null,null,{"$f":"I65","v":1000},{"$f":"D10","v":260}]
[{"$nulls":8},{"$f":"D9+D23","v":1200},{"$f":"J95","v":260}]